{"text_format":"1","workbook":"xlsx","n_sheets":6,"sheets":["0-MATERIALI","1- MURATURA NEL PIANO","2-CONFINAMENTO CAM NEL PIANO","3-CONFINAMENTO CAM FUORI PIANO","4-PANNELLI MULTIPLI","6-SINTESI"],"not_rendered":{"charts":0,"images":3,"macros":1,"external_links":1,"defined_names":36,"comments":2,"pivot_tables":0},"unopened":[],"bounds":{"document_bytes":16777216,"sheet_cells":100000,"rows_first":2000,"rows_last":500,"rows_between":2000,"halvings":0,"cell_chars":16384,"cell_head_chars":4096},"cells_cut":0,"cells_raw":0,"read":"whole","date_system":"1900"}

{"sheet":"0-MATERIALI","index":0,"n_rows":34,"n_cols":83,"rows_kept":34,"cut":false,"hidden":false,"merged":[[3,19,4,19],[2,14,2,19],[2,2,4,2],[2,3,3,4],[3,17,4,17],[3,15,4,15],[3,16,4,16],[3,14,4,14],[2,5,2,8],[23,12,23,14],[18,1,18,14],[19,12,20,14],[17,1,17,14],[23,1,23,2],[22,1,22,2],[19,9,20,9],[21,1,21,2],[22,12,22,14],[3,27,3,29],[2,47,2,49],[3,36,3,38],[3,20,4,20],[3,33,3,35],[3,30,3,32],[3,39,3,41],[3,47,3,49],[3,24,3,26],[3,21,3,23],[1,71,1,81],[2,70,3,70],[2,80,2,81],[2,58,2,60],[1,67,1,69],[2,67,2,69],[2,71,2,72],[2,73,2,75],[2,76,2,77],[2,50,2,52],[2,1,4,1],[21,12,21,14],[1,1,1,19],[2,82,3,82],[2,78,2,79],[3,50,3,52],[1,58,1,60],[2,9,2,13],[3,18,4,18],[3,42,3,44],[1,57,3,57],[2,61,2,63],[1,61,1,63],[1,64,1,66],[2,64,2,66],[26,1,26,14],[27,1,27,2],[28,1,28,2],[27,3,27,8],[28,3,28,8],[27,9,27,14],[28,9,28,14]]}
[]
[null,"DEFINIZIONE MATERIALI ESISTENTI MURATURA",null,null,null,null,null,null,null,null,null,null,null,null,null,null,null,null,null,null,1,"Analisi Pushover gM = 1",null,null,null,null,2,"Fattore 0.7 tra fvko e to",null,null,null,null,null,null,null,null,null,null,null,null,null,null,null,null,null,null,null,null,null,null,null,null,null,null,null,null,null,"Tipologia Muratura","Resistenza media a compressione ",null,null,"Resistenza media a taglio",null,null,"Valore medio del Modulo Elastico",null,null,"Valore medio del Modulo di elasticità tangenziale",null,null,"Peso specifico medio","SPECIFICHE MIGLIORATIVE MATERIALE"]
[null,"Cod.","TIPO MURATURA","Livello Conoscenza",null,"RESISTENZA MATERIALI DA PROVE",null,null,null,"CARATTERISTICHE MECCANICHE MEDIE ADOTTATE (valori comprensivi di coefficienti correttivi e ridotti del Fattore di Confidenza)",null,null,null,null,"COEFFICIENTI CORRETTIVI \n(COMPRESE EVENTUALI INIEZIONI)",null,null,null,null,null,null,"Analisi Spettro e Fattore q - gM = 2",null,null,null,null,null,"Fattore 1.0 tra fvko e to",null,null,null,null,null,null,null,null,null,null,null,null,null,null,null,null,null,null,null,"fm",null,null,"to",null,null,"Em","G","w",null,null,"fm (Mpa)",null,null,"t0 (Mpa)",null,null,"E (Mpa)",null,null,"G (Mpa)",null,null,"w (KN/m3)","Malta buona",null,"Giunti sottili (<10mm)",null,null,"Ricorsi o listature",null,"Nucleo scadente e/o ampio",null,"Iniezione di miscele leganti (*)",null,"Diatono CAM"]
[null,null,null,null,null,"fm,pr","to,pr","Empr","Gmpr","fm","to","Em","G","W","Malta Buona","Giunti sottili (<10mm)","Ricorsi o listature","Nucleo scadente e/o ampio","Iniezione di miscele leganti","Diatono esistente","INDICE","Malta buona",null,null,"Giunti sottili",null,null,"Ricorsi",null,null,"Nucleo scadente",null,null,"Diatono esistente",null,null,"iniezioni",null,null,"COEFFICIENTI CORRETTIVI -MIGLIORMANETO",null,null,"COEFFICIENTI CORRETTIVI ",null,null,"Diatono",null,"Mpa",null,null,"Mpa",null,null,"Mpa","Mpa","Peso",null,null,"Min","Max","Medio","Min","Max","Medio","Min","Max","Medio","Min","Max","Medio",null,"Resistenza","Deformabilità","Compressione","Taglio","Deformabilità","Resistenza","Deformabilità","Resistenza","Deformabilità","Resistenza","Deformabilità"]
[null,null,null,"LV","N°prove","Mpa","Mpa","Mpa","Mpa","Mpa","Mpa","Mpa","Mpa","KN/mc",null,null,null,null,null,null,null,"fm","t","E-G","fm","t","E-G","fm","t","E-G","fm","t","E-G","fm","t","E-G","fm","t","E-G","fm","t","E-G","fm","t","E-G",null,null,"Min","max","Medio","Min","max","Medio","medio","medio","medio",null,"Muratura in pietrame disordinata (ciottoli, pietre erratiche e irregolari)",1,1.8,{"$f":"AVERAGE(BG5:BH5)","v":1.4},0.02,3.2000000000000001E-2,{"$f":"AVERAGE(BJ5:BK5)","v":2.6000000000000002E-2},690,1050,{"$f":"AVERAGE(BM5:BN5)","v":870},230,350,{"$f":"AVERAGE(BP5:BQ5)","v":290},19,1.5,1.5,1,1,1,1.3,1,0.9,0.9,2,2,1.5]
[null,{"$f":"IF(C6=\"\",\"\",\"MUR1\")","v":"MUR1"},"Muratura a conci di pietra tenera (tufo, calcarenite, ecc.)","LC3",">=3",null,null,null,null,{"$f":"IF($C6=\"\",\"\",IF(OR(D6=\"LC1\",D6=\"LC2\"),IF(D6=\"LC1\",AV6,AX6),IF(D6=\"LC3\",IF(F6=\"\",AX6,IF(E6=\">=3\",F6,IF(E6=2,IF(F6<AV6,F6,IF(F6>AW6,AW6,AX6)),IF(E6=1,IF(F6<AV6,F6,AX6)))))))/(IF(D6=\"LC1\",1.35,IF(D6=\"LC2\",1.2,1))))","v":1.9},{"$f":"IF($C6=\"\",\"\",IF(OR(D6=\"LC1\",D6=\"LC2\"),IF(D6=\"LC1\",AY6,BA6),IF(D6=\"LC3\",IF(G6=\"\",BA6,IF(E6=\">=3\",G6,IF(E6=2,IF(G6<AY6,G6,IF(G6>AZ6,AZ6,BA6)),IF(E6=1,IF(G6<AY6,G6,BA6)))))))/(IF(D6=\"LC1\",1.35,IF(D6=\"LC2\",1.2,1))))","v":3.5000000000000003E-2},{"$f":"IF($C6=\"\",\"\",IF(D6=\"LC1\",BB6,IF(OR(D6=\"LC2\",D6=\"LC3\"),IF(H6=\"\",BB6,H6),0)))","v":1080},{"$f":"IF($C6=\"\",\"\",IF(D6=\"LC1\",BC6,IF(OR(D6=\"LC2\",D6=\"LC3\"),IF(I6=\"\",BC6,I6),0)))","v":360},{"$f":"IF($C6=\"\",\"\",BD6)","v":16},"NO","NO","NO","NO","NO","NO",{"$f":"IF(C6=\"\",\"\",MATCH(C6,$BF$5:$BF$15,0))","v":4},{"$f":"IF(U6=\"\",\"\",IF(O6=\"SI\",INDEX($BT$5:$BT$15,U6),1))","v":1},{"$f":"IF(U6=\"\",\"\",IF(O6=\"SI\",INDEX($BT$5:$BT$15,U6),1))","v":1},{"$f":"IF(U6=\"\",\"\",IF(O6=\"SI\",INDEX($BU$5:$BU$15,U6),1))","v":1},{"$f":"IF(U6=\"\",\"\",IF(P6=\"SI\",INDEX($BV$5:$BV$15,U6),1))","v":1},{"$f":"IF(U6=\"\",\"\",IF(P6=\"SI\",INDEX($BW$5:$BW$15,U6),1))","v":1},{"$f":"IF(U6=\"\",\"\",IF(P6=\"SI\",INDEX($BX$5:$BX$15,U6),1))","v":1},{"$f":"IF(U6=\"\",\"\",IF(Q6=\"SI\",INDEX($BY$5:$BY$15,U6),1))","v":1},{"$f":"IF(U6=\"\",\"\",IF(Q6=\"SI\",INDEX($BY$5:$BY$15,U6),1))","v":1},{"$f":"IF(U6=\"\",\"\",IF(Q6=\"SI\",INDEX($BZ$5:$BZ$15,U6),1))","v":1},{"$f":"IF(U6=\"\",\"\",IF(R6=\"SI\",INDEX($CA$5:$CA$15,U6),1))","v":1},{"$f":"IF(U6=\"\",\"\",IF(R6=\"SI\",INDEX($CA$5:$CA$15,U6),1))","v":1},{"$f":"IF(U6=\"\",\"\",IF(R6=\"SI\",INDEX($CB$5:$CB$15,U6),1))","v":1},{"$f":"IF(U6=\"\",\"\",IF(T6=\"SI\",INDEX($CE$5:$CE$15,U6),1))","v":1},{"$f":"IF(U6=\"\",\"\",IF(T6=\"SI\",INDEX($CE$5:$CE$15,U6),1))","v":1},{"$f":"IF(X6=\"\",\"\",1)","v":1},{"$f":"IF(U6=\"\",\"\",IF(S6=\"SI\",INDEX($CC$5:$CC$15,U6),1))","v":1},{"$f":"IF(U6=\"\",\"\",IF(S6=\"SI\",INDEX($CC$5:$CC$15,U6),1))","v":1},{"$f":"IF(U6=\"\",\"\",IF(S6=\"SI\",INDEX($CD$5:$CD$15,U6),1))","v":1},{"$f":"IF(U6=\"\",1,IF(V6>1,AK6+V6-1,AK6*V6)*AE6*AB6*Y6*AH6)","v":1},{"$f":"IF(V6=\"\",1,IF(W6>1,AL6+W6-1,AL6*W6)*AF6*AC6*Z6*AH6)","v":1},{"$f":"IF(W6=\"\",1,IF(X6>1,AM6+X6-1,AM6*X6)*AG6*AD6*AA6*AJ6)","v":1},{"$f":"IF(U6=\"\",1,V6*AE6*AB6*Y6*AH6)","v":1},{"$f":"IF(V6=\"\",1,W6*AF6*AC6*Z6*AI6)","v":1},{"$f":"IF(W6=\"\",1,X6*AG6*AD6*AA6*AJ6)","v":1},{"$f":"IF(U6=\"\",1,INDEX($CE$5:$CE$15,U6))","v":1.5},null,{"$f":"IF($C6=\"\",\"\",INDEX(BG$5:BG$15,MATCH($C6,$BF$5:$BF$15,0))*AN6)","v":1.4},{"$f":"IF($C6=\"\",\"\",INDEX(BH$5:BH$15,MATCH($C6,$BF$5:$BF$15,0))*AN6)","v":2.4},{"$f":"IF($C6=\"\",\"\",INDEX(BI$5:BI$15,MATCH($C6,$BF$5:$BF$15,0))*AN6)","v":1.9},{"$f":"IF($C6=\"\",\"\",INDEX(BJ$5:BJ$15,MATCH($C6,$BF$5:$BF$15,0))*AO6)","v":2.8000000000000001E-2},{"$f":"IF($C6=\"\",\"\",INDEX(BK$5:BK$15,MATCH($C6,$BF$5:$BF$15,0))*AO6)","v":4.2000000000000003E-2},{"$f":"IF($C6=\"\",\"\",INDEX(BL$5:BL$15,MATCH($C6,$BF$5:$BF$15,0))*AO6)","v":3.5000000000000003E-2},{"$f":"IF(C6=\"\",\"\",INDEX(BO$5:BO$15,MATCH($C6,$BF$5:$BF$15,0))*AP6)","v":1080},{"$f":"IF(C6=\"\",\"\",INDEX(BR$5:BR$15,MATCH($C6,$BF$5:$BF$15,0))*AP6)","v":360},{"$f":"IF(D6=\"\",\"\",INDEX(BS$5:BS$15,MATCH($C6,$BF$5:$BF$15,0)))","v":16},null,"Muratura a conci sbozzati, con paramento di limitato spessore e nucleo interno",2,3,{"$f":"AVERAGE(BG6:BH6)","v":2.5},3.5000000000000003E-2,5.0999999999999997E-2,4.2999999999999997E-2,1020,1440,1230,340,480,410,20,1.4,1.4,1.2,1.1000000000000001,1.2,1.2,1,0.8,0.8,1.7,1.7,1.5]
[null,{"$f":"IF(C7=\"\",\"\",\"MUR2\")","v":""},null,null,null,null,null,null,null,{"$f":"IF($C7=\"\",\"\",IF(OR(D7=\"LC1\",D7=\"LC2\"),IF(D7=\"LC1\",AV7,AX7),IF(D7=\"LC3\",IF(F7=\"\",AX7,IF(E7=\">=3\",F7,IF(E7=2,IF(F7<AV7,F7,IF(F7>AW7,AW7,AX7)),IF(E7=1,IF(F7<AV7,F7,AX7)))))))/(IF(D7=\"LC1\",1.35,IF(D7=\"LC2\",1.2,1))))","v":""},"",{"$f":"IF($C7=\"\",\"\",IF(D7=\"LC1\",BB7,IF(OR(D7=\"LC2\",D7=\"LC3\"),IF(H7=\"\",BB7,H7),0)))","v":""},"","",null,null,null,null,null,null,{"$f":"IF(C7=\"\",\"\",MATCH(C7,$BF$5:$BF$15,0))","v":""},{"$f":"IF(U7=\"\",\"\",IF(O7=\"SI\",INDEX($BT$5:$BT$15,U7),1))","v":""},{"$f":"IF(U7=\"\",\"\",IF(O7=\"SI\",INDEX($BT$5:$BT$15,U7),1))","v":""},{"$f":"IF(U7=\"\",\"\",IF(O7=\"SI\",INDEX($BU$5:$BU$15,U7),1))","v":""},{"$f":"IF(U7=\"\",\"\",IF(P7=\"SI\",INDEX($BV$5:$BV$15,U7),1))","v":""},{"$f":"IF(U7=\"\",\"\",IF(P7=\"SI\",INDEX($BW$5:$BW$15,U7),1))","v":""},{"$f":"IF(U7=\"\",\"\",IF(P7=\"SI\",INDEX($BX$5:$BX$15,U7),1))","v":""},{"$f":"IF(U7=\"\",\"\",IF(Q7=\"SI\",INDEX($BY$5:$BY$15,U7),1))","v":""},{"$f":"IF(U7=\"\",\"\",IF(Q7=\"SI\",INDEX($BY$5:$BY$15,U7),1))","v":""},{"$f":"IF(U7=\"\",\"\",IF(Q7=\"SI\",INDEX($BZ$5:$BZ$15,U7),1))","v":""},{"$f":"IF(U7=\"\",\"\",IF(R7=\"SI\",INDEX($CA$5:$CA$15,U7),1))","v":""},{"$f":"IF(U7=\"\",\"\",IF(R7=\"SI\",INDEX($CA$5:$CA$15,U7),1))","v":""},{"$f":"IF(U7=\"\",\"\",IF(R7=\"SI\",INDEX($CB$5:$CB$15,U7),1))","v":""},{"$f":"IF(U7=\"\",\"\",IF(T7=\"SI\",INDEX($CE$5:$CE$15,U7),1))","v":""},{"$f":"IF(U7=\"\",\"\",IF(T7=\"SI\",INDEX($CE$5:$CE$15,U7),1))","v":""},{"$f":"IF(X7=\"\",\"\",1)","v":""},{"$f":"IF(U7=\"\",\"\",IF(S7=\"SI\",INDEX($CC$5:$CC$15,U7),1))","v":""},{"$f":"IF(U7=\"\",\"\",IF(S7=\"SI\",INDEX($CC$5:$CC$15,U7),1))","v":""},{"$f":"IF(U7=\"\",\"\",IF(S7=\"SI\",INDEX($CD$5:$CD$15,U7),1))","v":""},{"$f":"IF(U7=\"\",1,IF(V7>1,AK7+V7-1,AK7*V7)*AE7*AB7*Y7*AH7)","v":1},{"$f":"IF(V7=\"\",1,IF(W7>1,AL7+W7-1,AL7*W7)*AF7*AC7*Z7*AH7)","v":1},{"$f":"IF(W7=\"\",1,IF(X7>1,AM7+X7-1,AM7*X7)*AG7*AD7*AA7*AJ7)","v":1},{"$f":"IF(U7=\"\",1,V7*AE7*AB7*Y7*AH7)","v":1},{"$f":"IF(V7=\"\",1,W7*AF7*AC7*Z7*AI7)","v":1},{"$f":"IF(W7=\"\",1,X7*AG7*AD7*AA7*AJ7)","v":1},1,null,{"$f":"IF($C7=\"\",\"\",INDEX(BG$5:BG$15,MATCH($C7,$BF$5:$BF$15,0))*AN7)","v":""},{"$f":"IF($C7=\"\",\"\",INDEX(BH$5:BH$15,MATCH($C7,$BF$5:$BF$15,0))*AN7)","v":""},{"$f":"IF($C7=\"\",\"\",INDEX(BI$5:BI$15,MATCH($C7,$BF$5:$BF$15,0))*AN7)","v":""},{"$f":"IF($C7=\"\",\"\",INDEX(BJ$5:BJ$15,MATCH($C7,$BF$5:$BF$15,0))*AO7)","v":""},{"$f":"IF($C7=\"\",\"\",INDEX(BK$5:BK$15,MATCH($C7,$BF$5:$BF$15,0))*AO7)","v":""},{"$f":"IF($C7=\"\",\"\",INDEX(BL$5:BL$15,MATCH($C7,$BF$5:$BF$15,0))*AO7)","v":""},{"$f":"IF(C7=\"\",\"\",INDEX(BO$5:BO$15,MATCH($C7,$BF$5:$BF$15,0))*AP7)","v":""},{"$f":"IF(C7=\"\",\"\",INDEX(BR$5:BR$15,MATCH($C7,$BF$5:$BF$15,0))*AP7)","v":""},{"$f":"IF(D7=\"\",\"\",INDEX(BS$5:BS$15,MATCH($C7,$BF$5:$BF$15,0)))","v":""},null,"Muratura in pietre a spacco con buona tessitura",2.6,3.8,3.2,5.6000000000000001E-2,7.3999999999999996E-2,6.5000000000000002E-2,1500,1980,1740,500,660,580,21,1.3,1.3,1,1,1,1.1000000000000001,1,0.8,0.8,1.5,1.5,1.3]
[null,{"$f":"IF(C8=\"\",\"\",\"MUR2\")","v":""},null,null,null,null,null,null,null,null,null,null,null,null,null,null,null,null,null,null,"",{"$f":"IF(U8=\"\",\"\",IF(O8=\"SI\",INDEX($BT$5:$BT$15,U8),1))","v":""},{"$f":"IF(U8=\"\",\"\",IF(O8=\"SI\",INDEX($BT$5:$BT$15,U8),1))","v":""},{"$f":"IF(U8=\"\",\"\",IF(O8=\"SI\",INDEX($BU$5:$BU$15,U8),1))","v":""},{"$f":"IF(U8=\"\",\"\",IF(P8=\"SI\",INDEX($BV$5:$BV$15,U8),1))","v":""},{"$f":"IF(U8=\"\",\"\",IF(P8=\"SI\",INDEX($BW$5:$BW$15,U8),1))","v":""},{"$f":"IF(U8=\"\",\"\",IF(P8=\"SI\",INDEX($BX$5:$BX$15,U8),1))","v":""},{"$f":"IF(U8=\"\",\"\",IF(Q8=\"SI\",INDEX($BY$5:$BY$15,U8),1))","v":""},{"$f":"IF(U8=\"\",\"\",IF(Q8=\"SI\",INDEX($BY$5:$BY$15,U8),1))","v":""},{"$f":"IF(U8=\"\",\"\",IF(Q8=\"SI\",INDEX($BZ$5:$BZ$15,U8),1))","v":""},{"$f":"IF(U8=\"\",\"\",IF(R8=\"SI\",INDEX($CA$5:$CA$15,U8),1))","v":""},{"$f":"IF(U8=\"\",\"\",IF(R8=\"SI\",INDEX($CA$5:$CA$15,U8),1))","v":""},{"$f":"IF(U8=\"\",\"\",IF(R8=\"SI\",INDEX($CB$5:$CB$15,U8),1))","v":""},{"$f":"IF(U8=\"\",\"\",IF(T8=\"SI\",INDEX($CE$5:$CE$15,U8),1))","v":""},{"$f":"IF(U8=\"\",\"\",IF(T8=\"SI\",INDEX($CE$5:$CE$15,U8),1))","v":""},{"$f":"IF(X8=\"\",\"\",1)","v":""},{"$f":"IF(U8=\"\",\"\",IF(S8=\"SI\",INDEX($CC$5:$CC$15,U8),1))","v":""},{"$f":"IF(U8=\"\",\"\",IF(S8=\"SI\",INDEX($CC$5:$CC$15,U8),1))","v":""},{"$f":"IF(U8=\"\",\"\",IF(S8=\"SI\",INDEX($CD$5:$CD$15,U8),1))","v":""},1,1,1,1,1,1,1,null,"","","","","","","","",{"$f":"IF(D8=\"\",\"\",INDEX(BS$5:BS$15,MATCH($C8,$BF$5:$BF$15,0)))","v":""},null,"Muratura a conci di pietra tenera (tufo, calcarenite, ecc.)",1.4,2.4,1.9,2.8000000000000001E-2,4.2000000000000003E-2,3.5000000000000003E-2,900,1260,1080,300,420,360,16,1.5,1.5,1.5,1.25,1.5,1,1,0.9,0.9,1.7,1.7,1.5]
[null,"",null,null,">=3",null,null,null,null,{"$f":"IF($C9=\"\",\"\",IF(OR(D9=\"LC1\",D9=\"LC2\"),IF(D9=\"LC1\",AV9,AX9),IF(D9=\"LC3\",IF(F9=\"\",AX9,IF(E9=\">=3\",F9,IF(E9=2,IF(F9<AV9,F9,IF(F9>AW9,AW9,AX9)),IF(E9=1,IF(F9<AV9,F9,AX9)))))))/(IF(D9=\"LC1\",1.35,IF(D9=\"LC2\",1.2,1))))","v":""},"","","","",null,null,null,null,null,null,"","","","","","","","","","","","","","","","","","","",1,1,1,1,1,1,1,null,"","","","","","","","","",null,"Muratura a blocchi lapidei squadrati",6,8,7,0.09,0.12,0.105,2400,3200,2800,780,940,860,22,1.2,1.2,1.2,1.1000000000000001,1.2,1,1,0.7,0.7,1.2,1.2,1.2]
[null,"",null,null,">=3",null,null,null,null,"","","","","",null,null,null,null,null,null,"","","","","","","","","","","","","","","","","","","",1,1,1,1,1,1,1,null,"","","","","","","","","",null,"Muratura in mattoni pieni e malta di calce",2.4,4,3.2,0.06,9.1999999999999998E-2,7.5999999999999998E-2,1200,1800,1500,400,600,500,18,1.5,1.5,1.5,1.25,1.5,1,1,0.7,0.7,1.5,1.5,1.3]
[null,{"$f":"IF(C11=\"\",\"\",\"MUR6\")","v":""},null,null,">=3",null,null,null,null,"","","","","",null,null,null,null,null,null,"","","","","","","","","","","","","","","","","","","",1,1,1,1,1,1,1,null,"","","","","","","","","",null,"Muratura in mattoni semipieni con malta cementizia (es.: doppio UNI foratura ≤ 40%)",5,8,6.5,0.24,0.32,0.28000000000000003,3500,5600,4550,875,1400,1137.5,15,1,1,1,1,1,1,1,1,1,1,1,1]
[null,{"$f":"IF(C12=\"\",\"\",\"MUR7\")","v":""},null,null,">=3",null,null,null,null,"","","","","",null,null,null,null,null,null,"","","","","","","","","","","","","","","","","","","",1,1,1,1,1,1,1,null,"","","","","","","","","",null,"Muratura in blocchi laterizi semipieni (perc. foratura < 45%)",4,6,5,0.3,0.4,0.35,3600,5400,4500,1080,1620,1350,12,1,1,1,1,1,1,1,1,1,1,1,1]
[null,{"$f":"IF(C13=\"\",\"\",\"MUR8\")","v":""},null,null,">=3",null,null,null,null,"","","","","",null,null,null,null,null,null,"","","","","","","","","","","","","","","","","","","",1,1,1,1,1,1,1,null,"","","","","","","","","",null,"Muratura in blocchi laterizi semipieni, con giunti verticali a secco (perc. foratura < 45%)",3,4,3.5,0.1,0.13,0.115,2700,3600,3150,810,1080,945,11,1,1,1,1,1,1,1,1,1,1,1,1]
[null,{"$f":"IF(C14=\"\",\"\",\"MUR9\")","v":""},null,null,">=3",null,null,null,null,"","","","","",null,null,null,null,null,null,"","","","","","","","","","","","","","","","","","","",1,1,1,1,1,1,1,null,"","","","","","","","","",null,"Muratura in blocchi di calcestruzzo o argilla espansa (perc. foratura tra 45% e 65%)","1..5",2,2,9.5000000000000001E-2,0.125,0.11,1200,1600,1400,300,400,350,12,1,1,1,1,1,1,1,1,1,1,1,1]
[null,{"$f":"IF(C15=\"\",\"\",\"MUR10\")","v":""},null,null,">=3",null,null,null,null,"","","","","",null,null,null,null,null,null,"","","","","","","","","","","","","","","","","","","",1,1,1,1,1,1,1,null,"","","","","","","","","",null,"Muratura in blocchi di calcestruzzo semipieni (foratura < 45%)",3,4.4000000000000004,3.7,0.18,0.24,0.21,2400,3520,2960,600,880,740,14,1,1,1,1,1,1,1,1,1,1,1,1]
[]
[]
[null,"DEFINIZIONE NUOVI MATERIALI "]
[null,"ACCIAO RINFORZO CAM"]
[null,"Capacità sigillo","Tipo Comportamento","ftk","fyk","fyd","Ea","A80","eud","gM0","b","t","Disposizione nastro",null,null,"ftd"]
[null,0.7,"Elasto-plastico incrudente","Mpa","Mpa","Mpa","Mpa",null,null,null,"mm","mm",null,null,null,"Mpa"]
[null,"Nastro Inox C1000",null,{"$f":"INDEX($AA$31:$AA$34,Y30)","v":1000},{"$f":"INDEX($AB$31:$AB$34,Y30)","v":650},{"$f":"INDEX($AE$31:$AE$34,Y30)","v":560},{"$f":"IF(B22=\"\",\"\",200000)","v":200000},{"$f":"INDEX($AC$31:$AC$34,Y30)","v":0.08},{"$f":"INDEX($AD$31:$AD$34,Y30)","v":2.8E-3},1.1000000000000001,19,{"$f":"IF(D22<600,1,0.9)","v":0.9},"Nastro orizzontale diffuso",null,null,{"$f":"INDEX($AF$31:$AF$34,Y30)","v":560}]
[null,"Nastro Inox 301",null,{"$f":"INDEX($AA$31:$AA$34,Y31)","v":650},{"$f":"INDEX($AB$31:$AB$34,Y31)","v":350},{"$f":"INDEX($AE$31:$AE$34,Y31)","v":318.18181818181813},{"$f":"IF(B23=\"\",\"\",200000)","v":200000},{"$f":"INDEX($AC$31:$AC$34,Y31)","v":0.35},{"$f":"INDEX($AD$31:$AD$34,Y31)","v":5.4778181818181809E-2},1.1000000000000001,19,{"$f":"IF(D23<600,1,0.9)","v":0.9},"Nastro verticale diffuso",null,null,{"$f":"INDEX($AF$31:$AF$34,Y31)","v":363.99999999999994}]
[null,"Nastro Inox 301",null,{"$f":"INDEX($AA$31:$AA$34,Y32)","v":650},{"$f":"INDEX($AB$31:$AB$34,Y32)","v":350},{"$f":"INDEX($AE$31:$AE$34,Y32)","v":318.18181818181813},{"$f":"IF(B24=\"\",\"\",200000)","v":200000},{"$f":"INDEX($AC$31:$AC$34,Y32)","v":0.35},{"$f":"INDEX($AD$31:$AD$34,Y32)","v":5.4778181818181809E-2},1.1000000000000001,19,{"$f":"IF(D24<600,1,0.9)","v":0.9},"Nastro verticale di spigolo",null,null,{"$f":"INDEX($AF$31:$AF$34,Y32)","v":363.99999999999994}]
[]
[]
[null,"CRITERI RINFORZO CAM"]
[null,"Calcolo Aumento Resistenza fmcd per confinamento",null,"Calcolo Aumento Duttilità emcu per confinamento",null,null,null,null,null,"Considerare effetto diatono per duttilità elevata"]
[null,"SI",null,"SI",null,null,null,null,null,"SI",null,null,null,null,null,null,null,null,null,null,null,null,null,null,null,null,null,null,null,{"$f":"$B$21","v":0.7}]
[null,null,null,null,null,null,null,null,null,null,null,null,null,null,null,null,null,null,null,null,null,null,null,"H",{"$f":"MATCH(B22,$Z$31:$Z$34,0)","v":3},"TIPO","ftk","fyk","A80mm","Asigillo","fyd","ftd","eyel"]
[null,null,null,null,null,null,null,null,null,null,null,null,null,null,null,null,null,null,null,null,null,null,null,"V",{"$f":"MATCH(B23,$Z$31:$Z$34,0)","v":4},"Nastro Inox AISI 304",540,220,0.45,{"$f":"AG31+(AC31-AB31/200000)/(AA31-AB31)*(AF31-AE31)","v":0.144648},{"$f":"MIN(AA31*$AD$29/1.25,AB31/1.1)","v":199.99999999999997},{"$f":"$AD$29*AA31/1.25","v":302.39999999999998},{"$f":"AE31/200000","v":9.999999999999998E-4},{"$f":"$AD$29*AA31/1.25","v":302.39999999999998}]
[null,null,null,null,null,null,null,null,null,null,null,null,null,null,null,null,null,null,null,null,null,null,null,"SP",{"$f":"MATCH(B24,Z31:Z34,0)","v":4},"Nastro Inox C850",850,550,0.25,2.3800000000000002E-3,{"$f":"MIN(AA32*$AD$29/1.25,AB32/1.1)","v":476},{"$f":"$AD$29*AA32/1.25","v":476},{"$f":"AE32/200000","v":2.3800000000000002E-3},{"$f":"$AD$29*AA32/1.25","v":476}]
[null,null,null,null,null,null,null,null,null,null,null,null,null,null,null,null,null,null,null,null,null,null,null,null,null,"Nastro Inox C1000",1000,650,0.08,2.8E-3,{"$f":"MIN(AA33*$AD$29/1.25,AB33/1.1)","v":560},560,{"$f":"AE33/200000","v":2.8E-3},560]
[null,null,null,null,null,null,null,null,null,null,null,null,null,null,null,null,null,null,null,null,null,null,null,null,null,"Nastro Inox 301",650,350,0.35,{"$f":"AG34+(AC34-AB34/200000)/(AA34-AB34)*(AF34-AE34)","v":5.4778181818181809E-2},{"$f":"MIN(AA34*$AD$29/1.25,AB34/1.1)","v":318.18181818181813},363.99999999999994,{"$f":"AE34/200000","v":1.5909090909090907E-3},363.99999999999994]

{"sheet":"1- MURATURA NEL PIANO","index":1,"n_rows":49,"n_cols":22,"rows_kept":49,"cut":false,"hidden":false,"merged":[[5,1,5,2],[0,1,2,9]]}
[null,"OTTOBRE \n2015",null,null,null,null,null,null,null,null,null,1,"fm","t","E","G","w","fvk,lim/fvdlim",null,"gm"]
[null,null,null,null,null,null,null,null,null,null,{"$f":"'0-MATERIALI'!U6","v":4},{"$f":"'0-MATERIALI'!B6","v":"MUR1"},{"$f":"IF(L2=\"\",\"\",'0-MATERIALI'!J6*'0-MATERIALI'!AQ6/'0-MATERIALI'!AN6)","v":1.9},{"$f":"IF(L2=\"\",\"\",'0-MATERIALI'!K6*'0-MATERIALI'!AR6/'0-MATERIALI'!AO6)","v":3.5000000000000003E-2},{"$f":"IF(L2=\"\",\"\",'0-MATERIALI'!L6*'0-MATERIALI'!AS6/'0-MATERIALI'!AP6)","v":1080},{"$f":"IF(L2=\"\",\"\",'0-MATERIALI'!M6*'0-MATERIALI'!AS6/'0-MATERIALI'!AP6)","v":360},{"$f":"IF(M2=\"\",\"\",'0-MATERIALI'!N6)","v":16},{"$f":"IF(M2=\"\",\"\",IF(M2<=4,IF(S2=1,MIN(2.2,1.5*M2),MIN(1.5,M2)),IF(S2=1,MIN(2.2,0.5*M2),MIN(1.5,0.35*M2))))","v":2.2000000000000002},{"$f":"'0-MATERIALI'!U2","v":1},"Analisi Pushover",1]
[null,null,null,null,null,null,null,null,null,null,{"$f":"'0-MATERIALI'!U7","v":""},{"$f":"'0-MATERIALI'!B7","v":""},{"$f":"IF(L3=\"\",\"\",'0-MATERIALI'!J7*'0-MATERIALI'!AQ7/'0-MATERIALI'!AN7)","v":""},{"$f":"IF(L3=\"\",\"\",'0-MATERIALI'!K7*'0-MATERIALI'!AR7/'0-MATERIALI'!AO7)","v":""},{"$f":"IF(L3=\"\",\"\",'0-MATERIALI'!L7*'0-MATERIALI'!AS7/'0-MATERIALI'!AP7)","v":""},{"$f":"IF(L3=\"\",\"\",'0-MATERIALI'!M7*'0-MATERIALI'!AS7/'0-MATERIALI'!AP7)","v":""},{"$f":"IF(M3=\"\",\"\",'0-MATERIALI'!N7)","v":""},{"$f":"IF(M3=\"\",\"\",IF(M3<=4,IF(S3=1,MIN(2.2,1.5*M3),MIN(1.5,M3)),IF(S3=1,MIN(2.2,0.5*M3),MIN(1.5,0.35*M3))))","v":""},null,"Analisi Spettro e Fattore q",2]
[null,"CARATTERISTICHE DEI MATERIALI",null,null,null,null,null,null,null,null,{"$f":"'0-MATERIALI'!U8","v":""},{"$f":"'0-MATERIALI'!B8","v":""},{"$f":"IF(L4=\"\",\"\",'0-MATERIALI'!J8*'0-MATERIALI'!AQ8/'0-MATERIALI'!AN8)","v":""},{"$f":"IF(L4=\"\",\"\",'0-MATERIALI'!K8*'0-MATERIALI'!AR8/'0-MATERIALI'!AO8)","v":""},{"$f":"IF(L4=\"\",\"\",'0-MATERIALI'!L8*'0-MATERIALI'!AS8/'0-MATERIALI'!AP8)","v":""},{"$f":"IF(L4=\"\",\"\",'0-MATERIALI'!M8*'0-MATERIALI'!AS8/'0-MATERIALI'!AP8)","v":""},{"$f":"IF(M4=\"\",\"\",'0-MATERIALI'!N8)","v":""},""]
[null,null,null,null,null,null,null,null,null,null,{"$f":"'0-MATERIALI'!U9","v":""},{"$f":"'0-MATERIALI'!B9","v":""},{"$f":"IF(L5=\"\",\"\",'0-MATERIALI'!J9*'0-MATERIALI'!AQ9/'0-MATERIALI'!AN9)","v":""},{"$f":"IF(L5=\"\",\"\",'0-MATERIALI'!K9*'0-MATERIALI'!AR9/'0-MATERIALI'!AO9)","v":""},{"$f":"IF(L5=\"\",\"\",'0-MATERIALI'!L9*'0-MATERIALI'!AS9/'0-MATERIALI'!AP9)","v":""},{"$f":"IF(L5=\"\",\"\",'0-MATERIALI'!M9*'0-MATERIALI'!AS9/'0-MATERIALI'!AP9)","v":""},{"$f":"IF(M5=\"\",\"\",'0-MATERIALI'!N9)","v":""},""]
[null,"MURATURA",null,null,null,null,null,null,null,null,{"$f":"'0-MATERIALI'!U10","v":""},{"$f":"'0-MATERIALI'!B10","v":""},{"$f":"IF(L6=\"\",\"\",'0-MATERIALI'!J10*'0-MATERIALI'!AQ10/'0-MATERIALI'!AN10)","v":""},{"$f":"IF(L6=\"\",\"\",'0-MATERIALI'!K10*'0-MATERIALI'!AR10/'0-MATERIALI'!AO10)","v":""},{"$f":"IF(L6=\"\",\"\",'0-MATERIALI'!L10*'0-MATERIALI'!AS10/'0-MATERIALI'!AP10)","v":""},{"$f":"IF(L6=\"\",\"\",'0-MATERIALI'!M10*'0-MATERIALI'!AS10/'0-MATERIALI'!AP10)","v":""},{"$f":"IF(M6=\"\",\"\",'0-MATERIALI'!N10)","v":""},""]
[null,"fm",{"$f":"INDEX($M$2:$M$11,$L$1)","v":1.9},"Mpa","resistenza media a compressione",null,null,null,null,null,{"$f":"'0-MATERIALI'!U11","v":""},{"$f":"'0-MATERIALI'!B11","v":""},{"$f":"IF(L7=\"\",\"\",'0-MATERIALI'!J11*'0-MATERIALI'!AQ11/'0-MATERIALI'!AN11)","v":""},{"$f":"IF(L7=\"\",\"\",'0-MATERIALI'!K11*'0-MATERIALI'!AR11/'0-MATERIALI'!AO11)","v":""},{"$f":"IF(L7=\"\",\"\",'0-MATERIALI'!L11*'0-MATERIALI'!AS11/'0-MATERIALI'!AP11)","v":""},{"$f":"IF(L7=\"\",\"\",'0-MATERIALI'!M11*'0-MATERIALI'!AS11/'0-MATERIALI'!AP11)","v":""},{"$f":"IF(M7=\"\",\"\",'0-MATERIALI'!N11)","v":""},""]
[null,"fmd",{"$f":"C7/C12","v":1.9},"Mpa","resistenza di calcolo a compressione verticale",null,null,null,null,null,{"$f":"'0-MATERIALI'!U12","v":""},{"$f":"'0-MATERIALI'!B12","v":""},{"$f":"IF(L8=\"\",\"\",'0-MATERIALI'!J12*'0-MATERIALI'!AQ12/'0-MATERIALI'!AN12)","v":""},{"$f":"IF(L8=\"\",\"\",'0-MATERIALI'!K12*'0-MATERIALI'!AR12/'0-MATERIALI'!AO12)","v":""},{"$f":"IF(L8=\"\",\"\",'0-MATERIALI'!L12*'0-MATERIALI'!AS12/'0-MATERIALI'!AP12)","v":""},{"$f":"IF(L8=\"\",\"\",'0-MATERIALI'!M12*'0-MATERIALI'!AS12/'0-MATERIALI'!AP12)","v":""},{"$f":"IF(M8=\"\",\"\",'0-MATERIALI'!N12)","v":""},""]
[null,"fhmd",{"$f":"IF(INDEX(K2:K11,L1)<=4,0.75,0.25)*C8","v":1.4249999999999998},"Mpa","resistenza di calcolo a compressione orizzontale",null,null,null,null,null,{"$f":"'0-MATERIALI'!U13","v":""},{"$f":"'0-MATERIALI'!B13","v":""},{"$f":"IF(L9=\"\",\"\",'0-MATERIALI'!J13*'0-MATERIALI'!AQ13/'0-MATERIALI'!AN13)","v":""},{"$f":"IF(L9=\"\",\"\",'0-MATERIALI'!K13*'0-MATERIALI'!AR13/'0-MATERIALI'!AO13)","v":""},{"$f":"IF(L9=\"\",\"\",'0-MATERIALI'!L13*'0-MATERIALI'!AS13/'0-MATERIALI'!AP13)","v":""},{"$f":"IF(L9=\"\",\"\",'0-MATERIALI'!M13*'0-MATERIALI'!AS13/'0-MATERIALI'!AP13)","v":""},{"$f":"IF(M9=\"\",\"\",'0-MATERIALI'!N13)","v":""},""]
[null,"fvko",{"$f":"IF(S2=1,1,IF('0-MATERIALI'!AA2=1,0.7,1))*INDEX($N$2:$N$11,$L$1)","v":3.5000000000000003E-2},"Mpa","resistenza caratteristica a taglio (to/FC)",null,null,null,null,null,{"$f":"'0-MATERIALI'!U14","v":""},{"$f":"'0-MATERIALI'!B14","v":""},{"$f":"IF(L10=\"\",\"\",'0-MATERIALI'!J14*'0-MATERIALI'!AQ14/'0-MATERIALI'!AN14)","v":""},{"$f":"IF(L10=\"\",\"\",'0-MATERIALI'!K14*'0-MATERIALI'!AR14/'0-MATERIALI'!AO14)","v":""},{"$f":"IF(L10=\"\",\"\",'0-MATERIALI'!L14*'0-MATERIALI'!AS14/'0-MATERIALI'!AP14)","v":""},{"$f":"IF(L10=\"\",\"\",'0-MATERIALI'!M14*'0-MATERIALI'!AS14/'0-MATERIALI'!AP14)","v":""},{"$f":"IF(M10=\"\",\"\",'0-MATERIALI'!N14)","v":""},""]
[null,"emu",3.5000000000000001E-3,null,"deformazione ultima a compressione",null,null,null,null,null,{"$f":"'0-MATERIALI'!U15","v":""},{"$f":"'0-MATERIALI'!B15","v":""},{"$f":"IF(L11=\"\",\"\",'0-MATERIALI'!J15*'0-MATERIALI'!AQ15/'0-MATERIALI'!AN15)","v":""},{"$f":"IF(L11=\"\",\"\",'0-MATERIALI'!K15*'0-MATERIALI'!AR15/'0-MATERIALI'!AO15)","v":""},{"$f":"IF(L11=\"\",\"\",'0-MATERIALI'!L15*'0-MATERIALI'!AS15/'0-MATERIALI'!AP15)","v":""},{"$f":"IF(L11=\"\",\"\",'0-MATERIALI'!M15*'0-MATERIALI'!AS15/'0-MATERIALI'!AP15)","v":""},{"$f":"IF(M11=\"\",\"\",'0-MATERIALI'!N15)","v":""},""]
[null,"gM",{"$f":"INDEX($U$2:$U$3,$S$2)","v":1},null,"coefficiente di sicurezza materiale"]
[null,"w",{"$f":"INDEX($Q$2:$Q$11,$L$1)*100","v":1600},"Kg/m3","densità di massa della muratura",null,null,null,null,null,null,"k=",{"$f":"U25","v":0.50264550264550267},null,"A",{"$f":"2/0.002","v":1000}]
[null,"E",{"$f":"INDEX($O$2:$O$11,$L$1)","v":1080},"Mpa","modulo normale elastico (si può assumere pari a 1000 x fm)",null,null,null,null,null,null,"elim=",{"$f":"C18*M13/2*(1/2-M13/3)/(1-M13/2)","v":385.0211266289005},"mm","B",{"$f":"1/(2*0.002)","v":250}]
[null,"fvk,lim",{"$f":"INDEX($R$2:$R$11,$L$1)","v":2.2000000000000002},"Mpa","resistenza massima a taglio da calcolo",null,null,null,null,null,null,"N1=",{"$f":"C8*C19*C18*(1-M13/2)/1000","v":2208.4107142857142},"KN"]
[null,null,null,null,null,null,null,null,null,null,null,"Nrd,u=",{"$f":"C8*C18*C19/1000","v":2949.75},"KN"]
[null,"GEOMETRIA PANNELLO MURARIO",null,null,null,null,null,null,null,null,null,"e",1.0637153982021281,"m"]
[null,"L",3450,"mm","larghezza sezione",null,null,null,null,null,null,"Msd=",{"$f":"MIN(M17*C25,ABS(R30))","v":67.279998936284599},"KNm"]
[null,"t",450,"mm","profondità sezione",null,null,null,null,null,null,"e1=",{"$f":"M18/Q30","v":0.94552479840189274},"mm"]
[null,"H",3100,"mm","altezza pannello",null,null,null,null,null,null,"d=",{"$f":"MIN(MAX(IF(M19=0,C18,3*(C18/2-ABS(M19)*1000)),C27),C18)","v":2338.4256047943218},"mm"]
[null,"Am",{"$f":"C18*C19","v":1552500},"mm2","Area sezione muratura"]
[]
[null,"ROTTURA A PRESSOFLESSIONE MURATURA (Calcolo elastico perfettamente plastico)"]
[null,null,null,null,null,null,null,null,null,null,null,"Tipo","x","xel","fmmin","N","Mu","a","b","c","Kel","so"]
[null,"N0",63.25,"KN",{"$f":"CONCATENATE(\"Sforzo normale agente sulla parete < Nmax= \",INT(C18*C19*C8/1000),\"KN\")","v":"Sforzo normale agente sulla parete < Nmax= 2949KN"},null,null,null,null,null,null,1,{"$f":"IF(V25*C18/(C26*(1-C26/(2*C14*C11)))<=C18,V25*C18/(C26*(1-C26/(2*C14*C11))),C18+10)","v":98.809745211084262},{"$f":"M25*U25","v":49.666274047899499},null,{"$f":"C26*C19*(M25-N25/2)/1000","v":63.250000000000014},{"$f":"(C26*C19/2*(M25-N25)*(C18-M25+N25)-C26*C19*N25/2*(M25-2*N25/3-C18/2))/1000000","v":106.67886219712273},null,null,null,{"$f":"C26/C14/C11","v":0.50264550264550267},{"$f":"C25*1000/(C18*C19)","v":4.0740740740740744E-2}]
[null,"fd",{"$f":"C8","v":1.9},"Mpa","Tensione di calcolo a compressione della muratura",null,null,null,null,null,null,2,{"$f":"IF(S26^2-4*R26*T26>=0,(-S26-SQRT(S26^2-4*R26*T26))/(2*R26),C18)","v":1870.6044743782545},{"$f":"M26*U26","v":940.25092627478409},{"$f":"MIN(MAX(C26/N26*(M26-C18),0),C26)","v":0},{"$f":"(C26*C18*C19-(C26-O26)*C19/2*(C18-M26+N26))/1000","v":1872.6011418142336},{"$f":"(C26-O26)*C19/2*(C18-M26+N26)*(C18/2-(C18-M26+N26)/3)/1000000","v":953.40368080639223},{"$f":"C26*C19/2*(1-U26)^2","v":105.74703955656335},{"$f":"(V25*C18*C19*U26-C26*C18*C19)","v":-2917957.6719576721},{"$f":"C26*C19*C18^2/2","v":5088318750},{"$f":"C26/C14/C11","v":0.50264550264550267},{"$f":"C25*1000/(C18*C19)","v":4.0740740740740744E-2}]
[null,"x",{"$f":"IF(C25<=0,0,IF(M29<=C18,M29,M30))","v":91.382868937048514},"mm","posizione asse neutro rispetto al lembo compresso"]
[null,"Mu",{"$f":"IF(C25<=0,0,IF(M18=0,1,SIGN(M18))*IF(M29<=C18,R29,R30))","v":106.7019782371153},"KNm","Momento ultimo a pressoflessione",null,null,null,null,null,null,null,"x","x2","x3","e3","N","M","xmax"]
[null,"NRes",{"$f":"IF(C25<=0,0,IF(M29<=C18,Q29,Q30))","v":63.250000000000007},"KN","Sforzo normale resistente",null,null,null,null,null,null,1,{"$f":"C25*1000/(C8*C19*($P$13*0.002^2/C11*(1/2-$P$14/3*0.002)+(1-0.002/C11)))","v":91.382868937048514},{"$f":"M29/C11*0.002","v":52.218782249742006},0,0,{"$f":"IF(M29<=S29,($P$13*C8*C19*0.002*N29*(1/2-$P$14/3*0.002)+C8*C19*(M29-N29))/1000,0)","v":63.250000000000007},{"$f":"IF(M29<=S29,($P$13*C8*C19*0.002*N29^2*(1/3-$P$14/4*0.002)+C8*C19/2*(M29^2-N29^2)-1000*Q29*(M29-C18/2))/1000000,0)","v":106.7019782371153},{"$f":"C18","v":3450},"asse neutro interno alla sezione"]
[null,"ROTTURA A TAGLIO PER SCORRIMENTO",null,null,null,null,null,null,null,null,null,2,102.80572755417944,{"$f":"M30/C11*0.002","v":58.746130030959677},{"$f":"MAX(0,M30-S29)","v":0},{"$f":"0.002/N30*O30","v":0},{"$f":"IF(M30<=S30,($P$13*C8*C19*0.002*N30*(1/2-$P$14/3*0.002)+C8*C19*(M30-N30)-$P$13*C8*C19*P30*O30*(1/2-$P$14*P30/3))/1000,M16)","v":71.156249999999915},{"$f":"IF(M30<=S30,($P$13*C8*C19*0.002*N30^2*(1/3-$P$14/4*0.002)+C8*C19/2*(M30^2-N30^2)-$P$13*C8*C19*P30*O30^2*(1/3-$P$14*P30/4)-1000*Q30*(M30-C18/2))/1000000,0)","v":119.70162480009888},{"$f":"C18/(C11-0.002+0.00000000001)*C11","v":8049.9999463333343},"asse neutro esterno alla sezione"]
[null,null,null,null,null,null,null,null,null,null,null,null,null,null,null,null,null,{"$f":"R30/Q30","v":1.6822362729921689},{"$f":"IF(C25<M16,Q30-C25,(R30/Q30-ABS(M17))*1000)","v":7.9062499999999147},"funzione"]
[null,"L'",{"$f":"M20","v":2338.4256047943218},"mm","zona compressa della muratura"]
[null,"fvd",{"$f":"MIN(C15/C12,IF(C32>0,MAX(0,MIN(IF(S2=1,2.2,1.5),IF(S2=1,2,1.4)*C12*C8,C10/C12+MIN(C8,V25)*C18/C32*0.4/C12)),C10/C12))","v":5.9042767110894387E-2},"Mpa","tensione di calcolo a taglio"]
[null,"Vt",{"$f":"IF(C25<=0,0,MAX(0,C32*C19*C33/1000))","v":62.130203275510574},"KN","Taglio per rottura a scorrimento"]
[null,"tu",{"$f":"C34/C18/C19*1000","v":4.001945460580391E-2},"Mpa","Tensione di taglio per rottura a scorrimento"]
[]
[null,"ROTTURA A TAGLIO PER FESSURAZIONE DIAGONALE"]
[]
[null,"b/h",{"$f":"MIN(MAX(1,C20/C18),1.5)","v":1},null,"Coefficiente adimensionale"]
[null,"ftd",{"$f":"INDEX($N$2:$N$11,$L$1)*1.5/C12","v":5.2500000000000005E-2},"Mpa","resistenza a trazione per fessurazione diagonale"]
[null,"Vt",{"$f":"IF(C25<=0,0,C18*C19/C39*C40*SQRT(1+MAX(0,MIN(C8,V25))/C40)/1000)","v":108.62108037375849},"KN","Taglio per rottura a fessurazione diagonale"]
[null,"tu",{"$f":"C41/C18/C19*1000","v":6.9965269161841218E-2},"Mpa","tensione di taglio per fessurazione diagonale"]
[]
[null,"SOMMARIO RISULTATI"]
[]
[null,"Mu",{"$f":"C28","v":106.7019782371153},"KNm","Momento ultimo a pressoflessione"]
[null,"Tu",{"$f":"MIN(C34,C41,C28*2000/C20)","v":62.130203275510574},"KN","Taglio ultimo",null,{"$f":"IF(C46/C20*2>C34,\"Rottura a taglio per fessurazione diagonale\",IF(C46/C20*2>C41,\"Rottura a taglio per scorrimento\",\"Rottura a taglio per flessione\"))","v":"Rottura a taglio per flessione"}]
[null,"fd",{"$f":"C26","v":1.9},"Mpa","tensione di calcolo a compressione"]
[null,"tu",{"$f":"MIN(C35,C42)","v":4.001945460580391E-2},"Mpa","tensione resistente a taglio"]

{"sheet":"2-CONFINAMENTO CAM NEL PIANO","index":2,"n_rows":107,"n_cols":28,"rows_kept":107,"cut":false,"hidden":false,"merged":[[14,1,14,2],[5,1,5,2],[0,1,2,9]]}
[null,"OTTOBRE \n2015"]
[]
[]
[null,"CARATTERISTICHE DEI MATERIALI"]
[]
[null,{"$f":"'0-MATERIALI'!B23:C23","v":"Nastro Inox 301"}]
[null,"Ef",200000,"Mpa","Modulo elastico"]
[null,"ftk",{"$f":"'0-MATERIALI'!D22","v":1000},"Mpa","tensione di rottura nastro orizzontale"]
[null,"fyk",{"$f":"'0-MATERIALI'!E22","v":650},"Mpa","tensione di snervamento nastro orizzontale"]
[null,"fyd",{"$f":"'0-MATERIALI'!F22","v":560},"Mpa","tensione di calcolo nastro orizzontale"]
[null,"fp",100,"Mpa","tensione di pretensionamento",null,null,null,null,null,null,{"$f":"'1- MURATURA NEL PIANO'!L1","v":1},"fm","t","E","G","w","Diatono"]
[null,"er",{"$f":"'0-MATERIALI'!I22","v":2.8E-3},null,"deformazione ultima a rottura",null,null,null,null,null,null,{"$f":"'0-MATERIALI'!B6","v":"MUR1"},{"$f":"IF($L12=\"\",\"\",'0-MATERIALI'!J6)","v":1.9},{"$f":"IF($L12=\"\",\"\",'0-MATERIALI'!K6)","v":3.5000000000000003E-2},{"$f":"IF($L12=\"\",\"\",'0-MATERIALI'!L6)","v":1080},{"$f":"IF($L12=\"\",\"\",'0-MATERIALI'!M6)","v":360},{"$f":"IF($L12=\"\",\"\",'0-MATERIALI'!N6)","v":16},{"$f":"IF($L12=\"\",\"\",'0-MATERIALI'!AT6/'0-MATERIALI'!AH6)","v":1.5}]
[null,"gM2",1.25,null,"coefficiente parziale collegamento sigillo",null,null,null,null,null,null,{"$f":"'0-MATERIALI'!B7","v":""},{"$f":"IF($L13=\"\",\"\",'0-MATERIALI'!J7)","v":""},{"$f":"IF($L13=\"\",\"\",'0-MATERIALI'!K7)","v":""},{"$f":"IF($L13=\"\",\"\",'0-MATERIALI'!L7)","v":""},{"$f":"IF($L13=\"\",\"\",'0-MATERIALI'!M7)","v":""},{"$f":"IF($L13=\"\",\"\",'0-MATERIALI'!N7)","v":""},{"$f":"IF($L13=\"\",\"\",'0-MATERIALI'!AT7/'0-MATERIALI'!AH7)","v":""}]
[null,null,null,null,null,null,null,null,null,null,null,{"$f":"'0-MATERIALI'!B8","v":""},{"$f":"IF($L14=\"\",\"\",'0-MATERIALI'!J8)","v":""},{"$f":"IF($L14=\"\",\"\",'0-MATERIALI'!K8)","v":""},{"$f":"IF($L14=\"\",\"\",'0-MATERIALI'!L8)","v":""},{"$f":"IF($L14=\"\",\"\",'0-MATERIALI'!M8)","v":""},{"$f":"IF($L14=\"\",\"\",'0-MATERIALI'!N8)","v":""},{"$f":"IF($L14=\"\",\"\",'0-MATERIALI'!AT8/'0-MATERIALI'!AH8)","v":""},{"$f":"IF($L14=\"\",\"\",'0-MATERIALI'!AT8)","v":""}]
[null,{"$f":"INDEX(L12:L21,L11)","v":"MUR1"},null,null,null,null,null,null,null,null,null,{"$f":"'0-MATERIALI'!B9","v":""},{"$f":"IF($L15=\"\",\"\",'0-MATERIALI'!J9)","v":""},{"$f":"IF($L15=\"\",\"\",'0-MATERIALI'!K9)","v":""},{"$f":"IF($L15=\"\",\"\",'0-MATERIALI'!L9)","v":""},{"$f":"IF($L15=\"\",\"\",'0-MATERIALI'!M9)","v":""},{"$f":"IF($L15=\"\",\"\",'0-MATERIALI'!N9)","v":""},{"$f":"IF($L15=\"\",\"\",'0-MATERIALI'!AT9/'0-MATERIALI'!AH9)","v":""},{"$f":"IF($L15=\"\",\"\",'0-MATERIALI'!AT9)","v":""}]
[null,"fm",{"$f":"INDEX(M$12:M$21,$L$11)","v":1.9},"Mpa",{"$f":"'1- MURATURA NEL PIANO'!E7","v":"resistenza media a compressione"},null,null,null,null,null,null,{"$f":"'0-MATERIALI'!B10","v":""},{"$f":"IF($L16=\"\",\"\",'0-MATERIALI'!J10)","v":""},{"$f":"IF($L16=\"\",\"\",'0-MATERIALI'!K10)","v":""},{"$f":"IF($L16=\"\",\"\",'0-MATERIALI'!L10)","v":""},{"$f":"IF($L16=\"\",\"\",'0-MATERIALI'!M10)","v":""},{"$f":"IF($L16=\"\",\"\",'0-MATERIALI'!N10)","v":""},{"$f":"IF($L16=\"\",\"\",'0-MATERIALI'!AT10/'0-MATERIALI'!AH10)","v":""},{"$f":"IF($L16=\"\",\"\",'0-MATERIALI'!AT10)","v":""}]
[null,"fmd",{"$f":"C16/C21","v":1.9},"Mpa",{"$f":"'1- MURATURA NEL PIANO'!E8","v":"resistenza di calcolo a compressione verticale"},null,null,null,null,null,null,{"$f":"'0-MATERIALI'!B11","v":""},{"$f":"IF($L17=\"\",\"\",'0-MATERIALI'!J11)","v":""},{"$f":"IF($L17=\"\",\"\",'0-MATERIALI'!K11)","v":""},{"$f":"IF($L17=\"\",\"\",'0-MATERIALI'!L11)","v":""},{"$f":"IF($L17=\"\",\"\",'0-MATERIALI'!M11)","v":""},{"$f":"IF($L17=\"\",\"\",'0-MATERIALI'!N11)","v":""},{"$f":"IF($L17=\"\",\"\",'0-MATERIALI'!AT11/'0-MATERIALI'!AH11)","v":""},{"$f":"IF($L17=\"\",\"\",'0-MATERIALI'!AT11)","v":""}]
[null,"fhmd",{"$f":"'1- MURATURA NEL PIANO'!C9","v":1.4249999999999998},"Mpa",{"$f":"'1- MURATURA NEL PIANO'!E9","v":"resistenza di calcolo a compressione orizzontale"},null,null,null,null,null,null,{"$f":"'0-MATERIALI'!B12","v":""},{"$f":"IF($L18=\"\",\"\",'0-MATERIALI'!J12)","v":""},{"$f":"IF($L18=\"\",\"\",'0-MATERIALI'!K12)","v":""},{"$f":"IF($L18=\"\",\"\",'0-MATERIALI'!L12)","v":""},{"$f":"IF($L18=\"\",\"\",'0-MATERIALI'!M12)","v":""},{"$f":"IF($L18=\"\",\"\",'0-MATERIALI'!N12)","v":""},{"$f":"IF($L18=\"\",\"\",'0-MATERIALI'!AT12/'0-MATERIALI'!AH12)","v":""},{"$f":"IF($L18=\"\",\"\",'0-MATERIALI'!AT12)","v":""}]
[null,"fvko",{"$f":"'1- MURATURA NEL PIANO'!C10","v":3.5000000000000003E-2},"Mpa",{"$f":"'1- MURATURA NEL PIANO'!E10","v":"resistenza caratteristica a taglio (to/FC)"},null,null,null,null,null,null,{"$f":"'0-MATERIALI'!B13","v":""},{"$f":"IF($L19=\"\",\"\",'0-MATERIALI'!J13)","v":""},{"$f":"IF($L19=\"\",\"\",'0-MATERIALI'!K13)","v":""},{"$f":"IF($L19=\"\",\"\",'0-MATERIALI'!L13)","v":""},{"$f":"IF($L19=\"\",\"\",'0-MATERIALI'!M13)","v":""},{"$f":"IF($L19=\"\",\"\",'0-MATERIALI'!N13)","v":""},{"$f":"IF($L19=\"\",\"\",'0-MATERIALI'!AT13/'0-MATERIALI'!AH13)","v":""},{"$f":"IF($L19=\"\",\"\",'0-MATERIALI'!AT13)","v":""}]
[null,"emu",{"$f":"'1- MURATURA NEL PIANO'!C11","v":3.5000000000000001E-3},null,{"$f":"'1- MURATURA NEL PIANO'!E11","v":"deformazione ultima a compressione"},null,null,null,null,null,null,{"$f":"'0-MATERIALI'!B14","v":""},{"$f":"IF($L20=\"\",\"\",'0-MATERIALI'!J14)","v":""},{"$f":"IF($L20=\"\",\"\",'0-MATERIALI'!K14)","v":""},{"$f":"IF($L20=\"\",\"\",'0-MATERIALI'!L14)","v":""},{"$f":"IF($L20=\"\",\"\",'0-MATERIALI'!M14)","v":""},{"$f":"IF($L20=\"\",\"\",'0-MATERIALI'!N14)","v":""},{"$f":"IF($L20=\"\",\"\",'0-MATERIALI'!AT14/'0-MATERIALI'!AH14)","v":""},{"$f":"IF($L20=\"\",\"\",'0-MATERIALI'!AT14)","v":""}]
[null,"gM",{"$f":"'1- MURATURA NEL PIANO'!C12","v":1},null,"coefficiente di sicurezza materiale",null,null,null,null,null,null,{"$f":"'0-MATERIALI'!B15","v":""},{"$f":"IF($L21=\"\",\"\",'0-MATERIALI'!J15)","v":""},{"$f":"IF($L21=\"\",\"\",'0-MATERIALI'!K15)","v":""},{"$f":"IF($L21=\"\",\"\",'0-MATERIALI'!L15)","v":""},{"$f":"IF($L21=\"\",\"\",'0-MATERIALI'!M15)","v":""},{"$f":"IF($L21=\"\",\"\",'0-MATERIALI'!N15)","v":""},{"$f":"IF($L21=\"\",\"\",'0-MATERIALI'!AT15/'0-MATERIALI'!AH15)","v":""},{"$f":"IF($L21=\"\",\"\",'0-MATERIALI'!AT15)","v":""}]
[null,"w",{"$f":"INDEX(Q$12:Q$21,$L$11)*100","v":1600},"Kg/m3",{"$f":"'1- MURATURA NEL PIANO'!E13","v":"densità di massa della muratura"}]
[null,"E",{"$f":"INDEX(O$12:O$21,$L$11)","v":1080},"Mpa",{"$f":"'1- MURATURA NEL PIANO'!E14","v":"modulo normale elastico (si può assumere pari a 1000 x fm)"}]
[null,{"$f":"'1- MURATURA NEL PIANO'!B15","v":"fvk,lim"},{"$f":"'1- MURATURA NEL PIANO'!C15","v":2.2000000000000002},{"$f":"'1- MURATURA NEL PIANO'!D15","v":"Mpa"},{"$f":"'1- MURATURA NEL PIANO'!E15","v":"resistenza massima a taglio da calcolo"}]
[]
[null,"GEOMETRIA PANNELLO MURARIO"]
[null,"L",{"$f":"'1- MURATURA NEL PIANO'!C18","v":3450},"mm","larghezza sezione"]
[null,"t",{"$f":"'1- MURATURA NEL PIANO'!C19","v":450},"mm","profondità sezione"]
[null,"b'",{"$f":"C44","v":840},"mm","larghezza ridotta"]
[null,"d'",{"$f":"C28-2*$C$31","v":390},"mm","profondità ridotta"]
[null,"rf",30,"mm","raggio curvatura spigoli (se quadrata/rettangolare >20mm)"]
[null,"Ag",{"$f":"(C29+2*C31)*(C30+2*C31)","v":405000},"mm2","Area singola sezione muratura rinforzata"]
[]
[null,"GEOMETRIA RINFORZO"]
[null,"Modo","Q",null,"(Q=Quinconce, N=Normale)"]
[null,"no,nastri",3,null,"numero di nastri orizzontali sovrapposti"]
[null,"nv,nastri",1,null,"numero di nastri verticali sovrapposti"]
[null,"tfs",{"$f":"'0-MATERIALI'!L22","v":0.9},"mm","spessore singolo nastro"]
[null,"tfo",{"$f":"C38*C36","v":2.7},"mm","spessore totale nastri orizzontali"]
[null,"Fn",{"$f":"C38*C41*C10*C37","v":9576},"N","forza pretensionamento per la striscia di nastri verticali sovrapposti"]
[null,"bf",{"$f":"'0-MATERIALI'!K23","v":19},"mm","larghezza striscia rinforzo"]
[null,"pfh",500,"mm","passo orizzontale (nastri verticali)",null,null,{"$f":"CONCATENATE(\"(Consigliato \",C28,\"<pfh<\",MROUND(((2*C31+3*C28)+SQRT((-(2*C31+3*C28))^2-4*1*((C28-C31)^2+C31^2)))/(2*1),100),\"mm)\")","v":"(Consigliato 450<pfh<1300mm)"}]
[null,"pfv",250,"mm","passo verticale (nastri orizzontali)",null,null,{"$f":"CONCATENATE(\"(Consigliato pfv<\",MROUND(2*MIN(C44+2*C31,C28),100),\"mm)\")","v":"(Consigliato pfv<900mm)"}]
[null,"p'fh",{"$f":"IF(OR(C42=0,C27<C42),C27,IF($C$35=\"Q\",MIN(C27,2*Q55),MIN(C27,Q55))-2*C31)","v":840},"mm","passo orizzontale del rinforzo efficace"]
[null,"p'fv",{"$f":"IF(C43=0,'1- MURATURA NEL PIANO'!C20,C43-C41)","v":231},"mm","passo verticale del rinforzo efficace"]
[null,"rf",{"$f":"IF(OR(C43=0,C43=\"\"),0,AVERAGE(V47:V48))","v":1.369802371541502E-3},null,"percentuale geometrica del rinforzo",null,null,null,null,null,null,null,null,null,null,"Confinamento","csx","cdx","passoh","nb","Ab","ry","KH"]
[null,"A,ang",0,"mmq","Eventuali nastri verticali sullo spigolo",null,null,null,null,null,null,null,"eyel,sp",{"$f":"N49/C7","v":1.8199999999999998E-3},null,"Fila1",{"$f":"$Q$54","v":150},{"$f":"IF(Q47=0,0,IF($C$35=\"Q\",IF((Q52/2)>1,0,$Q$53)+$Q$54,$Q$54))","v":150},{"$f":"IF(OR(AND($C$35=\"Q\",T47>2),AND($C$35=\"N\",T47>1)),IF(AND($C$35=\"Q\",Q47>0),IF($Q$52>2,2*Q53,0),Q53),0)","v":900},{"$f":"IF(C35=\"Q\",CEILING(Q52/2,1),Q52)","v":4},{"$f":"2*C41*(C39+C37*N54*N52/C10)","v":122.03181818181818},{"$f":"MIN(4*$C$39*$C$41/($C$28*$C$43),(4*$C$39*$C$41+2*T47*U47)/($C$27*$C$43))","v":1.369802371541502E-3},{"$f":"MAX(0,1-((S47-2*$C$31)^2*(T47-1)+($C$30)^2+(Q47-2*$C$31)^2+(R47-2*$C$31)^2)/(3*$C$27*$C$28))","v":0.5093719806763285},{"$f":"W47*V47","v":6.9773894712722695E-4},{"$f":"AVERAGE(V47:V48)","v":1.369802371541502E-3},{"$f":"AVERAGE(W47:W48)","v":0.44850241545893721},{"$f":"Z47*Y47","v":6.1435967233774427E-4},{"$f":"AVERAGE(X47:X48)","v":6.1435967233774416E-4}]
[null,null,null,null,null,null,null,null,null,null,null,null,"fyd,n,sp",{"$f":"'0-MATERIALI'!F24","v":318.18181818181813},"Mpa","Fila2",{"$f":"IF(C35=\"Q\",IF(Q47<Q53,Q53+Q47,R47),Q47)","v":600},{"$f":"IF(C35=\"Q\",IF(R47<Q53,Q53+R47,Q47),R47)","v":600},{"$f":"IF(OR(AND($C$35=\"Q\",T48>2),AND($C$35=\"N\",T48>1)),IF(AND($C$35=\"Q\",Q48>0),IF($Q$52>2,2*Q53,0),Q53),0)","v":900},{"$f":"IF(C35=\"Q\",FLOOR(Q52/2,1),Q52)","v":4},{"$f":"2*C41*(C39+C37*N54*N52/C10)","v":122.03181818181818},{"$f":"MIN(4*$C$39*$C$41/($C$28*$C$43),(4*$C$39*$C$41+2*T48*U48)/($C$27*$C$43))","v":1.369802371541502E-3},{"$f":"MAX(0,1-((S48-2*$C$31)^2*(T48-1)+($C$30)^2+(Q48-2*$C$31)^2+(R48-2*$C$31)^2)/(3*$C$27*$C$28))","v":0.38763285024154592},{"$f":"W48*V48","v":5.3098039754826147E-4}]
[null,"COEFFICIENTE DI EFFICIENZA DEL RINFORZO",null,null,null,null,null,null,null,null,null,null,"fyu,n,sp",{"$f":"IF('0-MATERIALI'!C21=\"Elasto-plastico incrudente\",'0-MATERIALI'!P24,N48)","v":363.99999999999994},"Mpa"]
[null,"Kv",{"$f":"IF(C36=0,0,(1-MIN(MAX(C45,0)/(2*MIN(C27,C28)),1))^2)","v":0.5525444444444445},null,"coefficiente di efficienza verticale",null,null,null,null,null,null,null,"eyel,v",{"$f":"N52/C7","v":1.5909090909090907E-3}]
[null,"K'",{"$f":"C22/1000","v":1.6},null,"coefficiente di incremento di resistenza",null,null,null,null,null,null,null,"fyd,uv",{"$f":"IF('0-MATERIALI'!C21=\"Elasto-plastico incrudente\",'0-MATERIALI'!P23,N52)","v":363.99999999999994},"Mpa"]
[null,"Kh",{"$f":"IF(C36=0,0,AVERAGE(W47:W48))","v":0.44850241545893721},null,"coefficiente di efficienza orizzontale",null,null,null,null,null,null,null,"fyd,v",{"$f":"'0-MATERIALI'!F23","v":318.18181818181813},"Mpa","n°vert",{"$f":"IF(C42>C27,0,IF(OR(C37=0,C37=\"\",C47>0),INT(C27/(C42+1))+1,INT((C27-2*150)/(0.9*C42)+1)))","v":8}]
[null,"Keff",{"$f":"C50*C52","v":0.24781751798174989},null,"coefficiente di efficienza efficace",null,null,null,null,null,null,null,"bf,v",{"$f":"'0-MATERIALI'!K23","v":19},"mm","passo",{"$f":"IF(Q52=0,C27,IF(OR(C37=0,C37=\"\",C47>0),C42,IF(Q52=1,0,(C27-2*150)/(Q52-1))))","v":450}]
[null,null,null,null,null,null,null,null,null,null,null,null,"tn,v",{"$f":"'0-MATERIALI'!L23","v":0.9},"mm","copriferro",{"$f":"IF(Q52=0,0,IF(OR(C37=0,C37=\"\",C47>0),(C27-(Q52-1)*Q53)/2,150))","v":150}]
[null,"RESISTENZA E DEFORMAZIONE ULTIMA DI CALCOLO MURATURA CONFINATA  ",null,null,null,null,null,null,null,null,null,null,"tn,v,tot",{"$f":"N54*C37","v":0.9},"mm","passo medio",{"$f":"Q53","v":450},"mm"]
[null,"C,diatono",{"$f":"IF(AND('0-MATERIALI'!J29=\"SI\",C61>1.1*C20),INDEX(R12:R21,L11),1)","v":1.5},null,"coefficiente miglioramento CAM effetto diatono",null,null,null,null,null,null,null,"efu",{"$f":"MIN(0.12,IF(C47=0,'0-MATERIALI'!I23,MIN('0-MATERIALI'!I24,'0-MATERIALI'!I23)))","v":5.4778181818181809E-2},null,"yf",{"$f":"IF(SUM(U60:U81)=0,C68,U59)","v":264.58012436142781},"mm"]
[null,"f1",{"$f":"0.5*(C46*C10)","v":0.38354466403162057},"Mpa","pressione di confinamento",null,null,null,null,null,null,null,"Nrdmax",{"$f":"C59*C27*C28/1000","v":6008.0358811952156},"KN","nf",{"$f":"Q52","v":8},"numero posizioni verticali"]
[null,"f1eff",{"$f":"C57*C53","v":9.5049086675460359E-2},"Mpa","pressione efficace di confinamento",null,null,null,null,null,null,null,"Nrdmin",{"$f":"-Q57*2*(C37*C38)*C41*N51/1000-C47*2*2*N48/1000","v":-99.590399999999988},"KN",null,null,null,null,null,{"$f":"SUM(U60:U81)/SUM(Q60:Q81)","v":1873.3328128105422}]
[null,"fmcd",{"$f":"C17*IF('0-MATERIALI'!B29=\"SI\",C56*(1+C51*(C58/C17)^0.5),1)","v":3.8699103904639069},"Mpa","resistenza di progetto della muratura confinata con effetto diatono",null,null,null,null,null,null,null,"b",{"$f":"C28","v":450},"mm",null,"Fnastri","fy","ey",null,{"$f":"SUM(T60:T81)/SUM(S60:S81)/(N55*N53*9*2)","v":264.58012436142781},{"$f":"0.8*C27","v":2760}]
[null,null,"fmcd / fmd=",{"$f":"C59/C17","v":2.0367949423494247},null,null,null,null,null,null,null,null,"x",132.59491529683243,"mm",1,{"$f":"2*$N$53*$N$55*R60","v":-5331.6319797388715},{"$f":"IF(S60<0,IF(S60>-$N$50,S60*$C$7,MAX(-$N$51,-$N$52+($N$51-$N$52)/($N$56-$N$50+0.0000001)*(S60+$N$50))),0)","v":-155.89567192218922},{"$f":"MIN(0,IF($Q$57>=P60,IF($N$60>0,-$N$65+($N$60-R84)/$N$60*$N$63,-$N$56/($N$60-MAX($R$84:$R$103))*($N$60-R84)),0))","v":-7.7947835961094617E-4},{"$f":"MIN(0,S60*R84)*2*$N$53*$N$55","v":-3.9987239848041538},{"$f":"Q60*R84","v":-799744.79696083069}]
[null,"emu,c",{"$f":"C20+IF('0-MATERIALI'!D29=\"SI\",0.015*SQRT(C58/C17),0)","v":6.8549683896839027E-3},null,"deformazione ultima a compressione muratura confinata",null,null,null,null,null,null,null,"x2",{"$f":"IF(N64/N63*N60<N67,N67,IF(N63<N64,N60,N64/N63*N60))","v":115.64476875907745},"mm",2,{"$f":"2*$N$53*$N$55*R61","v":-11087.195227028205},{"$f":"IF(S61<0,IF(S61>-$N$50,S61*$C$7,MAX(-$N$51,-$N$52+($N$51-$N$52)/($N$56-$N$50+0.0000001)*(S61+$N$50))),0)","v":-324.18699494234517},{"$f":"MIN(0,IF($Q$57>=P61,IF($N$60>0,-$N$65+($N$60-R85)/$N$60*$N$63,-$N$56/($N$60-MAX($R$84:$R$103))*($N$60-R85)),0))","v":-8.5619315536241448E-3},{"$f":"MIN(0,S61*R85)*2*$N$53*$N$55","v":-175.69083548036747},{"$f":"Q61*R85","v":-6652317.1362169236}]
[null,"NRes",{"$f":"C59*C27*C28/1000","v":6008.0358811952156},"KN","resistenza massima a compressione centrata",null,null,null,null,null,null,null,"fmd",{"$f":"C59","v":3.8699103904639069},"Mpa",3,{"$f":"2*$N$53*$N$55*R62","v":-11316.478269798554},-330.89117747948984,-1.6344384747637341E-2,{"$f":"MIN(0,S62*R86)*2*$N$53*$N$55","v":-586.92685628765696},{"$f":"Q62*R86","v":-11882302.183288481}]
[null,null,null,null,null,null,null,null,null,null,null,null,"emu",{"$f":"IF(N60<0,N56/(C27-N60)*N60,IF(OR(C47>0,C67>0),IF(C61/N60*(MAX(R84:R105)-N60)>N56,N56/(MAX(R84:R105)-N60)*N60,C61),C61))","v":2.2931416045816511E-3},null,4,-11545.761312568902,-337.59536001663452,-2.412683794165054E-2,-1237.7067864066728,-17318641.968853354]
[null,"ROTTURA A PRESSOFLESSIONE MURATURA (Calcolo elastico perfettamente plastico)",null,null,null,null,null,null,null,null,null,null,"em2",2E-3,null,5,-11775.044355339249,-344.29954255377919,-3.1909291135663737E-2,-2128.0306258374148,-22961336.492911536]
[null,"so",{"$f":"('1- MURATURA NEL PIANO'!C25*1000+C11*(C41*C38*2*Q57*C37+C47*4))/(C27*C28)","v":5.8363929146537839E-2},"Mpa","Tensione verticale media (inclusa pretensione nastri verticali)",null,null,null,null,null,null,null,"epret",{"$f":"C11/209000","v":4.7846889952153111E-4},null,6,-12004.327398109597,-351.00372509092387,-3.969174432967694E-2,-3257.8983745798832,-28810385.755463034]
[null,"fmd",{"$f":"C59","v":3.8699103904639069},"Mpa","Tensione di calcolo a compressione della muratura",null,null,null,null,null,null,null,"em3",{"$f":"N64/N61*N67","v":0},null,7,-12233.610440879946,-357.70790762806854,-4.7474197523690136E-2,-4627.3100326340773,-34865789.756507844]
[null,"Ainoxm",{"$f":"IF(OR(C42=0,C42=\"\"),0,2*C38*C37*C41*(MAX(0,INT(C27/C42)))/C27)","v":5.9478260869565223E-2},"mm2/mm","densità rinforzo nastri verticali",null,null,null,null,null,null,null,"x3",{"$f":"MAX(0,N60-C27)","v":0},"mm",8,-12448.8,-363.99999999999994,-5.5256650717703332E-2,-6236.2655999999979,-41081040]
[null,"x",{"$f":"IF(ABS(N72)<0.001,N60,0)","v":0},"mm","zona compressa della muratura",null,null,null,null,null,null,null,null,null,null,9,0,0,0,0,0]
[null,"Mu",{"$f":"IF(ABS(N72)>0.001,0,IF(N74=0,1,SIGN(N74))*N71)","v":0},"KNm","Momento ultimo a pressoflessione",null,null,null,null,null,null,null,"Nsd",{"$f":"'1- MURATURA NEL PIANO'!C25","v":63.25},"KN",10,0,0,0,0,0]
[null,null,null,null,null,null,null,null,null,null,null,null,"NRd",{"$f":"IF(N60>0,(1000*N62*N59*N64*N61*(1/2-250/3*N64)+N62*N59*(N60-N61)-1000*N62*N59*N66*N67*(1/2-250/3*N66)),0)/1000+SUM(Q60:Q81)/1000","v":76.035615376456306},"KN",11,0,0,0,0,0]
[null,"ROTTURA A TAGLIO PER SCORRIMENTO",null,null,null,null,null,null,null,null,null,null,"MRd",{"$f":"IF(N60>0,(1000*N62*N59*N64*N61^2*(1/3-250/4*N64)+N62*N59/2*(N60^2-N61^2)-1000*N62*N59*N66*N67^2*(1/3-250/4*N66)),0)/1000000+SUMPRODUCT(Q60:Q81,T84:T105)/1000000+N70*(C27/2-N60)/1000","v":287.18464755236624},"KNm",12,0,0,0,0,0]
[null,null,null,null,null,null,null,null,null,null,null,null,"funzione",{"$f":"IF(AND(N69>=N58,N69<=N57),N70-N69,(N75-N71/(N70+0.00000001))*1000)","v":12.785615376456306},null,13,0,0,0,0,0]
[null,"d",{"$f":"IF(C68<=0,C27,IF(C69=0,0,IF(C47>0,R105,IF(C67>0,0.9/0.9*MAX(R84:R103),N76))))","v":3450},"mm","distanza tra lembo compresso e baricentro teso",null,null,null,null,null,null,null,"Ncomp",{"$f":"(1000*N62*N59*N64*N61*(1/2-250/3*N64)+N62*N59*(N60-N61)-1000*N62*N59*N66*N67*(1/2-250/3*N66))/1000","v":163.77846435991964},"KN",14,0,0,0,0,0]
[null,"fvd,c",{"$f":"MAX(0,C19/C21*C56+0.4/C21*MIN(N57,MAX(0,'1- MURATURA NEL PIANO'!C25))*1000/((C73+0.000001)*C28))","v":6.8796296291572745E-2},"Mpa","tensione di calcolo a taglio",null,null,null,null,null,null,null,"Msd",67.28,"KNm",15,0,0,0,0,0]
[null,"Vt,S",{"$f":"MAX('1- MURATURA NEL PIANO'!C34,IF(AND(C47=0,N55=0,C65<=0),0,MIN(0.3*C59*C28*C73,C74*C73*C28+0.6*2*C39*C41/(C43+0.00001)*C10*C73)/1000))","v":582.54191096324018},"KN","Taglio per rottura a scorrimento",null,null,null,{"$f":"0.3*C59*C28*C73","v":1802410.7643585645},null,null,null,"e",{"$f":"MIN(ABS(N74),ABS(N71))/N69","v":1.063715415019763},"m",16,{"$f":"2*$N$53*$N$55*R75","v":0},0,0,0,0]
[null,"tu",{"$f":"C75/C27/C28*1000","v":0.3752282840342932},"Mpa","tensione di taglio per rottura a scorrimento",null,null,null,null,null,null,null,"d",{"$f":"MIN(C27,MAX(C68,3*(C27/2-ABS(N75)*1000)))","v":1983.853754940711},"mm",17,0,0,0,0,0]
[null,null,null,null,null,null,null,null,null,null,null,null,null,null,null,18,0,{"$f":"IF(S77<0,IF(S77>-$N$50,S77*$C$7,MAX(-$N$51,-$N$52+($N$51-$N$52)/($N$56-$N$50+0.0000001)*(S77+$N$50))),0)","v":0},0,0,0]
[null,"ROTTURA A TAGLIO PER FESSURAZIONE DIAGONALE",null,null,null,null,null,null,null,null,null,null,"A",{"$f":"IF(N60>0,(1000*N62*N59*N64*N61^2*(1/3-250/4*N64)+N62*N59/2*(N60^2-N61^2)-1000*N62*N59*N66*N67^2*(1/3-250/4*N66)),0)/1000000","v":13.367844547025895},null,19,0,0,0,0,0]
[null,null,null,null,null,null,null,null,null,null,null,null,"B",{"$f":"+SUMPRODUCT(Q60:Q81,T84:T105)/1000000","v":152.73730246133695},null,20,0,{"$f":"IF(S79<0,IF(S79>-$N$50,S79*$C$7,MAX(-$N$51,-$N$52+($N$51-$N$52)/($N$56-$N$50+0.0000001)*(S79+$N$50))),0)","v":0},0,0,0]
[null,"sH",{"$f":"C10*2*C36*C38*C41/(C45+C41)/C28*0","v":0},"Mpa","tensione orizzontale di confinamento",null,null,null,null,null,null,null,null,{"$f":"+N70*(C27/2-N60)/1000","v":121.07950054400338},null,"Nastri,bordo1",{"$f":"2*$C$47*R80","v":0},{"$f":"IF(S80<0,IF(S80>-$N$47,S80*$C$7,MAX(-$N$49,-$N$48+($N$49-$N$48)/($N$56-$N$47+0.000001)*(S80+$N$47))),0)","v":0},{"$f":"IF($C$47>0,-$N$65+($N$60-R104)/$N$60*$N$63,0)","v":0},{"$f":"MIN(0,S80*R104)*2*$C$47","v":0},0]
[null,"b",{"$f":"MIN(MAX(1,'1- MURATURA NEL PIANO'!C20/C27),1.5)","v":1},null,"Coefficiente adimensionale (H/L)",null,null,null,null,null,null,{"$f":"0.6*C36*2*C38*C41/(C45+C41)*C10*C73","v":475735.68},null,null,null,"Nastri,bordo2",{"$f":"2*$C$47*R81","v":0},{"$f":"IF(S81<0,IF(S81>-$N$47,S81*$C$7,MAX(-$N$49,-$N$48+($N$49-$N$48)/($N$56-$N$47+0.000001)*(S81+$N$47))),0)","v":0},{"$f":"IF($C$47>0,-$N$65+($N$60-R105)/$N$60*$N$63,0)","v":0},{"$f":"MIN(0,S81*R105)*2*$C$47","v":0},0]
[null,"ftd",{"$f":"'1- MURATURA NEL PIANO'!C40*C56","v":7.8750000000000014E-2},"Mpa","resistenza a trazione per fessurazione diagonale",null,null,null,null,null,null,{"$f":"+C27*C28*C82/C81*SQRT(MAX(0,1+(MAX(0,MIN(N62,C65))+C80)/C82))/1000","v":161.32351578161391}]
[null,"Vt,F",{"$f":"IF(C69=0,0,(C27*C28*C82/C81*SQRT(MAX(0,1+(MAX(0,MIN(N62,C65))+C80)/C82+(MAX(0,MIN(N62,C65))*C80)/C82^2))+0.6*C36*2*C38*C41/(C45+C41)*C10*C73)/1000)","v":0},"KN","Taglio per rottura a fessurazione diagonale",null,null,null,null,null,null,{"$f":"+C11*(C41*C38*2*Q57*C37+C47*4)","v":27360.000000000004},"Nsd",{"$f":"N69","v":63.25}]
[null,"tu",{"$f":"C83/(C27*C28)*1000","v":0},"Mpa","Tensione di taglio per fessurazione diagonale",null,null,null,null,null,null,null,"Msd",{"$f":"N74","v":67.28},null,1,"y1",{"$f":"IF(P84<=$Q$57,(C27-(Q57-1)*Q55)/2,0)","v":150},"mm",{"$f":"$N$60-R84","v":-17.405084703167574},{"$f":"AVERAGE(R84:R89)","v":1275},{"$f":"(C27-C68)/2+C68","v":1725}]
[null,null,null,null,null,null,null,null,null,null,null,null,"Af",{"$f":"2*N53*N55","v":34.200000000000003},null,2,"y2",{"$f":"IF(P85<=$Q$57,$R$84+(P85-1)*$Q$55,0)","v":600},"mm",{"$f":"$N$60-R85","v":-467.40508470316757}]
[null,"SOMMARIO RISULTATI MURATURA RINFORZATA CON IL C.A.M.",null,null,null,null,null,null,null,null,null,null,"b",{"$f":"C28","v":450},null,3,"y3",{"$f":"IF(P86<=$Q$57,$R$84+(P86-1)*$Q$55,0)","v":1050},"mm",-917.40508470316763]
[null,"Mu",{"$f":"C69","v":0},"KNm","Momento ultimo a pressoflessione",null,null,null,null,null,null,null,"L",{"$f":"C27","v":3450},null,4,"y4",1500,"mm",-1367.4050847031676]
[null,null,{"$f":"IF(OR(C69=0,'1- MURATURA NEL PIANO'!C46=0),\"-\",C87/'1- MURATURA NEL PIANO'!C46)","v":"-"},null,"Fattore di incremento resistenza a pressoflessione",null,null,null,null,null,null,null,"x",{"$f":"(N83*1000-N85*N52*N87)/(N62*0.8*0.85*N86-N85*N52*0.85)","v":4646.9166703357232},null,5,"y5",1950,"mm",-1817.4050847031676]
[null,"Tu",{"$f":"MIN(C75,C83,C69*20000/'1- MURATURA NEL PIANO'!C20)","v":0},"KN","Taglio ultimo",null,{"$f":"IF(C89=C83,\"Rottura a taglio per fessurazione diagonale\",IF(C89=C75,\"Rottura a taglio per scorrimento\",\"Rottura a taglio per flessione\"))","v":"Rottura a taglio per fessurazione diagonale"},null,null,null,null,null,null,null,null,6,"y6",2400,"mm",-2267.4050847031676]
[null,null,{"$f":"IF(OR(C89=0,'1- MURATURA NEL PIANO'!C47=0),\"-\",C89/'1- MURATURA NEL PIANO'!C47)","v":"-"},null,"Fattore di incremento resistenza a taglio",null,null,null,null,null,null,null,null,null,null,7,"y7",2850,"mm",-2717.4050847031676]
[null,"fd",{"$f":"C66","v":3.8699103904639069},"Mpa","tensione di calcolo a compressione muratura confinata",null,null,null,null,null,null,null,null,null,null,8,"y8",3300,"mm",-3167.4050847031676]
[null,null,{"$f":"C91/'1- MURATURA NEL PIANO'!C48","v":2.0367949423494247},null,"Fattore incremento resistenza a compressione",null,null,null,null,null,null,null,null,null,null,9,"y9",0,"mm",132.59491529683243]
[null,"tu",{"$f":"MIN(C76,C84)","v":0},"Mpa","tensione resistente a taglio",null,null,null,null,null,null,null,null,null,null,10,"y10",0,"mm",132.59491529683243]
[null,null,null,null,null,null,null,null,null,null,null,null,null,null,null,11,"y11",0,"mm",132.59491529683243]
[null,null,null,null,null,null,null,null,null,null,null,null,null,null,null,12,"y12",0,"mm",132.59491529683243]
[null,null,null,null,null,null,null,null,null,null,null,null,null,null,null,13,"y13",0,"mm",132.59491529683243]
[null,null,null,null,null,null,null,null,null,null,null,null,null,null,null,14,"y14",0,"mm",132.59491529683243]
[null,null,null,null,null,null,null,null,null,null,null,null,null,null,null,15,"y15",0,"mm",132.59491529683243]
[null,null,null,null,null,null,null,null,null,null,null,null,null,null,null,16,"y16",0,"mm",132.59491529683243]
[null,null,null,null,null,null,null,null,null,null,null,null,null,null,null,17,"y17",0,"mm",132.59491529683243]
[null,null,null,null,null,null,null,null,null,null,null,null,null,null,null,18,"y18",0,"mm",132.59491529683243]
[null,null,null,null,null,null,null,null,null,null,null,null,null,null,null,19,"y19",0,"mm",132.59491529683243]
[null,null,null,null,null,null,null,null,null,null,null,null,null,null,null,20,"y20",0,"mm",132.59491529683243]
[null,null,null,null,null,null,null,null,null,null,null,null,null,null,null,null,"Angol1",{"$f":"IF(C47=0,0,150)","v":0},"mm",{"$f":"$N$60-R104","v":132.59491529683243}]
[null,null,null,null,null,null,null,null,null,null,null,null,null,null,null,null,"Angol2",{"$f":"IF(C47=0,0,C27-R104)","v":0},"mm",132.59491529683243]
[]
[null,null,null,null,null,null,null,null,null,null,null,null,null,null,null,null,"L'=",{"$f":"R105-R104","v":0}]

{"sheet":"3-CONFINAMENTO CAM FUORI PIANO","index":3,"n_rows":70,"n_cols":14,"rows_kept":70,"cut":false,"hidden":true,"merged":[[5,1,5,2],[14,1,14,2],[0,1,2,9]]}
[null,"EDIL  CAM  Sistemi S.r.l.\nCuciture Attive dei Manufatti strutturali\nRinforzo ed adeguamento sismico\nwww.edilcam.com"]
[]
[]
[null,"CARATTERISTICHE DEI MATERIALI"]
[]
[null,"ACCIAO INOX"]
[null,"Ef",{"$f":"'2-CONFINAMENTO CAM NEL PIANO'!C7","v":200000},"Mpa",{"$f":"'2-CONFINAMENTO CAM NEL PIANO'!E7","v":"Modulo elastico"}]
[null,"ftk",{"$f":"'2-CONFINAMENTO CAM NEL PIANO'!C8","v":1000},"Mpa",{"$f":"'2-CONFINAMENTO CAM NEL PIANO'!E8","v":"tensione di rottura nastro orizzontale"}]
[null,"ftk",{"$f":"'2-CONFINAMENTO CAM NEL PIANO'!C9","v":650},"Mpa",{"$f":"'2-CONFINAMENTO CAM NEL PIANO'!E9","v":"tensione di snervamento nastro orizzontale"}]
[null,"fyd",{"$f":"'2-CONFINAMENTO CAM NEL PIANO'!C10","v":560},"Mpa",{"$f":"'2-CONFINAMENTO CAM NEL PIANO'!E10","v":"tensione di calcolo nastro orizzontale"}]
[null,"fp",{"$f":"'2-CONFINAMENTO CAM NEL PIANO'!C11","v":100},"Mpa",{"$f":"'2-CONFINAMENTO CAM NEL PIANO'!E11","v":"tensione di pretensionamento"}]
[null,"er",{"$f":"'2-CONFINAMENTO CAM NEL PIANO'!C12","v":2.8E-3},null,{"$f":"'2-CONFINAMENTO CAM NEL PIANO'!E12","v":"deformazione ultima a rottura"}]
[null,"gf,d",{"$f":"'2-CONFINAMENTO CAM NEL PIANO'!C13","v":1.25},null,{"$f":"'2-CONFINAMENTO CAM NEL PIANO'!E13","v":"coefficiente parziale collegamento sigillo"}]
[]
[null,"MURATURA"]
[null,"fm",{"$f":"'2-CONFINAMENTO CAM NEL PIANO'!C16","v":1.9},"Mpa",{"$f":"'2-CONFINAMENTO CAM NEL PIANO'!E16","v":"resistenza media a compressione"}]
[null,"fmd",{"$f":"'2-CONFINAMENTO CAM NEL PIANO'!C17","v":1.9},"Mpa",{"$f":"'2-CONFINAMENTO CAM NEL PIANO'!E17","v":"resistenza di calcolo a compressione verticale"}]
[null,"fhmk",{"$f":"'2-CONFINAMENTO CAM NEL PIANO'!C18","v":1.4249999999999998},"Mpa",{"$f":"'2-CONFINAMENTO CAM NEL PIANO'!E18","v":"resistenza di calcolo a compressione orizzontale"}]
[null,"fvko",{"$f":"'2-CONFINAMENTO CAM NEL PIANO'!C19","v":3.5000000000000003E-2},"Mpa",{"$f":"'2-CONFINAMENTO CAM NEL PIANO'!E19","v":"resistenza caratteristica a taglio (to/FC)"}]
[null,"emu",{"$f":"'2-CONFINAMENTO CAM NEL PIANO'!C20","v":3.5000000000000001E-3},null,{"$f":"'2-CONFINAMENTO CAM NEL PIANO'!E20","v":"deformazione ultima a compressione"}]
[null,"FC",{"$f":"'2-CONFINAMENTO CAM NEL PIANO'!C21","v":1},null,{"$f":"'2-CONFINAMENTO CAM NEL PIANO'!E21","v":"coefficiente di sicurezza materiale"}]
[null,"gm",{"$f":"'2-CONFINAMENTO CAM NEL PIANO'!C22","v":1600},"Kg/m3",{"$f":"'2-CONFINAMENTO CAM NEL PIANO'!E22","v":"densità di massa della muratura"}]
[null,"E",{"$f":"'2-CONFINAMENTO CAM NEL PIANO'!C23","v":1080},"Mpa",{"$f":"'2-CONFINAMENTO CAM NEL PIANO'!E23","v":"modulo normale elastico (si può assumere pari a 1000 x fm)"}]
[]
[null,"GEOMETRIA PANNELLO MURARIO"]
[]
[null,"L",{"$f":"'2-CONFINAMENTO CAM NEL PIANO'!C27","v":3450},"mm","larghezza sezione"]
[null,"t",{"$f":"'2-CONFINAMENTO CAM NEL PIANO'!C28","v":450},"mm","profondità sezione"]
[]
[null,"GEOMETRIA RINFORZO"]
[null,"Modo",{"$f":"'2-CONFINAMENTO CAM NEL PIANO'!C35","v":"Q"},null,"(Q=Quinconce, N=Normale)"]
[null,"nstr",{"$f":"'2-CONFINAMENTO CAM NEL PIANO'!C36","v":3},null,"numero di nastri sovrapposti"]
[null,"tfs",{"$f":"'2-CONFINAMENTO CAM NEL PIANO'!C38","v":0.9},"mm","spessore singolo nastro"]
[null,"tf",{"$f":"'2-CONFINAMENTO CAM NEL PIANO'!C39","v":2.7},"mm","spessore totale nastri"]
[null,"Fn",{"$f":"'2-CONFINAMENTO CAM NEL PIANO'!C40","v":9576},"N","forza totale pretensionamento per la striscia di nastri sovrapposti"]
[null,"bf",{"$f":"'2-CONFINAMENTO CAM NEL PIANO'!C41","v":19},"mm","larghezza striscia rinforzo"]
[null,"pfo",{"$f":"'2-CONFINAMENTO CAM NEL PIANO'!C42","v":500},"mm","passo orizzontale del rinforzo "]
[null,"pfv",{"$f":"'2-CONFINAMENTO CAM NEL PIANO'!C43","v":250},"mm","passo verticale del rinforzo"]
[null,"p'fo",{"$f":"'2-CONFINAMENTO CAM NEL PIANO'!C44","v":840},"mm","passo orizzontale del rinforzo efficace"]
[null,"p'fv",{"$f":"'2-CONFINAMENTO CAM NEL PIANO'!C45","v":231},"mm","passo verticale del rinforzo efficace"]
[null,"rf",{"$f":"'2-CONFINAMENTO CAM NEL PIANO'!C46","v":1.369802371541502E-3},null,"percentuale geometrica del rinforzo"]
[]
[null,"RESISTENZA E DEFORMAZIONE ULTIMA DI CALCOLO MURATURA CONFINATA  "]
[null,null,null,null,null,null,null,null,null,null,null,"x1",{"$f":"(C50*C27*C28+C10*C57*C27)/(C17*C27*(1-C17/C23/C20))","v":37.024577632796152}]
[null,"fmd",{"$f":"'2-CONFINAMENTO CAM NEL PIANO'!C17","v":1.9},"Mpa","resistenza di progetto della muratura ",null,null,null,null,null,null,"xel",{"$f":"M44*C17/C23/C20","v":18.61023743447425}]
[null,"emu,c",{"$f":"'2-CONFINAMENTO CAM NEL PIANO'!C61","v":6.8549683896839027E-3},null,"deformazione ultima a compressione muratura confinata",null,null,null,null,null,null,"M1",{"$f":"(C17*(M44-M45)*(C28-M44+M45)*C27/2+C17*C27*M45^2/2-C10*C57*C27*(C28-M44))/1000000","v":3.4547058807026296}]
[null,null,null,null,null,null,null,null,null,null,null,"ef",{"$f":"(C20/M44*(C28-M44)+C10/C7+C50/C23)*C7","v":8375.4066597257897}]
[null,"PRESSOFLESSIONE VERTICALE MURATURA (Elastico perfettamente plastico)"]
[]
[null,"so",{"$f":"'1- MURATURA NEL PIANO'!C25*1000/('3-CONFINAMENTO CAM FUORI PIANO'!C27*'3-CONFINAMENTO CAM FUORI PIANO'!C28)","v":4.0740740740740744E-2},"Mpa","Tensione verticale agente sul pannello",null,null,null,null,null,null,"xel",{"$f":"C51/C46*C45/C23","v":2.8408947715997157},"mm"]
[null,"x",{"$f":"(C50*C28)/(C45*(1-C45/(2*C46*C23)))","v":11.069570192817404},"mm","zona compressa della muratura"]
[null,"Mu",{"$f":"(C45*C27/2*(C51^2-M50^2/3)+C50*C27*C28*(C28/2-C51))/1000000","v":13.923892185905483},"KNm","Momento ultimo a pressoflessione"]
[null,null,null,null,null,null,null,null,null,null,null,"a","b","c"]
[null,"PRESSOFLESSIONE VERTICALE MURATURA CONFINATA (Elastico perfettamente plastico)",null,null,null,null,null,null,null,null,null,{"$f":"C45*(1-C45/(2*C46*C23))","v":1.6561919762005841},{"$f":"C46*C7*C57-C56*C28","v":14.508391697482232},{"$f":"-C46*C28*C7*C57","v":-18347.471916040915}]
[null,null,null,null,null,null,null,null,null,null,null,"x",{"$f":"(-M54+SQRT(M54^2-4*L54*N54))/(2*L54)","v":100.96363887446908},"mm"]
[null,"so",{"$f":"'2-CONFINAMENTO CAM NEL PIANO'!C65","v":5.8363929146537839E-2},"Mpa","Tensione verticale agente sul pannello",null,null,null,null,null,null,"xel",{"$f":"M55/C46*C45/C23","v":25.911310810086512},"mm"]
[null,"Ainoxm",{"$f":"'2-CONFINAMENTO CAM NEL PIANO'!C67/2","v":2.9739130434782612E-2},"mm2/mm","densità rinforzo verticale acciaio inox",null,null,null,null,null,null,"fy",{"$f":"C46/M55*(C28-M55)*C7","v":4739.5938756538626},"Mpa"]
[null,"x",{"$f":"IF(M57>C10-C11,M64,M55)","v":25.913470042208719},"mm","zona compressa della muratura",null,null,null,null,null,null,"Mu",{"$f":"(C45*C27/2*(M55^2-M56^2/3)+M57*C57*C27*(C28-M55)+C56*C27*C28*(C28/2-M55))/1000000","v":213.64535880542189},"KNm"]
[null,"Mu",{"$f":"IF(M57>C10,M66,M58)","v":44.558094002303896},"KNm","Momento ultimo a pressoflessione"]
[null,null,{"$f":"C59/C52","v":3.2001177118713984},null,"Fattore di incremento resistenza a pressoflessione",null,null,null,null,null,null,"C",{"$f":"L54*M55/1000*C27","v":576.89233164208633},"KN"]
[null,null,null,null,null,null,null,null,null,null,null,"T",{"$f":"-C46/M55*(C28-M55)*C7*C57/1000*C27","v":-486.28233164208643},"KN"]
[null,null,null,null,null,null,null,null,null,null,null,"N",{"$f":"C56*C28/1000*C27","v":90.609999999999985},"KN"]
[]
[null,null,null,null,null,null,null,null,null,null,null,"x",{"$f":"(C56*C28+C10*C57)/(C45*(1-C45/(2*C46*C23)))","v":25.913470042208719},"mm"]
[null,null,null,null,null,null,null,null,null,null,null,"xel",{"$f":"M64/C46*C45/C23","v":6.6504336008171299},"mm"]
[null,null,null,null,null,null,null,null,null,null,null,"Mu",{"$f":"(C45*C27/2*(M64^2-M65^2/3)+C10*C57*C27*(C28-M64)+C56*C27*C28*(C28/2-M64))/1000000","v":44.558094002303896},"Knm"]
[]
[null,null,null,null,null,null,null,null,null,null,null,"C",{"$f":"C45*C27*M64*(1-C45/(2*C46*C23))/1000","v":148.066},"KN"]
[null,null,null,null,null,null,null,null,null,null,null,"T",{"$f":"-C10*C57*C27/1000","v":-57.45600000000001},"KN"]
[null,null,null,null,null,null,null,null,null,null,null,"N",{"$f":"M69+M68","v":90.609999999999985},"KN"]

{"sheet":"4-PANNELLI MULTIPLI","index":4,"n_rows":11172,"n_cols":47,"rows_kept":1125,"cut":true,"hidden":false,"merged":[[1,1,1,5],[1,11,1,13],[2,6,3,6],[2,16,3,16],[2,30,3,30],[2,19,3,19],[2,20,3,20],[2,26,3,26],[2,23,3,23],[2,29,3,29],[2,39,3,39],[2,40,3,40],[1,6,1,10],[1,14,1,20],[1,21,1,30],[2,36,3,36],[2,37,3,37],[2,38,3,38]],"bounds":{"rows_first":500,"rows_last":125,"rows_between":500,"halvings":2}}
["Riga inizio calcolo",5]
["ELEMENTO","PARAMETRI MURATURA",null,null,null,null,"DISPOSIZIONE RINFORZO",null,null,null,null,"SOLLECITAZIONI",null,null,"STATO ATTUALE",null,null,null,null,null,null,"MURATURA RINFORZATA",null,null,null,null,null,null,null,null,null,null,null,null,null,null,37,38,39,40,41,42,43,44,45]
[null,"MAT","fmd","L","t","H","Nastri verticali spigolo","nonastri","nvnastri","pfo","pfv","NSd","MEd","VEd","NRes","MRes","CS.flex","VFess","VScorr","CS.V","Tipo","fmd,c","emu,c","Effetto Diatono CAM","NRes","MRes","CS.flex","VFess","VScorr","CS.V","Tipo",null,null,null,null,8,"N°pos Nastri verticali","N°pos  Nastri Orizzontali","N°fori-Maglia base","N°pos Spigolo","N°fori-Spigolo"]
[null,null,"Mpa","mm","mm","mm",null,null,"mm","mm","mm","KN","KNm","KN","KN","KNm",null,"KN","KN",null,null,"Mpa",null,null,"KNm","KNm",null,"KN","KN",null,null,null,"MAT1","fu-mur","fu-cam",7,null,null,null,null,null,"Edmur","EdCAM",null,null,"Q/N","n°V"]
["muratura A","MUR1",1.9,5000,400,3000,null,2,0,1200,500,85,1,1,84.999999999999986,207.61513157894734,207.61513157894734,141.24446891825536,104.00000000000001,104.00000000000001,"V-Sc",2.9977056383390397,3.9858738103257883E-3,1.5,84.999999999999886,209.42651086383503,209.42651086383503,425.25621331193082,368.82399539672014,368.82399539672014,"V-Sc",{"$f":"MATCH(B5,$AG$5:$AG$14,0)","v":1},{"$f":"'0-MATERIALI'!B6","v":"MUR1"},2.5333333331499688E-2,4.6823557502880843E-2,null,5,6,18,0,0,{"$f":"AH5*P5","v":5.2595833329526398},{"$f":"AI5*Z5","v":9.8060942740604791},null,null,{"$f":"IF(OR(MID(H5,1,1)=\"N\",MID(H5,1,1)=\"Q\"),MID(H5,1,1),\"\")","v":""},{"$f":"IF(OR(MID(H5,1,1)=\"N\",MID(H5,1,1)=\"Q\"),INT(MID(H5,2,2)),H5)","v":2}]
["muratura A","MUR1",1.9,800,400,3000,null,2,0,800,200,42.5,1,1,42.499999999999993,15.778782894736839,15.778782894736839,21.042179861728524,28.200000000000003,21.042179861728524,"V-Fess",1.9,3.5000000000000001E-3,1,42.499999999999993,15.778782894736839,15.778782894736839,112.97177986172854,120.12959538227024,112.97177986172854,"V-Fess",{"$f":"MATCH(B6,$AG$5:$AG$14,0)","v":1},{"$f":"'0-MATERIALI'!B7","v":""},5.0666666659332081E-2,5.0666666666666672E-2,null,1,15,15,0,0,{"$f":"AH6*P6","v":0.79945833321760229},{"$f":"AI6*Z6","v":0.79945833333333327},null,null,{"$f":"IF(OR(MID(H6,1,1)=\"N\",MID(H6,1,1)=\"Q\"),MID(H6,1,1),\"\")","v":""},{"$f":"IF(OR(MID(H6,1,1)=\"N\",MID(H6,1,1)=\"Q\"),INT(MID(H6,2,2)),H6)","v":2}]
["muratura A","MUR1",1.9,1650,400,3100,null,3,1,1200,500,63.25,67.28,138.69999999999999,63.25,49.47644426675469,0.7353811573536666,38.828597708390149,27.096076534328898,0.195357437161708,"V-Sc",1.9,3.5000000000000001E-3,1,63.249792429365186,66.512610098052789,0.98859408588068953,143.58292145791106,149.72079791471739,1.035204913178883,"V-Fess",1,{"$f":"'0-MATERIALI'!B8","v":""},3.4044795780614659E-2,2.6396185646823306E-2,null,2,6,9,0,0,1.6844154410126264,1.7556792040029758,null,null,"",3]
[null,null,null,null,null,null,null,null,null,null,null,null,null,null,null,null,null,null,null,null,null,null,null,null,null,null,null,null,null,null,null,{"$error":"#N/A"},{"$f":"'0-MATERIALI'!B9","v":""},8.5329008965187719E-3,7.8518955024757704E-3,null,2,6,9,0,0,0,0,{"$f":"AQ8/AP8","v":{"$error":"#DIV/0!"}},null,"",0]
[null,null,null,null,null,null,null,null,null,null,null,null,null,null,null,null,null,null,null,null,null,null,null,null,null,null,null,null,null,null,null,{"$error":"#N/A"},{"$f":"'0-MATERIALI'!B10","v":""},350000000,2.6604015375718423E-2,null,2,6,9,0,0,0,0,{"$f":"AQ9/AP9","v":{"$error":"#DIV/0!"}},null,"",0]
[null,null,null,null,null,null,null,null,null,null,null,null,null,null,null,null,null,null,null,null,null,null,null,null,null,null,null,null,null,null,null,{"$error":"#N/A"},{"$f":"'0-MATERIALI'!B11","v":""},1.5750584855567108E-2,1.3495031731073187E-2,null,2,6,9,0,0,0,0,{"$error":"#DIV/0!"},null,"",0]
[null,null,null,null,null,null,null,null,null,null,null,null,null,null,null,null,null,null,null,null,null,null,null,null,null,null,null,null,null,null,null,{"$error":"#N/A"},{"$f":"'0-MATERIALI'!B12","v":""},3.9541957415906819E-3,3.9541957416353579E-3,null,5751,0,0,0,0,0,0,{"$error":"#DIV/0!"},null,"",0]
[null,null,null,null,null,null,null,null,null,null,null,null,null,null,null,null,null,null,null,null,null,null,null,null,null,null,null,null,null,null,null,{"$error":"#N/A"},{"$f":"'0-MATERIALI'!B13","v":""},1.8088113050613089E-3,1.6957376212881196E-3,null,5,7,21,2,10,0,0,{"$error":"#DIV/0!"},null,"",0]
[null,null,null,null,null,null,null,null,null,null,null,null,null,null,null,null,null,null,null,null,null,null,null,null,null,null,null,null,null,null,null,{"$error":"#N/A"},{"$f":"'0-MATERIALI'!B14","v":""},1.4477711244118422E-3,1.3840832931261611E-3,null,5,7,21,2,10,0,0,{"$error":"#DIV/0!"},null,"",0]
[null,null,null,null,null,null,null,null,null,null,null,null,null,null,null,null,null,null,null,null,null,null,null,null,null,null,null,null,null,null,null,{"$error":"#N/A"},{"$f":"'0-MATERIALI'!B15","v":""},1.2068774265072083E-3,1.1708860774621579E-3,null,5,7,21,2,10,0,0,{"$error":"#DIV/0!"},null,"",0]
[null,null,null,null,null,null,null,null,null,null,null,null,null,null,null,null,null,null,null,null,null,null,null,null,null,null,null,null,null,null,null,{"$error":"#N/A"},null,1.0347123157363608E-3,1.0192589876583714E-3,null,5,7,21,2,10,0,0,{"$error":"#DIV/0!"},null,"",0]
[null,null,null,null,null,null,null,null,null,null,null,null,null,null,null,null,null,null,null,null,null,null,null,null,null,null,null,null,null,null,null,{"$error":"#N/A"},null,9.0553474822903455E-4,9.0007744029738026E-4,null,5,7,21,2,10,0,0,{"$error":"#DIV/0!"},null,"",0]
[null,null,null,null,null,null,null,null,null,null,null,null,null,null,null,null,null,null,null,null,null,null,null,null,null,null,null,null,null,null,null,{"$error":"#N/A"},null,7.8928601782961945E-4,7.8904337998241978E-4,null,5,7,21,2,10,0,0,{"$error":"#DIV/0!"},null,"",0]
[null,null,null,null,null,null,null,null,null,null,null,null,null,null,null,null,null,null,null,null,null,null,null,null,null,null,null,null,null,null,null,{"$error":"#N/A"},null,5.9000485046140213E-4,5.9000484212393242E-4,null,5,7,21,2,10,0,0,{"$error":"#DIV/0!"},null,"",0]
[null,null,null,null,null,null,null,null,null,null,null,null,null,null,null,null,null,null,null,null,null,null,null,null,null,null,null,null,null,null,null,{"$error":"#N/A"},null,4.1429889738498187E-4,4.1429794204096514E-4,null,5,7,21,2,10,0,0,{"$error":"#DIV/0!"},null,"",0]
[null,null,null,null,null,null,null,null,null,null,null,null,null,null,null,null,null,null,null,null,null,null,null,null,null,null,null,null,null,null,null,{"$error":"#N/A"},null,4.0548327992249089E-4,3.8420571627634936E-4,null,5,7,21,2,10,0,0,{"$error":"#DIV/0!"},null,"",0]
[null,null,null,null,null,null,null,null,null,null,null,null,null,null,null,null,null,null,null,null,null,null,null,null,null,null,null,null,null,null,null,{"$error":"#N/A"},null,4.0460269017541205E-4,3.8339638746975489E-4,null,5,7,21,2,10,0,0,{"$error":"#DIV/0!"},null,"",0]
[null,null,null,null,null,null,null,null,null,null,null,null,null,null,null,null,null,null,null,null,null,null,null,null,null,null,null,null,null,null,null,{"$error":"#N/A"},null,4.0381762054950788E-4,3.8269456096779624E-4,null,5,7,21,2,10,0,0,{"$error":"#DIV/0!"},null,"",0]
[null,null,null,null,null,null,null,null,null,null,null,null,null,null,null,null,null,null,null,null,null,null,null,null,null,null,null,null,null,null,null,{"$error":"#N/A"},null,4.0311199313483457E-4,3.8209381594723969E-4,null,5,7,21,2,10,0,0,{"$error":"#DIV/0!"},null,"",0]
[null,null,null,null,null,null,null,null,null,null,null,null,null,null,null,null,null,null,null,null,null,null,null,null,null,null,null,null,null,null,null,{"$error":"#N/A"},null,null,null,null,2,6,9,2,10,0,0,{"$error":"#DIV/0!"},null,"",0]
[null,null,null,null,null,null,null,null,null,null,null,null,null,null,null,null,null,null,null,null,null,null,null,null,null,null,null,null,null,null,null,{"$error":"#N/A"},null,null,null,null,4,6,15,0,0,0,0,{"$error":"#DIV/0!"},null,"",0]
[null,null,null,null,null,null,null,null,null,null,null,null,null,null,null,null,null,null,null,null,null,null,null,null,null,null,null,null,null,null,null,{"$error":"#N/A"},null,null,null,null,3,8,16,0,0,0,0,{"$error":"#DIV/0!"},null,"",0]
[null,null,null,null,null,null,null,null,null,null,null,null,null,null,null,null,null,null,null,null,null,null,null,null,null,null,null,null,null,null,null,{"$error":"#N/A"},null,null,null,null,1,4,4,2,10,0,0,{"$error":"#DIV/0!"},null,"",0]
[null,null,null,null,null,null,null,null,null,null,null,null,null,null,null,null,null,null,null,null,null,null,null,null,null,null,null,null,null,null,null,{"$error":"#N/A"},null,null,null,null,1,5,5,2,10,0,0,{"$error":"#DIV/0!"},null,"",0]
[null,null,null,null,null,null,null,null,null,null,null,null,null,null,null,null,null,null,null,null,null,null,null,null,null,null,null,null,null,null,null,{"$error":"#N/A"},null,null,null,null,1,7,7,2,10,0,0,{"$error":"#DIV/0!"},null,"",0]
[null,null,null,null,null,null,null,null,null,null,null,null,null,null,null,null,null,null,null,null,null,null,null,null,null,null,null,null,null,null,null,{"$error":"#N/A"},null,null,null,null,6,7,24.5,0,0,0,0,{"$error":"#DIV/0!"},null,"",0]
[null,null,null,null,null,null,null,null,null,null,null,null,null,null,null,null,null,null,null,null,null,null,null,null,null,null,null,null,null,null,null,{"$error":"#N/A"},null,null,null,null,2,7,10.5,2,10,0,0,{"$error":"#DIV/0!"},null,"",0]
[null,null,null,null,null,null,null,null,null,null,null,null,null,null,null,null,null,null,null,null,null,null,null,null,null,null,null,null,null,null,null,{"$error":"#N/A"},null,null,null,null,8,7,31.5,0,0,0,0,{"$error":"#DIV/0!"},null,"",0]
[null,null,null,null,null,null,null,null,null,null,null,null,null,null,null,null,null,null,null,null,null,null,null,null,null,null,null,null,null,null,null,{"$error":"#N/A"},null,null,null,null,1,4,4,2,10,0,0,{"$error":"#DIV/0!"},null,"",0]
[null,null,null,null,null,null,null,null,null,null,null,null,null,null,null,null,null,null,null,null,null,null,null,null,null,null,null,null,null,null,null,{"$error":"#N/A"},null,null,null,null,1,4,4,2,10,0,0,{"$error":"#DIV/0!"},null,"",0]
[null,null,null,null,null,null,null,null,null,null,null,null,null,null,null,null,null,null,null,null,null,null,null,null,null,null,null,null,null,null,null,{"$error":"#N/A"},null,null,null,null,1,4,4,2,10,0,0,{"$error":"#DIV/0!"},null,"",0]
[null,null,null,null,null,null,null,null,null,null,null,null,null,null,null,null,null,null,null,null,null,null,null,null,null,null,null,null,null,null,null,{"$error":"#N/A"},null,null,null,null,6,4,14,0,0,0,0,{"$error":"#DIV/0!"},null,"",0]
[null,null,null,null,null,null,null,null,null,null,null,null,null,null,null,null,null,null,null,null,null,null,null,null,null,null,null,null,null,null,null,{"$error":"#N/A"},null,null,null,null,2,5,7.5,2,10,0,0,{"$error":"#DIV/0!"},null,"",0]
[null,null,null,null,null,null,null,null,null,null,null,null,null,null,null,null,null,null,null,null,null,null,null,null,null,null,null,null,null,null,null,{"$error":"#N/A"},null,null,null,null,8,4,18,0,0,0,0,{"$error":"#DIV/0!"},null,"",0]
[null,null,null,null,null,null,null,null,null,null,null,null,null,null,null,null,null,null,null,null,null,null,null,null,null,null,null,null,null,null,null,{"$error":"#N/A"},null,null,null,null,1,6,6,0,0,0,0,{"$error":"#DIV/0!"},null,"",0]
[null,null,null,null,null,null,null,null,null,null,null,null,null,null,null,null,null,null,null,null,null,null,null,null,null,null,null,null,null,null,null,{"$error":"#N/A"},null,null,null,null,3,6,12,0,0,0,0,{"$error":"#DIV/0!"},null,"",0]
[null,null,null,null,null,null,null,null,null,null,null,null,null,null,null,null,null,null,null,null,null,null,null,null,null,null,null,null,null,null,null,{"$error":"#N/A"},null,null,null,null,6,6,21,0,0,0,0,{"$error":"#DIV/0!"},null,"",0]
[null,null,null,null,null,null,null,null,null,null,null,null,null,null,null,null,null,null,null,null,null,null,null,null,null,null,null,null,null,null,null,{"$error":"#N/A"},null,null,null,null,4,6,15,0,0,0,0,{"$error":"#DIV/0!"},null,"",0]
[null,null,null,null,null,null,null,null,null,null,null,null,null,null,null,null,null,null,null,null,null,null,null,null,null,null,null,null,null,null,null,{"$error":"#N/A"},null,null,null,null,8,6,27,0,0,0,0,{"$error":"#DIV/0!"},null,"",0]
[null,null,null,null,null,null,null,null,null,null,null,null,null,null,null,null,null,null,null,null,null,null,null,null,null,null,null,null,null,null,null,{"$error":"#N/A"},null,null,null,null,1,4,4,0,0,0,0,{"$error":"#DIV/0!"},null,"",0]
[null,null,null,null,null,null,null,null,null,null,null,null,null,null,null,null,null,null,null,null,null,null,null,null,null,null,null,null,null,null,null,{"$error":"#N/A"},null,null,null,null,3,4,8,0,0,0,0,{"$error":"#DIV/0!"},null,"",0]
[null,null,null,null,null,null,null,null,null,null,null,null,null,null,null,null,null,null,null,null,null,null,null,null,null,null,null,null,null,null,null,{"$error":"#N/A"},null,null,null,null,6,5,17.5,0,0,0,0,{"$error":"#DIV/0!"},null,"",0]
[null,null,null,null,null,null,null,null,null,null,null,null,null,null,null,null,null,null,null,null,null,null,null,null,null,null,null,null,null,null,null,{"$error":"#N/A"},null,null,null,null,4,4,10,0,0,0,0,{"$error":"#DIV/0!"},null,"",0]
[null,null,null,null,null,null,null,null,null,null,null,null,null,null,null,null,null,null,null,null,null,null,null,null,null,null,null,null,null,null,null,{"$error":"#N/A"},null,null,null,null,8,4,18,0,0,0,0,{"$error":"#DIV/0!"},null,"",0]
[null,null,null,null,null,null,null,null,null,null,null,null,null,null,null,null,null,null,null,null,null,null,null,null,null,null,null,null,null,null,null,{"$error":"#N/A"},null,null,null,null,6,4,14,0,0,0,0,{"$error":"#DIV/0!"},null,"",0]
[null,null,null,null,null,null,null,null,null,null,null,null,null,null,null,null,null,null,null,null,null,null,null,null,null,null,null,null,null,null,null,{"$error":"#N/A"},null,null,null,null,6,4,14,0,0,0,0,{"$error":"#DIV/0!"},null,"",0]
[null,null,null,null,null,null,null,null,null,null,null,null,null,null,null,null,null,null,null,null,null,null,null,null,null,null,null,null,null,null,null,{"$error":"#N/A"},null,null,null,null,4,4,10,0,0,0,0,{"$error":"#DIV/0!"},null,"",0]
[null,null,null,null,null,null,null,null,null,null,null,null,null,null,null,null,null,null,null,null,null,null,null,null,null,null,null,null,null,null,null,{"$error":"#N/A"},null,null,null,null,8,4,18,0,0,0,0,{"$error":"#DIV/0!"},null,"",0]
[null,null,null,null,null,null,null,null,null,null,null,null,null,null,null,null,null,null,null,null,null,null,null,null,null,null,null,null,null,null,null,{"$error":"#N/A"},null,null,null,null,3,13,26,4,20,0,0,{"$error":"#DIV/0!"},null,"",0]
[null,null,null,null,null,null,null,null,null,null,null,null,null,null,null,null,null,null,null,null,null,null,null,null,null,null,null,null,null,null,null,{"$error":"#N/A"},null,null,null,null,11,13,78,0,0,0,0,{"$error":"#DIV/0!"},null,"",0]
[null,null,null,null,null,null,null,null,null,null,null,null,null,null,null,null,null,null,null,null,null,null,null,null,null,null,null,null,null,null,null,{"$error":"#N/A"},null,null,null,null,3,8,16,4,20,0,0,{"$error":"#DIV/0!"},null,"",0]
[null,null,null,null,null,null,null,null,null,null,null,null,null,null,null,null,null,null,null,null,null,null,null,null,null,null,null,null,null,null,null,{"$error":"#N/A"},null,null,null,null,3,8,16,4,20,0,0,{"$error":"#DIV/0!"},null,"",0]
[null,null,null,null,null,null,null,null,null,null,null,null,null,null,null,null,null,null,null,null,null,null,null,null,null,null,null,null,null,null,null,{"$error":"#N/A"},null,null,null,null,7,8,32,0,0,0,0,{"$error":"#DIV/0!"},null,"",0]
[null,null,null,null,null,null,null,null,null,null,null,null,null,null,null,null,null,null,null,null,null,null,null,null,null,null,null,null,null,null,null,{"$error":"#N/A"},null,null,null,null,3,4,8,0,0,0,0,{"$error":"#DIV/0!"},null,"",0]
[null,null,null,null,null,null,null,null,null,null,null,null,null,null,null,null,null,null,null,null,null,null,null,null,null,null,null,null,null,null,null,{"$error":"#N/A"},null,null,null,null,3,5,10,0,0,0,0,{"$error":"#DIV/0!"},null,"",0]
[null,null,null,null,null,null,null,null,null,null,null,null,null,null,null,null,null,null,null,null,null,null,null,null,null,null,null,null,null,null,null,{"$error":"#N/A"},null,null,null,null,7,4,16,0,0,0,0,{"$error":"#DIV/0!"},null,"",0]
[null,null,null,null,null,null,null,null,null,null,null,null,null,null,null,null,null,null,null,null,null,null,null,null,null,null,null,null,null,null,null,{"$error":"#N/A"},null,null,null,null,1,6,6,2,10,0,0,{"$error":"#DIV/0!"},null,"",0]
[null,null,null,null,null,null,null,null,null,null,null,null,null,null,null,null,null,null,null,null,null,null,null,null,null,null,null,null,null,null,null,{"$error":"#N/A"},null,null,null,null,1,6,6,2,10,0,0,{"$error":"#DIV/0!"},null,"",0]
[null,null,null,null,null,null,null,null,null,null,null,null,null,null,null,null,null,null,null,null,null,null,null,null,null,null,null,null,null,null,null,{"$error":"#N/A"},null,null,null,null,1,4,4,2,10,0,0,{"$error":"#DIV/0!"},null,"",0]
[null,null,null,null,null,null,null,null,null,null,null,null,null,null,null,null,null,null,null,null,null,null,null,null,null,null,null,null,null,null,null,{"$error":"#N/A"},null,null,null,null,6,4,14,0,0,0,0,{"$error":"#DIV/0!"},null,"",0]
[null,null,null,null,null,null,null,null,null,null,null,null,null,null,null,null,null,null,null,null,null,null,null,null,null,null,null,null,null,null,null,{"$error":"#N/A"},null,null,null,null,0,0,0,0,0,0,0,{"$error":"#DIV/0!"},null,"",0]
[null,null,null,null,null,null,null,null,null,null,null,null,null,null,null,null,null,null,null,null,null,null,null,null,null,null,null,null,null,null,null,{"$error":"#N/A"},null,null,null,null,6,4,14,0,0,0,0,{"$error":"#DIV/0!"},null,"",0]
[null,null,null,null,null,null,null,null,null,null,null,null,null,null,null,null,null,null,null,null,null,null,null,null,null,null,null,null,null,null,null,{"$error":"#N/A"},null,null,null,null,0,0,0,0,0,0,0,{"$error":"#DIV/0!"},null,"",0]
[null,null,null,null,null,null,null,null,null,null,null,null,null,null,null,null,null,null,null,null,null,null,null,null,null,null,null,null,null,null,null,{"$error":"#N/A"},null,null,null,null,7,12,48,6,30,0,0,{"$error":"#DIV/0!"},null,"",0]
[null,null,null,null,null,null,null,null,null,null,null,null,null,null,null,null,null,null,null,null,null,null,null,null,null,null,null,null,null,null,null,{"$error":"#N/A"},null,null,null,null,1,13,13,6,30,0,0,{"$error":"#DIV/0!"},null,"",0]
[null,null,null,null,null,null,null,null,null,null,null,null,null,null,null,null,null,null,null,null,null,null,null,null,null,null,null,null,null,null,null,{"$f":"MATCH(B70,$AG$5:$AG$14,0)","v":{"$error":"#N/A"}},null,null,null,null,4,13,32.5,6,30,{"$f":"AH70*P70","v":0},{"$f":"AI70*Z70","v":0},{"$error":"#DIV/0!"},null,{"$f":"IF(OR(MID(H70,1,1)=\"N\",MID(H70,1,1)=\"Q\"),MID(H70,1,1),\"\")","v":""},{"$f":"IF(OR(MID(H70,1,1)=\"N\",MID(H70,1,1)=\"Q\"),INT(MID(H70,2,2)),H70)","v":0}]
[null,null,null,null,null,null,null,null,null,null,null,null,null,null,null,null,null,null,null,null,null,null,null,null,null,null,null,null,null,null,null,{"$error":"#N/A"},null,null,null,null,5,9,27,2,10,0,0,{"$error":"#DIV/0!"},null,"",0]
[null,null,null,null,null,null,null,null,null,null,null,null,null,null,null,null,null,null,null,null,null,null,null,null,null,null,null,null,null,null,null,{"$error":"#N/A"},null,null,null,null,1,10,10,6,30,0,0,{"$error":"#DIV/0!"},null,"",0]
[null,null,null,null,null,null,null,null,null,null,null,null,null,null,null,null,null,null,null,null,null,null,null,null,null,null,null,null,null,null,null,{"$error":"#N/A"},null,null,null,null,1,14,14,8,40,0,0,{"$f":"AQ73/AP73","v":{"$error":"#DIV/0!"}},null,"",0]
[null,null,null,null,null,null,null,null,null,null,null,null,null,null,null,null,null,null,null,null,null,null,null,null,null,null,null,null,null,null,null,{"$error":"#N/A"},null,null,null,null,2,8,12,4,20,0,0,{"$error":"#DIV/0!"},null,"",0]
[null,null,null,null,null,null,null,null,null,null,null,null,null,null,null,null,null,null,null,null,null,null,null,null,null,null,null,null,null,null,null,{"$error":"#N/A"},null,null,null,null,0,0,0,0,0,0,0,{"$error":"#DIV/0!"},null,"",0]
[null,null,null,null,null,null,null,null,null,null,null,null,null,null,null,null,null,null,null,null,null,null,null,null,null,null,null,null,null,null,null,{"$error":"#N/A"},null,null,null,null,1,4,4,0,0,0,0,{"$error":"#DIV/0!"},null,"",0]
[null,null,null,null,null,null,null,null,null,null,null,null,null,null,null,null,null,null,null,null,null,null,null,null,null,null,null,null,null,null,null,{"$error":"#N/A"},null,null,null,null,1,5,5,2,10,0,0,{"$error":"#DIV/0!"},null,"",0]
[null,null,null,null,null,null,null,null,null,null,null,null,null,null,null,null,null,null,null,null,null,null,null,null,null,null,null,null,null,null,null,{"$error":"#N/A"},null,null,null,null,5,5,15,0,0,0,0,{"$error":"#DIV/0!"},null,"",0]
[null,null,null,null,null,null,null,null,null,null,null,null,null,null,null,null,null,null,null,null,null,null,null,null,null,null,null,null,null,null,null,{"$error":"#N/A"},null,null,null,null,0,0,0,0,0,0,0,{"$error":"#DIV/0!"},null,"",0]
[null,null,null,null,null,null,null,null,null,null,null,null,null,null,null,null,null,null,null,null,null,null,null,null,null,null,null,null,null,null,null,{"$error":"#N/A"},null,null,null,null,7,16,64,4,20,0,0,{"$error":"#DIV/0!"},null,"",0]
[null,null,null,null,null,null,null,null,null,null,null,null,null,null,null,null,null,null,null,null,null,null,null,null,null,null,null,null,null,null,null,{"$error":"#N/A"},null,null,null,null,5,11,33,4,20,0,0,{"$error":"#DIV/0!"},null,"",0]
[null,null,null,null,null,null,null,null,null,null,null,null,null,null,null,null,null,null,null,null,null,null,null,null,null,null,null,null,null,null,null,{"$error":"#N/A"},null,null,null,null,0,0,0,0,0,0,0,{"$error":"#DIV/0!"},null,"",0]
[null,null,null,null,null,null,null,null,null,null,null,null,null,null,null,null,null,null,null,null,null,null,null,null,null,null,null,null,null,null,null,{"$error":"#N/A"},null,null,null,null,0,0,0,0,0,0,0,{"$error":"#DIV/0!"},null,"",0]
[null,null,null,null,null,null,null,null,null,null,null,null,null,null,null,null,null,null,null,null,null,null,null,null,null,null,null,null,null,null,null,{"$error":"#N/A"},null,null,null,null,5,7,21,0,0,0,0,{"$error":"#DIV/0!"},null,"",0]
[null,null,null,null,null,null,null,null,null,null,null,null,null,null,null,null,null,null,null,null,null,null,null,null,null,null,null,null,null,null,null,{"$error":"#N/A"},null,null,null,null,3,7,14,4,20,0,0,{"$error":"#DIV/0!"},null,"",0]
[null,null,null,null,null,null,null,null,null,null,null,null,null,null,null,null,null,null,null,null,null,null,null,null,null,null,null,null,null,null,null,{"$error":"#N/A"},null,null,null,null,0,0,0,0,0,0,0,{"$error":"#DIV/0!"},null,"",0]
[null,null,null,null,null,null,null,null,null,null,null,null,null,null,null,null,null,null,null,null,null,null,null,null,null,null,null,null,null,null,null,{"$error":"#N/A"},null,null,null,null,3,6,12,0,0,0,0,{"$error":"#DIV/0!"},null,"",0]
[null,null,null,null,null,null,null,null,null,null,null,null,null,null,null,null,null,null,null,null,null,null,null,null,null,null,null,null,null,null,null,{"$error":"#N/A"},null,null,null,null,3,6,12,0,0,0,0,{"$error":"#DIV/0!"},null,"",0]
[null,null,null,null,null,null,null,null,null,null,null,null,null,null,null,null,null,null,null,null,null,null,null,null,null,null,null,null,null,null,null,{"$error":"#N/A"},null,null,null,null,1,6,6,2,10,0,0,{"$error":"#DIV/0!"},null,"",0]
[null,null,null,null,null,null,null,null,null,null,null,null,null,null,null,null,null,null,null,null,null,null,null,null,null,null,null,null,null,null,null,{"$error":"#N/A"},null,null,null,null,6,4,14,0,0,0,0,{"$error":"#DIV/0!"},null,"",0]
[null,null,null,null,null,null,null,null,null,null,null,null,null,null,null,null,null,null,null,null,null,null,null,null,null,null,null,null,null,null,null,{"$error":"#N/A"},null,null,null,null,0,0,0,0,0,0,0,{"$error":"#DIV/0!"},null,"",0]
[null,null,null,null,null,null,null,null,null,null,null,null,null,null,null,null,null,null,null,null,null,null,null,null,null,null,null,null,null,null,null,{"$error":"#N/A"},null,null,null,null,5,4,12,0,0,0,0,{"$error":"#DIV/0!"},null,"",0]
[null,null,null,null,null,null,null,null,null,null,null,null,null,null,null,null,null,null,null,null,null,null,null,null,null,null,null,null,null,null,null,{"$error":"#N/A"},null,null,null,null,8,12,54,0,0,0,0,{"$error":"#DIV/0!"},null,"",0]
[null,null,null,null,null,null,null,null,null,null,null,null,null,null,null,null,null,null,null,null,null,null,null,null,null,null,null,null,null,null,null,{"$error":"#N/A"},null,null,null,null,0,0,0,0,0,0,0,{"$error":"#DIV/0!"},null,"",0]
[null,null,null,null,null,null,null,null,null,null,null,null,null,null,null,null,null,null,null,null,null,null,null,null,null,null,null,null,null,null,null,{"$error":"#N/A"},null,null,null,null,6,7,24.5,0,0,0,0,{"$error":"#DIV/0!"},null,"",0]
[null,null,null,null,null,null,null,null,null,null,null,null,null,null,null,null,null,null,null,null,null,null,null,null,null,null,null,null,null,null,null,{"$error":"#N/A"},null,null,null,null,0,0,0,0,0,0,0,{"$error":"#DIV/0!"},null,"",0]
[null,null,null,null,null,null,null,null,null,null,null,null,null,null,null,null,null,null,null,null,null,null,null,null,null,null,null,null,null,null,null,{"$error":"#N/A"},null,null,null,null,6,4,14,0,0,0,0,{"$error":"#DIV/0!"},null,"",0]
[null,null,null,null,null,null,null,null,null,null,null,null,null,null,null,null,null,null,null,null,null,null,null,null,null,null,null,null,null,null,null,{"$error":"#N/A"},null,null,null,null,5,10,30,4,20,0,0,{"$error":"#DIV/0!"},null,"",0]
[null,null,null,null,null,null,null,null,null,null,null,null,null,null,null,null,null,null,null,null,null,null,null,null,null,null,null,null,null,null,null,{"$error":"#N/A"},null,null,null,null,7,7,28,0,0,0,0,{"$error":"#DIV/0!"},null,"",0]
[null,null,null,null,null,null,null,null,null,null,null,null,null,null,null,null,null,null,null,null,null,null,null,null,null,null,null,null,null,null,null,{"$error":"#N/A"},null,null,null,null,8,4,18,0,0,0,0,{"$error":"#DIV/0!"},null,"",0]
[null,null,null,null,null,null,null,null,null,null,null,null,null,null,null,null,null,null,null,null,null,null,null,null,null,null,null,null,null,null,null,{"$error":"#N/A"},null,null,null,null,2,4,6,0,0,0,0,{"$error":"#DIV/0!"},null,"",0]
[null,null,null,null,null,null,null,null,null,null,null,null,null,null,null,null,null,null,null,null,null,null,null,null,null,null,null,null,null,null,null,{"$error":"#N/A"},null,null,null,null,1,4,4,0,0,0,0,{"$error":"#DIV/0!"},null,"",0]
[null,null,null,null,null,null,null,null,null,null,null,null,null,null,null,null,null,null,null,null,null,null,null,null,null,null,null,null,null,null,null,{"$error":"#N/A"},null,null,null,null,8,4,18,0,0,0,0,{"$error":"#DIV/0!"},null,"",0]
[null,null,null,null,null,null,null,null,null,null,null,null,null,null,null,null,null,null,null,null,null,null,null,null,null,null,null,null,null,null,null,{"$error":"#N/A"},null,null,null,null,null,null,null,null,null,null,null,null,null,"",0]
[null,null,null,null,null,null,null,null,null,null,null,null,null,null,null,null,null,null,null,null,null,null,null,null,null,null,null,null,null,null,null,{"$error":"#N/A"},null,null,null,null,null,null,null,null,null,null,null,null,null,"",0]
[null,null,null,null,null,null,null,null,null,null,null,null,null,null,null,null,null,null,null,null,null,null,null,null,null,null,null,null,null,null,null,{"$error":"#N/A"},null,null,null,null,null,null,null,null,null,null,null,null,null,"",0]
[null,null,null,null,null,null,null,null,null,null,null,null,null,null,null,null,null,null,null,null,null,null,null,null,null,null,null,null,null,null,null,{"$error":"#N/A"},null,null,null,null,null,null,null,null,null,null,null,null,null,"",0]
[null,null,null,null,null,null,null,null,null,null,null,null,null,null,null,null,null,null,null,null,null,null,null,null,null,null,null,null,null,null,null,{"$error":"#N/A"},null,null,null,null,null,null,null,null,null,null,null,null,null,"",0]
[null,null,null,null,null,null,null,null,null,null,null,null,null,null,null,null,null,null,null,null,null,null,null,null,null,null,null,null,null,null,null,{"$error":"#N/A"},null,null,null,null,null,null,null,null,null,null,null,null,null,"",0]
[null,null,null,null,null,null,null,null,null,null,null,null,null,null,null,null,null,null,null,null,null,null,null,null,null,null,null,null,null,null,null,{"$error":"#N/A"},null,null,null,null,null,null,null,null,null,null,null,null,null,"",0]
[null,null,null,null,null,null,null,null,null,null,null,null,null,null,null,null,null,null,null,null,null,null,null,null,null,null,null,null,null,null,null,{"$error":"#N/A"},null,null,null,null,null,null,null,null,null,null,null,null,null,"",0]
[null,null,null,null,null,null,null,null,null,null,null,null,null,null,null,null,null,null,null,null,null,null,null,null,null,null,null,null,null,null,null,{"$error":"#N/A"},null,null,null,null,null,null,null,null,null,null,null,null,null,"",0]
[null,null,null,null,null,null,null,null,null,null,null,null,null,null,null,null,null,null,null,null,null,null,null,null,null,null,null,null,null,null,null,{"$error":"#N/A"},null,null,null,null,null,null,null,null,null,null,null,null,null,"",0]
[null,null,null,null,null,null,null,null,null,null,null,null,null,null,null,null,null,null,null,null,null,null,null,null,null,null,null,null,null,null,null,{"$error":"#N/A"},null,null,null,null,null,null,null,null,null,null,null,null,null,"",0]
[null,null,null,null,null,null,null,null,null,null,null,null,null,null,null,null,null,null,null,null,null,null,null,null,null,null,null,null,null,null,null,{"$error":"#N/A"},null,null,null,null,null,null,null,null,null,null,null,null,null,"",0]
[null,null,null,null,null,null,null,null,null,null,null,null,null,null,null,null,null,null,null,null,null,null,null,null,null,null,null,null,null,null,null,{"$error":"#N/A"},null,null,null,null,null,null,null,null,null,null,null,null,null,"",0]
[null,null,null,null,null,null,null,null,null,null,null,null,null,null,null,null,null,null,null,null,null,null,null,null,null,null,null,null,null,null,null,{"$error":"#N/A"},null,null,null,null,null,null,null,null,null,null,null,null,null,"",0]
[null,null,null,null,null,null,null,null,null,null,null,null,null,null,null,null,null,null,null,null,null,null,null,null,null,null,null,null,null,null,null,{"$error":"#N/A"},null,null,null,null,null,null,null,null,null,null,null,null,null,"",0]
[null,null,null,null,null,null,null,null,null,null,null,null,null,null,null,null,null,null,null,null,null,null,null,null,null,null,null,null,null,null,null,{"$error":"#N/A"},null,null,null,null,null,null,null,null,null,null,null,null,null,"",0]
[null,null,null,null,null,null,null,null,null,null,null,null,null,null,null,null,null,null,null,null,null,null,null,null,null,null,null,null,null,null,null,{"$error":"#N/A"},null,null,null,null,null,null,null,null,null,null,null,null,null,"",0]
[null,null,null,null,null,null,null,null,null,null,null,null,null,null,null,null,null,null,null,null,null,null,null,null,null,null,null,null,null,null,null,{"$error":"#N/A"},null,null,null,null,null,null,null,null,null,null,null,null,null,"",0]
[null,null,null,null,null,null,null,null,null,null,null,null,null,null,null,null,null,null,null,null,null,null,null,null,null,null,null,null,null,null,null,{"$error":"#N/A"},null,null,null,null,null,null,null,null,null,null,null,null,null,"",0]
[null,null,null,null,null,null,null,null,null,null,null,null,null,null,null,null,null,null,null,null,null,null,null,null,null,null,null,null,null,null,null,{"$error":"#N/A"},null,null,null,null,null,null,null,null,null,null,null,null,null,"",0]
[null,null,null,null,null,null,null,null,null,null,null,null,null,null,null,null,null,null,null,null,null,null,null,null,null,null,null,null,null,null,null,{"$error":"#N/A"},null,null,null,null,null,null,null,null,null,null,null,null,null,"",0]
[null,null,null,null,null,null,null,null,null,null,null,null,null,null,null,null,null,null,null,null,null,null,null,null,null,null,null,null,null,null,null,{"$error":"#N/A"},null,null,null,null,null,null,null,null,null,null,null,null,null,"",0]
[null,null,null,null,null,null,null,null,null,null,null,null,null,null,null,null,null,null,null,null,null,null,null,null,null,null,null,null,null,null,null,{"$error":"#N/A"},null,null,null,null,null,null,null,null,null,null,null,null,null,"",0]
[null,null,null,null,null,null,null,null,null,null,null,null,null,null,null,null,null,null,null,null,null,null,null,null,null,null,null,null,null,null,null,{"$error":"#N/A"},null,null,null,null,null,null,null,null,null,null,null,null,null,"",0]
[null,null,null,null,null,null,null,null,null,null,null,null,null,null,null,null,null,null,null,null,null,null,null,null,null,null,null,null,null,null,null,{"$error":"#N/A"},null,null,null,null,null,null,null,null,null,null,null,null,null,"",0]
[null,null,null,null,null,null,null,null,null,null,null,null,null,null,null,null,null,null,null,null,null,null,null,null,null,null,null,null,null,null,null,{"$error":"#N/A"},null,null,null,null,null,null,null,null,null,null,null,null,null,"",0]
[null,null,null,null,null,null,null,null,null,null,null,null,null,null,null,null,null,null,null,null,null,null,null,null,null,null,null,null,null,null,null,{"$error":"#N/A"},null,null,null,null,null,null,null,null,null,null,null,null,null,"",0]
[null,null,null,null,null,null,null,null,null,null,null,null,null,null,null,null,null,null,null,null,null,null,null,null,null,null,null,null,null,null,null,{"$error":"#N/A"},null,null,null,null,null,null,null,null,null,null,null,null,null,"",0]
[null,null,null,null,null,null,null,null,null,null,null,null,null,null,null,null,null,null,null,null,null,null,null,null,null,null,null,null,null,null,null,{"$error":"#N/A"},null,null,null,null,null,null,null,null,null,null,null,null,null,"",0]
[null,null,null,null,null,null,null,null,null,null,null,null,null,null,null,null,null,null,null,null,null,null,null,null,null,null,null,null,null,null,null,{"$error":"#N/A"},null,null,null,null,null,null,null,null,null,null,null,null,null,"",0]
[null,null,null,null,null,null,null,null,null,null,null,null,null,null,null,null,null,null,null,null,null,null,null,null,null,null,null,null,null,null,null,{"$f":"MATCH(B134,$AG$5:$AG$14,0)","v":{"$error":"#N/A"}},null,null,null,null,null,null,null,null,null,null,null,null,null,{"$f":"IF(OR(MID(H134,1,1)=\"N\",MID(H134,1,1)=\"Q\"),MID(H134,1,1),\"\")","v":""},{"$f":"IF(OR(MID(H134,1,1)=\"N\",MID(H134,1,1)=\"Q\"),INT(MID(H134,2,2)),H134)","v":0}]
[null,null,null,null,null,null,null,null,null,null,null,null,null,null,null,null,null,null,null,null,null,null,null,null,null,null,null,null,null,null,null,{"$error":"#N/A"},null,null,null,null,null,null,null,null,null,null,null,null,null,"",0]
[null,null,null,null,null,null,null,null,null,null,null,null,null,null,null,null,null,null,null,null,null,null,null,null,null,null,null,null,null,null,null,{"$error":"#N/A"},null,null,null,null,null,null,null,null,null,null,null,null,null,"",0]
[null,null,null,null,null,null,null,null,null,null,null,null,null,null,null,null,null,null,null,null,null,null,null,null,null,null,null,null,null,null,null,{"$error":"#N/A"},null,null,null,null,null,null,null,null,null,null,null,null,null,"",0]
[null,null,null,null,null,null,null,null,null,null,null,null,null,null,null,null,null,null,null,null,null,null,null,null,null,null,null,null,null,null,null,{"$error":"#N/A"},null,null,null,null,null,null,null,null,null,null,null,null,null,"",0]
[null,null,null,null,null,null,null,null,null,null,null,null,null,null,null,null,null,null,null,null,null,null,null,null,null,null,null,null,null,null,null,{"$error":"#N/A"},null,null,null,null,null,null,null,null,null,null,null,null,null,"",0]
[null,null,null,null,null,null,null,null,null,null,null,null,null,null,null,null,null,null,null,null,null,null,null,null,null,null,null,null,null,null,null,{"$error":"#N/A"},null,null,null,null,null,null,null,null,null,null,null,null,null,"",0]
[null,null,null,null,null,null,null,null,null,null,null,null,null,null,null,null,null,null,null,null,null,null,null,null,null,null,null,null,null,null,null,{"$error":"#N/A"},null,null,null,null,null,null,null,null,null,null,null,null,null,"",0]
[null,null,null,null,null,null,null,null,null,null,null,null,null,null,null,null,null,null,null,null,null,null,null,null,null,null,null,null,null,null,null,{"$error":"#N/A"},null,null,null,null,null,null,null,null,null,null,null,null,null,"",0]
[null,null,null,null,null,null,null,null,null,null,null,null,null,null,null,null,null,null,null,null,null,null,null,null,null,null,null,null,null,null,null,{"$error":"#N/A"},null,null,null,null,null,null,null,null,null,null,null,null,null,"",0]
[null,null,null,null,null,null,null,null,null,null,null,null,null,null,null,null,null,null,null,null,null,null,null,null,null,null,null,null,null,null,null,{"$error":"#N/A"},null,null,null,null,null,null,null,null,null,null,null,null,null,"",0]
[null,null,null,null,null,null,null,null,null,null,null,null,null,null,null,null,null,null,null,null,null,null,null,null,null,null,null,null,null,null,null,{"$error":"#N/A"},null,null,null,null,null,null,null,null,null,null,null,null,null,"",0]
[null,null,null,null,null,null,null,null,null,null,null,null,null,null,null,null,null,null,null,null,null,null,null,null,null,null,null,null,null,null,null,{"$error":"#N/A"},null,null,null,null,null,null,null,null,null,null,null,null,null,"",0]
[null,null,null,null,null,null,null,null,null,null,null,null,null,null,null,null,null,null,null,null,null,null,null,null,null,null,null,null,null,null,null,{"$error":"#N/A"},null,null,null,null,null,null,null,null,null,null,null,null,null,"",0]
[null,null,null,null,null,null,null,null,null,null,null,null,null,null,null,null,null,null,null,null,null,null,null,null,null,null,null,null,null,null,null,{"$error":"#N/A"},null,null,null,null,null,null,null,null,null,null,null,null,null,"",0]
[null,null,null,null,null,null,null,null,null,null,null,null,null,null,null,null,null,null,null,null,null,null,null,null,null,null,null,null,null,null,null,{"$error":"#N/A"},null,null,null,null,null,null,null,null,null,null,null,null,null,"",0]
[null,null,null,null,null,null,null,null,null,null,null,null,null,null,null,null,null,null,null,null,null,null,null,null,null,null,null,null,null,null,null,{"$error":"#N/A"},null,null,null,null,null,null,null,null,null,null,null,null,null,"",0]
[null,null,null,null,null,null,null,null,null,null,null,null,null,null,null,null,null,null,null,null,null,null,null,null,null,null,null,null,null,null,null,{"$error":"#N/A"},null,null,null,null,null,null,null,null,null,null,null,null,null,"",0]
[null,null,null,null,null,null,null,null,null,null,null,null,null,null,null,null,null,null,null,null,null,null,null,null,null,null,null,null,null,null,null,{"$error":"#N/A"},null,null,null,null,null,null,null,null,null,null,null,null,null,"",0]
[null,null,null,null,null,null,null,null,null,null,null,null,null,null,null,null,null,null,null,null,null,null,null,null,null,null,null,null,null,null,null,{"$error":"#N/A"},null,null,null,null,null,null,null,null,null,null,null,null,null,"",0]
[null,null,null,null,null,null,null,null,null,null,null,null,null,null,null,null,null,null,null,null,null,null,null,null,null,null,null,null,null,null,null,{"$error":"#N/A"},null,null,null,null,null,null,null,null,null,null,null,null,null,"",0]
[null,null,null,null,null,null,null,null,null,null,null,null,null,null,null,null,null,null,null,null,null,null,null,null,null,null,null,null,null,null,null,{"$error":"#N/A"},null,null,null,null,null,null,null,null,null,null,null,null,null,"",0]
[null,null,null,null,null,null,null,null,null,null,null,null,null,null,null,null,null,null,null,null,null,null,null,null,null,null,null,null,null,null,null,{"$error":"#N/A"},null,null,null,null,null,null,null,null,null,null,null,null,null,"",0]
[null,null,null,null,null,null,null,null,null,null,null,null,null,null,null,null,null,null,null,null,null,null,null,null,null,null,null,null,null,null,null,{"$error":"#N/A"},null,null,null,null,null,null,null,null,null,null,null,null,null,"",0]
[null,null,null,null,null,null,null,null,null,null,null,null,null,null,null,null,null,null,null,null,null,null,null,null,null,null,null,null,null,null,null,{"$error":"#N/A"},null,null,null,null,null,null,null,null,null,null,null,null,null,"",0]
[null,null,null,null,null,null,null,null,null,null,null,null,null,null,null,null,null,null,null,null,null,null,null,null,null,null,null,null,null,null,null,{"$error":"#N/A"},null,null,null,null,null,null,null,null,null,null,null,null,null,"",0]
[null,null,null,null,null,null,null,null,null,null,null,null,null,null,null,null,null,null,null,null,null,null,null,null,null,null,null,null,null,null,null,{"$error":"#N/A"},null,null,null,null,null,null,null,null,null,null,null,null,null,"",0]
[null,null,null,null,null,null,null,null,null,null,null,null,null,null,null,null,null,null,null,null,null,null,null,null,null,null,null,null,null,null,null,{"$error":"#N/A"},null,null,null,null,null,null,null,null,null,null,null,null,null,"",0]
[null,null,null,null,null,null,null,null,null,null,null,null,null,null,null,null,null,null,null,null,null,null,null,null,null,null,null,null,null,null,null,{"$error":"#N/A"},null,null,null,null,null,null,null,null,null,null,null,null,null,"",0]
[null,null,null,null,null,null,null,null,null,null,null,null,null,null,null,null,null,null,null,null,null,null,null,null,null,null,null,null,null,null,null,{"$error":"#N/A"},null,null,null,null,null,null,null,null,null,null,null,null,null,"",0]
[null,null,null,null,null,null,null,null,null,null,null,null,null,null,null,null,null,null,null,null,null,null,null,null,null,null,null,null,null,null,null,{"$error":"#N/A"},null,null,null,null,null,null,null,null,null,null,null,null,null,"",0]
[null,null,null,null,null,null,null,null,null,null,null,null,null,null,null,null,null,null,null,null,null,null,null,null,null,null,null,null,null,null,null,{"$error":"#N/A"},null,null,null,null,null,null,null,null,null,null,null,null,null,"",0]
[null,null,null,null,null,null,null,null,null,null,null,null,null,null,null,null,null,null,null,null,null,null,null,null,null,null,null,null,null,null,null,{"$error":"#N/A"},null,null,null,null,null,null,null,null,null,null,null,null,null,"",0]
[null,null,null,null,null,null,null,null,null,null,null,null,null,null,null,null,null,null,null,null,null,null,null,null,null,null,null,null,null,null,null,{"$error":"#N/A"},null,null,null,null,null,null,null,null,null,null,null,null,null,"",0]
[null,null,null,null,null,null,null,null,null,null,null,null,null,null,null,null,null,null,null,null,null,null,null,null,null,null,null,null,null,null,null,{"$error":"#N/A"},null,null,null,null,null,null,null,null,null,null,null,null,null,"",0]
[null,null,null,null,null,null,null,null,null,null,null,null,null,null,null,null,null,null,null,null,null,null,null,null,null,null,null,null,null,null,null,{"$error":"#N/A"},null,null,null,null,null,null,null,null,null,null,null,null,null,"",0]
[null,null,null,null,null,null,null,null,null,null,null,null,null,null,null,null,null,null,null,null,null,null,null,null,null,null,null,null,null,null,null,{"$error":"#N/A"},null,null,null,null,null,null,null,null,null,null,null,null,null,"",0]
[null,null,null,null,null,null,null,null,null,null,null,null,null,null,null,null,null,null,null,null,null,null,null,null,null,null,null,null,null,null,null,{"$error":"#N/A"},null,null,null,null,null,null,null,null,null,null,null,null,null,"",0]
[null,null,null,null,null,null,null,null,null,null,null,null,null,null,null,null,null,null,null,null,null,null,null,null,null,null,null,null,null,null,null,{"$error":"#N/A"},null,null,null,null,null,null,null,null,null,null,null,null,null,"",0]
[null,null,null,null,null,null,null,null,null,null,null,null,null,null,null,null,null,null,null,null,null,null,null,null,null,null,null,null,null,null,null,{"$error":"#N/A"},null,null,null,null,null,null,null,null,null,null,null,null,null,"",0]
[null,null,null,null,null,null,null,null,null,null,null,null,null,null,null,null,null,null,null,null,null,null,null,null,null,null,null,null,null,null,null,{"$error":"#N/A"},null,null,null,null,null,null,null,null,null,null,null,null,null,"",0]
[null,null,null,null,null,null,null,null,null,null,null,null,null,null,null,null,null,null,null,null,null,null,null,null,null,null,null,null,null,null,null,{"$error":"#N/A"},null,null,null,null,null,null,null,null,null,null,null,null,null,"",0]
[null,null,null,null,null,null,null,null,null,null,null,null,null,null,null,null,null,null,null,null,null,null,null,null,null,null,null,null,null,null,null,{"$error":"#N/A"},null,null,null,null,null,null,null,null,null,null,null,null,null,"",0]
[null,null,null,null,null,null,null,null,null,null,null,null,null,null,null,null,null,null,null,null,null,null,null,null,null,null,null,null,null,null,null,{"$error":"#N/A"},null,null,null,null,null,null,null,null,null,null,null,null,null,"",0]
[null,null,null,null,null,null,null,null,null,null,null,null,null,null,null,null,null,null,null,null,null,null,null,null,null,null,null,null,null,null,null,{"$error":"#N/A"},null,null,null,null,null,null,null,null,null,null,null,null,null,"",0]
[null,null,null,null,null,null,null,null,null,null,null,null,null,null,null,null,null,null,null,null,null,null,null,null,null,null,null,null,null,null,null,{"$error":"#N/A"},null,null,null,null,null,null,null,null,null,null,null,null,null,"",0]
[null,null,null,null,null,null,null,null,null,null,null,null,null,null,null,null,null,null,null,null,null,null,null,null,null,null,null,null,null,null,null,{"$error":"#N/A"},null,null,null,null,null,null,null,null,null,null,null,null,null,"",0]
[null,null,null,null,null,null,null,null,null,null,null,null,null,null,null,null,null,null,null,null,null,null,null,null,null,null,null,null,null,null,null,{"$error":"#N/A"},null,null,null,null,null,null,null,null,null,null,null,null,null,"",0]
[null,null,null,null,null,null,null,null,null,null,null,null,null,null,null,null,null,null,null,null,null,null,null,null,null,null,null,null,null,null,null,{"$error":"#N/A"},null,null,null,null,null,null,null,null,null,null,null,null,null,"",0]
[null,null,null,null,null,null,null,null,null,null,null,null,null,null,null,null,null,null,null,null,null,null,null,null,null,null,null,null,null,null,null,{"$error":"#N/A"},null,null,null,null,null,null,null,null,null,null,null,null,null,"",0]
[null,null,null,null,null,null,null,null,null,null,null,null,null,null,null,null,null,null,null,null,null,null,null,null,null,null,null,null,null,null,null,{"$error":"#N/A"},null,null,null,null,null,null,null,null,null,null,null,null,null,"",0]
[null,null,null,null,null,null,null,null,null,null,null,null,null,null,null,null,null,null,null,null,null,null,null,null,null,null,null,null,null,null,null,{"$error":"#N/A"},null,null,null,null,null,null,null,null,null,null,null,null,null,"",0]
[null,null,null,null,null,null,null,null,null,null,null,null,null,null,null,null,null,null,null,null,null,null,null,null,null,null,null,null,null,null,null,{"$error":"#N/A"},null,null,null,null,null,null,null,null,null,null,null,null,null,"",0]
[null,null,null,null,null,null,null,null,null,null,null,null,null,null,null,null,null,null,null,null,null,null,null,null,null,null,null,null,null,null,null,{"$error":"#N/A"},null,null,null,null,null,null,null,null,null,null,null,null,null,"",0]
[null,null,null,null,null,null,null,null,null,null,null,null,null,null,null,null,null,null,null,null,null,null,null,null,null,null,null,null,null,null,null,{"$error":"#N/A"},null,null,null,null,null,null,null,null,null,null,null,null,null,"",0]
[null,null,null,null,null,null,null,null,null,null,null,null,null,null,null,null,null,null,null,null,null,null,null,null,null,null,null,null,null,null,null,{"$error":"#N/A"},null,null,null,null,null,null,null,null,null,null,null,null,null,"",0]
[null,null,null,null,null,null,null,null,null,null,null,null,null,null,null,null,null,null,null,null,null,null,null,null,null,null,null,null,null,null,null,{"$error":"#N/A"},null,null,null,null,null,null,null,null,null,null,null,null,null,"",0]
[null,null,null,null,null,null,null,null,null,null,null,null,null,null,null,null,null,null,null,null,null,null,null,null,null,null,null,null,null,null,null,{"$error":"#N/A"},null,null,null,null,null,null,null,null,null,null,null,null,null,"",0]
[null,null,null,null,null,null,null,null,null,null,null,null,null,null,null,null,null,null,null,null,null,null,null,null,null,null,null,null,null,null,null,{"$error":"#N/A"},null,null,null,null,null,null,null,null,null,null,null,null,null,"",0]
[null,null,null,null,null,null,null,null,null,null,null,null,null,null,null,null,null,null,null,null,null,null,null,null,null,null,null,null,null,null,null,{"$error":"#N/A"},null,null,null,null,null,null,null,null,null,null,null,null,null,"",0]
[null,null,null,null,null,null,null,null,null,null,null,null,null,null,null,null,null,null,null,null,null,null,null,null,null,null,null,null,null,null,null,{"$error":"#N/A"},null,null,null,null,null,null,null,null,null,null,null,null,null,"",0]
[null,null,null,null,null,null,null,null,null,null,null,null,null,null,null,null,null,null,null,null,null,null,null,null,null,null,null,null,null,null,null,{"$error":"#N/A"},null,null,null,null,null,null,null,null,null,null,null,null,null,"",0]
[null,null,null,null,null,null,null,null,null,null,null,null,null,null,null,null,null,null,null,null,null,null,null,null,null,null,null,null,null,null,null,{"$error":"#N/A"},null,null,null,null,null,null,null,null,null,null,null,null,null,"",0]
[null,null,null,null,null,null,null,null,null,null,null,null,null,null,null,null,null,null,null,null,null,null,null,null,null,null,null,null,null,null,null,{"$error":"#N/A"},null,null,null,null,null,null,null,null,null,null,null,null,null,"",0]
[null,null,null,null,null,null,null,null,null,null,null,null,null,null,null,null,null,null,null,null,null,null,null,null,null,null,null,null,null,null,null,{"$f":"MATCH(B198,$AG$5:$AG$14,0)","v":{"$error":"#N/A"}},null,null,null,null,null,null,null,null,null,null,null,null,null,{"$f":"IF(OR(MID(H198,1,1)=\"N\",MID(H198,1,1)=\"Q\"),MID(H198,1,1),\"\")","v":""},{"$f":"IF(OR(MID(H198,1,1)=\"N\",MID(H198,1,1)=\"Q\"),INT(MID(H198,2,2)),H198)","v":0}]
[null,null,null,null,null,null,null,null,null,null,null,null,null,null,null,null,null,null,null,null,null,null,null,null,null,null,null,null,null,null,null,{"$error":"#N/A"},null,null,null,null,null,null,null,null,null,null,null,null,null,"",0]
[null,null,null,null,null,null,null,null,null,null,null,null,null,null,null,null,null,null,null,null,null,null,null,null,null,null,null,null,null,null,null,{"$error":"#N/A"},null,null,null,null,null,null,null,null,null,null,null,null,null,"",0]
[null,null,null,null,null,null,null,null,null,null,null,null,null,null,null,null,null,null,null,null,null,null,null,null,null,null,null,null,null,null,null,{"$error":"#N/A"},null,null,null,null,null,null,null,null,null,null,null,null,null,"",0]
[null,null,null,null,null,null,null,null,null,null,null,null,null,null,null,null,null,null,null,null,null,null,null,null,null,null,null,null,null,null,null,{"$error":"#N/A"},null,null,null,null,null,null,null,null,null,null,null,null,null,"",0]
[null,null,null,null,null,null,null,null,null,null,null,null,null,null,null,null,null,null,null,null,null,null,null,null,null,null,null,null,null,null,null,{"$error":"#N/A"},null,null,null,null,null,null,null,null,null,null,null,null,null,"",0]
[null,null,null,null,null,null,null,null,null,null,null,null,null,null,null,null,null,null,null,null,null,null,null,null,null,null,null,null,null,null,null,{"$error":"#N/A"},null,null,null,null,null,null,null,null,null,null,null,null,null,"",0]
[null,null,null,null,null,null,null,null,null,null,null,null,null,null,null,null,null,null,null,null,null,null,null,null,null,null,null,null,null,null,null,{"$error":"#N/A"},null,null,null,null,null,null,null,null,null,null,null,null,null,"",0]
[null,null,null,null,null,null,null,null,null,null,null,null,null,null,null,null,null,null,null,null,null,null,null,null,null,null,null,null,null,null,null,{"$error":"#N/A"},null,null,null,null,null,null,null,null,null,null,null,null,null,"",0]
[null,null,null,null,null,null,null,null,null,null,null,null,null,null,null,null,null,null,null,null,null,null,null,null,null,null,null,null,null,null,null,{"$error":"#N/A"},null,null,null,null,null,null,null,null,null,null,null,null,null,"",0]
[null,null,null,null,null,null,null,null,null,null,null,null,null,null,null,null,null,null,null,null,null,null,null,null,null,null,null,null,null,null,null,{"$error":"#N/A"},null,null,null,null,null,null,null,null,null,null,null,null,null,"",0]
[null,null,null,null,null,null,null,null,null,null,null,null,null,null,null,null,null,null,null,null,null,null,null,null,null,null,null,null,null,null,null,{"$error":"#N/A"},null,null,null,null,null,null,null,null,null,null,null,null,null,"",0]
[null,null,null,null,null,null,null,null,null,null,null,null,null,null,null,null,null,null,null,null,null,null,null,null,null,null,null,null,null,null,null,{"$error":"#N/A"},null,null,null,null,null,null,null,null,null,null,null,null,null,"",0]
[null,null,null,null,null,null,null,null,null,null,null,null,null,null,null,null,null,null,null,null,null,null,null,null,null,null,null,null,null,null,null,{"$error":"#N/A"},null,null,null,null,null,null,null,null,null,null,null,null,null,"",0]
[null,null,null,null,null,null,null,null,null,null,null,null,null,null,null,null,null,null,null,null,null,null,null,null,null,null,null,null,null,null,null,{"$error":"#N/A"},null,null,null,null,null,null,null,null,null,null,null,null,null,"",0]
[null,null,null,null,null,null,null,null,null,null,null,null,null,null,null,null,null,null,null,null,null,null,null,null,null,null,null,null,null,null,null,{"$error":"#N/A"},null,null,null,null,null,null,null,null,null,null,null,null,null,"",0]
[null,null,null,null,null,null,null,null,null,null,null,null,null,null,null,null,null,null,null,null,null,null,null,null,null,null,null,null,null,null,null,{"$error":"#N/A"},null,null,null,null,null,null,null,null,null,null,null,null,null,"",0]
[null,null,null,null,null,null,null,null,null,null,null,null,null,null,null,null,null,null,null,null,null,null,null,null,null,null,null,null,null,null,null,{"$error":"#N/A"},null,null,null,null,null,null,null,null,null,null,null,null,null,"",0]
[null,null,null,null,null,null,null,null,null,null,null,null,null,null,null,null,null,null,null,null,null,null,null,null,null,null,null,null,null,null,null,{"$error":"#N/A"},null,null,null,null,null,null,null,null,null,null,null,null,null,"",0]
[null,null,null,null,null,null,null,null,null,null,null,null,null,null,null,null,null,null,null,null,null,null,null,null,null,null,null,null,null,null,null,{"$error":"#N/A"},null,null,null,null,null,null,null,null,null,null,null,null,null,"",0]
[null,null,null,null,null,null,null,null,null,null,null,null,null,null,null,null,null,null,null,null,null,null,null,null,null,null,null,null,null,null,null,{"$error":"#N/A"},null,null,null,null,null,null,null,null,null,null,null,null,null,"",0]
[null,null,null,null,null,null,null,null,null,null,null,null,null,null,null,null,null,null,null,null,null,null,null,null,null,null,null,null,null,null,null,{"$error":"#N/A"},null,null,null,null,null,null,null,null,null,null,null,null,null,"",0]
[null,null,null,null,null,null,null,null,null,null,null,null,null,null,null,null,null,null,null,null,null,null,null,null,null,null,null,null,null,null,null,{"$error":"#N/A"},null,null,null,null,null,null,null,null,null,null,null,null,null,"",0]
[null,null,null,null,null,null,null,null,null,null,null,null,null,null,null,null,null,null,null,null,null,null,null,null,null,null,null,null,null,null,null,{"$error":"#N/A"},null,null,null,null,null,null,null,null,null,null,null,null,null,"",0]
[null,null,null,null,null,null,null,null,null,null,null,null,null,null,null,null,null,null,null,null,null,null,null,null,null,null,null,null,null,null,null,{"$error":"#N/A"},null,null,null,null,null,null,null,null,null,null,null,null,null,"",0]
[null,null,null,null,null,null,null,null,null,null,null,null,null,null,null,null,null,null,null,null,null,null,null,null,null,null,null,null,null,null,null,{"$error":"#N/A"},null,null,null,null,null,null,null,null,null,null,null,null,null,"",0]
[null,null,null,null,null,null,null,null,null,null,null,null,null,null,null,null,null,null,null,null,null,null,null,null,null,null,null,null,null,null,null,{"$error":"#N/A"},null,null,null,null,null,null,null,null,null,null,null,null,null,"",0]
[null,null,null,null,null,null,null,null,null,null,null,null,null,null,null,null,null,null,null,null,null,null,null,null,null,null,null,null,null,null,null,{"$error":"#N/A"},null,null,null,null,null,null,null,null,null,null,null,null,null,"",0]
[null,null,null,null,null,null,null,null,null,null,null,null,null,null,null,null,null,null,null,null,null,null,null,null,null,null,null,null,null,null,null,{"$error":"#N/A"},null,null,null,null,null,null,null,null,null,null,null,null,null,"",0]
[null,null,null,null,null,null,null,null,null,null,null,null,null,null,null,null,null,null,null,null,null,null,null,null,null,null,null,null,null,null,null,{"$error":"#N/A"},null,null,null,null,null,null,null,null,null,null,null,null,null,"",0]
[null,null,null,null,null,null,null,null,null,null,null,null,null,null,null,null,null,null,null,null,null,null,null,null,null,null,null,null,null,null,null,{"$error":"#N/A"},null,null,null,null,null,null,null,null,null,null,null,null,null,"",0]
[null,null,null,null,null,null,null,null,null,null,null,null,null,null,null,null,null,null,null,null,null,null,null,null,null,null,null,null,null,null,null,{"$error":"#N/A"},null,null,null,null,null,null,null,null,null,null,null,null,null,"",0]
[null,null,null,null,null,null,null,null,null,null,null,null,null,null,null,null,null,null,null,null,null,null,null,null,null,null,null,null,null,null,null,{"$error":"#N/A"},null,null,null,null,null,null,null,null,null,null,null,null,null,"",0]
[null,null,null,null,null,null,null,null,null,null,null,null,null,null,null,null,null,null,null,null,null,null,null,null,null,null,null,null,null,null,null,{"$error":"#N/A"},null,null,null,null,null,null,null,null,null,null,null,null,null,"",0]
[null,null,null,null,null,null,null,null,null,null,null,null,null,null,null,null,null,null,null,null,null,null,null,null,null,null,null,null,null,null,null,{"$error":"#N/A"},null,null,null,null,null,null,null,null,null,null,null,null,null,"",0]
[null,null,null,null,null,null,null,null,null,null,null,null,null,null,null,null,null,null,null,null,null,null,null,null,null,null,null,null,null,null,null,{"$error":"#N/A"},null,null,null,null,null,null,null,null,null,null,null,null,null,"",0]
[null,null,null,null,null,null,null,null,null,null,null,null,null,null,null,null,null,null,null,null,null,null,null,null,null,null,null,null,null,null,null,{"$error":"#N/A"},null,null,null,null,null,null,null,null,null,null,null,null,null,"",0]
[null,null,null,null,null,null,null,null,null,null,null,null,null,null,null,null,null,null,null,null,null,null,null,null,null,null,null,null,null,null,null,{"$error":"#N/A"},null,null,null,null,null,null,null,null,null,null,null,null,null,"",0]
[null,null,null,null,null,null,null,null,null,null,null,null,null,null,null,null,null,null,null,null,null,null,null,null,null,null,null,null,null,null,null,{"$error":"#N/A"},null,null,null,null,null,null,null,null,null,null,null,null,null,"",0]
[null,null,null,null,null,null,null,null,null,null,null,null,null,null,null,null,null,null,null,null,null,null,null,null,null,null,null,null,null,null,null,{"$error":"#N/A"},null,null,null,null,null,null,null,null,null,null,null,null,null,"",0]
[null,null,null,null,null,null,null,null,null,null,null,null,null,null,null,null,null,null,null,null,null,null,null,null,null,null,null,null,null,null,null,{"$error":"#N/A"},null,null,null,null,null,null,null,null,null,null,null,null,null,"",0]
[null,null,null,null,null,null,null,null,null,null,null,null,null,null,null,null,null,null,null,null,null,null,null,null,null,null,null,null,null,null,null,{"$error":"#N/A"},null,null,null,null,null,null,null,null,null,null,null,null,null,"",0]
[null,null,null,null,null,null,null,null,null,null,null,null,null,null,null,null,null,null,null,null,null,null,null,null,null,null,null,null,null,null,null,{"$error":"#N/A"},null,null,null,null,null,null,null,null,null,null,null,null,null,"",0]
[null,null,null,null,null,null,null,null,null,null,null,null,null,null,null,null,null,null,null,null,null,null,null,null,null,null,null,null,null,null,null,{"$error":"#N/A"},null,null,null,null,null,null,null,null,null,null,null,null,null,"",0]
[null,null,null,null,null,null,null,null,null,null,null,null,null,null,null,null,null,null,null,null,null,null,null,null,null,null,null,null,null,null,null,{"$error":"#N/A"},null,null,null,null,null,null,null,null,null,null,null,null,null,"",0]
[null,null,null,null,null,null,null,null,null,null,null,null,null,null,null,null,null,null,null,null,null,null,null,null,null,null,null,null,null,null,null,{"$error":"#N/A"},null,null,null,null,null,null,null,null,null,null,null,null,null,"",0]
[null,null,null,null,null,null,null,null,null,null,null,null,null,null,null,null,null,null,null,null,null,null,null,null,null,null,null,null,null,null,null,{"$error":"#N/A"},null,null,null,null,null,null,null,null,null,null,null,null,null,"",0]
[null,null,null,null,null,null,null,null,null,null,null,null,null,null,null,null,null,null,null,null,null,null,null,null,null,null,null,null,null,null,null,{"$error":"#N/A"},null,null,null,null,null,null,null,null,null,null,null,null,null,"",0]
[null,null,null,null,null,null,null,null,null,null,null,null,null,null,null,null,null,null,null,null,null,null,null,null,null,null,null,null,null,null,null,{"$error":"#N/A"},null,null,null,null,null,null,null,null,null,null,null,null,null,"",0]
[null,null,null,null,null,null,null,null,null,null,null,null,null,null,null,null,null,null,null,null,null,null,null,null,null,null,null,null,null,null,null,{"$error":"#N/A"},null,null,null,null,null,null,null,null,null,null,null,null,null,"",0]
[null,null,null,null,null,null,null,null,null,null,null,null,null,null,null,null,null,null,null,null,null,null,null,null,null,null,null,null,null,null,null,{"$error":"#N/A"},null,null,null,null,null,null,null,null,null,null,null,null,null,"",0]
[null,null,null,null,null,null,null,null,null,null,null,null,null,null,null,null,null,null,null,null,null,null,null,null,null,null,null,null,null,null,null,{"$error":"#N/A"},null,null,null,null,null,null,null,null,null,null,null,null,null,"",0]
[null,null,null,null,null,null,null,null,null,null,null,null,null,null,null,null,null,null,null,null,null,null,null,null,null,null,null,null,null,null,null,{"$error":"#N/A"},null,null,null,null,null,null,null,null,null,null,null,null,null,"",0]
[null,null,null,null,null,null,null,null,null,null,null,null,null,null,null,null,null,null,null,null,null,null,null,null,null,null,null,null,null,null,null,{"$error":"#N/A"},null,null,null,null,null,null,null,null,null,null,null,null,null,"",0]
[null,null,null,null,null,null,null,null,null,null,null,null,null,null,null,null,null,null,null,null,null,null,null,null,null,null,null,null,null,null,null,{"$error":"#N/A"},null,null,null,null,null,null,null,null,null,null,null,null,null,"",0]
[null,null,null,null,null,null,null,null,null,null,null,null,null,null,null,null,null,null,null,null,null,null,null,null,null,null,null,null,null,null,null,{"$error":"#N/A"},null,null,null,null,null,null,null,null,null,null,null,null,null,"",0]
[null,null,null,null,null,null,null,null,null,null,null,null,null,null,null,null,null,null,null,null,null,null,null,null,null,null,null,null,null,null,null,{"$error":"#N/A"},null,null,null,null,null,null,null,null,null,null,null,null,null,"",0]
[null,null,null,null,null,null,null,null,null,null,null,null,null,null,null,null,null,null,null,null,null,null,null,null,null,null,null,null,null,null,null,{"$error":"#N/A"},null,null,null,null,null,null,null,null,null,null,null,null,null,"",0]
[null,null,null,null,null,null,null,null,null,null,null,null,null,null,null,null,null,null,null,null,null,null,null,null,null,null,null,null,null,null,null,{"$error":"#N/A"},null,null,null,null,null,null,null,null,null,null,null,null,null,"",0]
[null,null,null,null,null,null,null,null,null,null,null,null,null,null,null,null,null,null,null,null,null,null,null,null,null,null,null,null,null,null,null,{"$error":"#N/A"},null,null,null,null,null,null,null,null,null,null,null,null,null,"",0]
[null,null,null,null,null,null,null,null,null,null,null,null,null,null,null,null,null,null,null,null,null,null,null,null,null,null,null,null,null,null,null,{"$error":"#N/A"},null,null,null,null,null,null,null,null,null,null,null,null,null,"",0]
[null,null,null,null,null,null,null,null,null,null,null,null,null,null,null,null,null,null,null,null,null,null,null,null,null,null,null,null,null,null,null,{"$error":"#N/A"},null,null,null,null,null,null,null,null,null,null,null,null,null,"",0]
[null,null,null,null,null,null,null,null,null,null,null,null,null,null,null,null,null,null,null,null,null,null,null,null,null,null,null,null,null,null,null,{"$error":"#N/A"},null,null,null,null,null,null,null,null,null,null,null,null,null,"",0]
[null,null,null,null,null,null,null,null,null,null,null,null,null,null,null,null,null,null,null,null,null,null,null,null,null,null,null,null,null,null,null,{"$error":"#N/A"},null,null,null,null,null,null,null,null,null,null,null,null,null,"",0]
[null,null,null,null,null,null,null,null,null,null,null,null,null,null,null,null,null,null,null,null,null,null,null,null,null,null,null,null,null,null,null,{"$f":"MATCH(B262,$AG$5:$AG$14,0)","v":{"$error":"#N/A"}},null,null,null,null,null,null,null,null,null,null,null,null,null,{"$f":"IF(OR(MID(H262,1,1)=\"N\",MID(H262,1,1)=\"Q\"),MID(H262,1,1),\"\")","v":""},{"$f":"IF(OR(MID(H262,1,1)=\"N\",MID(H262,1,1)=\"Q\"),INT(MID(H262,2,2)),H262)","v":0}]
[null,null,null,null,null,null,null,null,null,null,null,null,null,null,null,null,null,null,null,null,null,null,null,null,null,null,null,null,null,null,null,{"$error":"#N/A"},null,null,null,null,null,null,null,null,null,null,null,null,null,"",0]
[null,null,null,null,null,null,null,null,null,null,null,null,null,null,null,null,null,null,null,null,null,null,null,null,null,null,null,null,null,null,null,{"$error":"#N/A"},null,null,null,null,null,null,null,null,null,null,null,null,null,"",0]
[null,null,null,null,null,null,null,null,null,null,null,null,null,null,null,null,null,null,null,null,null,null,null,null,null,null,null,null,null,null,null,{"$error":"#N/A"},null,null,null,null,null,null,null,null,null,null,null,null,null,"",0]
[null,null,null,null,null,null,null,null,null,null,null,null,null,null,null,null,null,null,null,null,null,null,null,null,null,null,null,null,null,null,null,{"$error":"#N/A"},null,null,null,null,null,null,null,null,null,null,null,null,null,"",0]
[null,null,null,null,null,null,null,null,null,null,null,null,null,null,null,null,null,null,null,null,null,null,null,null,null,null,null,null,null,null,null,{"$error":"#N/A"},null,null,null,null,null,null,null,null,null,null,null,null,null,"",0]
[null,null,null,null,null,null,null,null,null,null,null,null,null,null,null,null,null,null,null,null,null,null,null,null,null,null,null,null,null,null,null,{"$error":"#N/A"},null,null,null,null,null,null,null,null,null,null,null,null,null,"",0]
[null,null,null,null,null,null,null,null,null,null,null,null,null,null,null,null,null,null,null,null,null,null,null,null,null,null,null,null,null,null,null,{"$error":"#N/A"},null,null,null,null,null,null,null,null,null,null,null,null,null,"",0]
[null,null,null,null,null,null,null,null,null,null,null,null,null,null,null,null,null,null,null,null,null,null,null,null,null,null,null,null,null,null,null,{"$error":"#N/A"},null,null,null,null,null,null,null,null,null,null,null,null,null,"",0]
[null,null,null,null,null,null,null,null,null,null,null,null,null,null,null,null,null,null,null,null,null,null,null,null,null,null,null,null,null,null,null,{"$error":"#N/A"},null,null,null,null,null,null,null,null,null,null,null,null,null,"",0]
[null,null,null,null,null,null,null,null,null,null,null,null,null,null,null,null,null,null,null,null,null,null,null,null,null,null,null,null,null,null,null,{"$error":"#N/A"},null,null,null,null,null,null,null,null,null,null,null,null,null,"",0]
[null,null,null,null,null,null,null,null,null,null,null,null,null,null,null,null,null,null,null,null,null,null,null,null,null,null,null,null,null,null,null,{"$error":"#N/A"},null,null,null,null,null,null,null,null,null,null,null,null,null,"",0]
[null,null,null,null,null,null,null,null,null,null,null,null,null,null,null,null,null,null,null,null,null,null,null,null,null,null,null,null,null,null,null,{"$error":"#N/A"},null,null,null,null,null,null,null,null,null,null,null,null,null,"",0]
[null,null,null,null,null,null,null,null,null,null,null,null,null,null,null,null,null,null,null,null,null,null,null,null,null,null,null,null,null,null,null,{"$error":"#N/A"},null,null,null,null,null,null,null,null,null,null,null,null,null,"",0]
[null,null,null,null,null,null,null,null,null,null,null,null,null,null,null,null,null,null,null,null,null,null,null,null,null,null,null,null,null,null,null,{"$error":"#N/A"},null,null,null,null,null,null,null,null,null,null,null,null,null,"",0]
[null,null,null,null,null,null,null,null,null,null,null,null,null,null,null,null,null,null,null,null,null,null,null,null,null,null,null,null,null,null,null,{"$error":"#N/A"},null,null,null,null,null,null,null,null,null,null,null,null,null,"",0]
[null,null,null,null,null,null,null,null,null,null,null,null,null,null,null,null,null,null,null,null,null,null,null,null,null,null,null,null,null,null,null,{"$error":"#N/A"},null,null,null,null,null,null,null,null,null,null,null,null,null,"",0]
[null,null,null,null,null,null,null,null,null,null,null,null,null,null,null,null,null,null,null,null,null,null,null,null,null,null,null,null,null,null,null,{"$error":"#N/A"},null,null,null,null,null,null,null,null,null,null,null,null,null,"",0]
[null,null,null,null,null,null,null,null,null,null,null,null,null,null,null,null,null,null,null,null,null,null,null,null,null,null,null,null,null,null,null,{"$error":"#N/A"},null,null,null,null,null,null,null,null,null,null,null,null,null,"",0]
[null,null,null,null,null,null,null,null,null,null,null,null,null,null,null,null,null,null,null,null,null,null,null,null,null,null,null,null,null,null,null,{"$error":"#N/A"},null,null,null,null,null,null,null,null,null,null,null,null,null,"",0]
[null,null,null,null,null,null,null,null,null,null,null,null,null,null,null,null,null,null,null,null,null,null,null,null,null,null,null,null,null,null,null,{"$error":"#N/A"},null,null,null,null,null,null,null,null,null,null,null,null,null,"",0]
[null,null,null,null,null,null,null,null,null,null,null,null,null,null,null,null,null,null,null,null,null,null,null,null,null,null,null,null,null,null,null,{"$error":"#N/A"},null,null,null,null,null,null,null,null,null,null,null,null,null,"",0]
[null,null,null,null,null,null,null,null,null,null,null,null,null,null,null,null,null,null,null,null,null,null,null,null,null,null,null,null,null,null,null,{"$error":"#N/A"},null,null,null,null,null,null,null,null,null,null,null,null,null,"",0]
[null,null,null,null,null,null,null,null,null,null,null,null,null,null,null,null,null,null,null,null,null,null,null,null,null,null,null,null,null,null,null,{"$error":"#N/A"},null,null,null,null,null,null,null,null,null,null,null,null,null,"",0]
[null,null,null,null,null,null,null,null,null,null,null,null,null,null,null,null,null,null,null,null,null,null,null,null,null,null,null,null,null,null,null,{"$error":"#N/A"},null,null,null,null,null,null,null,null,null,null,null,null,null,"",0]
[null,null,null,null,null,null,null,null,null,null,null,null,null,null,null,null,null,null,null,null,null,null,null,null,null,null,null,null,null,null,null,{"$error":"#N/A"},null,null,null,null,null,null,null,null,null,null,null,null,null,"",0]
[null,null,null,null,null,null,null,null,null,null,null,null,null,null,null,null,null,null,null,null,null,null,null,null,null,null,null,null,null,null,null,{"$error":"#N/A"},null,null,null,null,null,null,null,null,null,null,null,null,null,"",0]
[null,null,null,null,null,null,null,null,null,null,null,null,null,null,null,null,null,null,null,null,null,null,null,null,null,null,null,null,null,null,null,{"$error":"#N/A"},null,null,null,null,null,null,null,null,null,null,null,null,null,"",0]
[null,null,null,null,null,null,null,null,null,null,null,null,null,null,null,null,null,null,null,null,null,null,null,null,null,null,null,null,null,null,null,{"$error":"#N/A"},null,null,null,null,null,null,null,null,null,null,null,null,null,"",0]
[null,null,null,null,null,null,null,null,null,null,null,null,null,null,null,null,null,null,null,null,null,null,null,null,null,null,null,null,null,null,null,{"$error":"#N/A"},null,null,null,null,null,null,null,null,null,null,null,null,null,"",0]
[null,null,null,null,null,null,null,null,null,null,null,null,null,null,null,null,null,null,null,null,null,null,null,null,null,null,null,null,null,null,null,{"$error":"#N/A"},null,null,null,null,null,null,null,null,null,null,null,null,null,"",0]
[null,null,null,null,null,null,null,null,null,null,null,null,null,null,null,null,null,null,null,null,null,null,null,null,null,null,null,null,null,null,null,{"$error":"#N/A"},null,null,null,null,null,null,null,null,null,null,null,null,null,"",0]
[null,null,null,null,null,null,null,null,null,null,null,null,null,null,null,null,null,null,null,null,null,null,null,null,null,null,null,null,null,null,null,{"$error":"#N/A"},null,null,null,null,null,null,null,null,null,null,null,null,null,"",0]
[null,null,null,null,null,null,null,null,null,null,null,null,null,null,null,null,null,null,null,null,null,null,null,null,null,null,null,null,null,null,null,{"$error":"#N/A"},null,null,null,null,null,null,null,null,null,null,null,null,null,"",0]
[null,null,null,null,null,null,null,null,null,null,null,null,null,null,null,null,null,null,null,null,null,null,null,null,null,null,null,null,null,null,null,{"$error":"#N/A"},null,null,null,null,null,null,null,null,null,null,null,null,null,"",0]
[null,null,null,null,null,null,null,null,null,null,null,null,null,null,null,null,null,null,null,null,null,null,null,null,null,null,null,null,null,null,null,{"$error":"#N/A"},null,null,null,null,null,null,null,null,null,null,null,null,null,"",0]
[null,null,null,null,null,null,null,null,null,null,null,null,null,null,null,null,null,null,null,null,null,null,null,null,null,null,null,null,null,null,null,{"$error":"#N/A"},null,null,null,null,null,null,null,null,null,null,null,null,null,"",0]
[null,null,null,null,null,null,null,null,null,null,null,null,null,null,null,null,null,null,null,null,null,null,null,null,null,null,null,null,null,null,null,{"$error":"#N/A"},null,null,null,null,null,null,null,null,null,null,null,null,null,"",0]
[null,null,null,null,null,null,null,null,null,null,null,null,null,null,null,null,null,null,null,null,null,null,null,null,null,null,null,null,null,null,null,{"$error":"#N/A"},null,null,null,null,null,null,null,null,null,null,null,null,null,"",0]
[null,null,null,null,null,null,null,null,null,null,null,null,null,null,null,null,null,null,null,null,null,null,null,null,null,null,null,null,null,null,null,{"$error":"#N/A"},null,null,null,null,null,null,null,null,null,null,null,null,null,"",0]
[null,null,null,null,null,null,null,null,null,null,null,null,null,null,null,null,null,null,null,null,null,null,null,null,null,null,null,null,null,null,null,{"$error":"#N/A"},null,null,null,null,null,null,null,null,null,null,null,null,null,"",0]
[null,null,null,null,null,null,null,null,null,null,null,null,null,null,null,null,null,null,null,null,null,null,null,null,null,null,null,null,null,null,null,{"$error":"#N/A"},null,null,null,null,null,null,null,null,null,null,null,null,null,"",0]
[null,null,null,null,null,null,null,null,null,null,null,null,null,null,null,null,null,null,null,null,null,null,null,null,null,null,null,null,null,null,null,{"$error":"#N/A"},null,null,null,null,null,null,null,null,null,null,null,null,null,"",0]
[null,null,null,null,null,null,null,null,null,null,null,null,null,null,null,null,null,null,null,null,null,null,null,null,null,null,null,null,null,null,null,{"$error":"#N/A"},null,null,null,null,null,null,null,null,null,null,null,null,null,"",0]
[null,null,null,null,null,null,null,null,null,null,null,null,null,null,null,null,null,null,null,null,null,null,null,null,null,null,null,null,null,null,null,{"$error":"#N/A"},null,null,null,null,null,null,null,null,null,null,null,null,null,"",0]
[null,null,null,null,null,null,null,null,null,null,null,null,null,null,null,null,null,null,null,null,null,null,null,null,null,null,null,null,null,null,null,{"$error":"#N/A"},null,null,null,null,null,null,null,null,null,null,null,null,null,"",0]
[null,null,null,null,null,null,null,null,null,null,null,null,null,null,null,null,null,null,null,null,null,null,null,null,null,null,null,null,null,null,null,{"$error":"#N/A"},null,null,null,null,null,null,null,null,null,null,null,null,null,"",0]
[null,null,null,null,null,null,null,null,null,null,null,null,null,null,null,null,null,null,null,null,null,null,null,null,null,null,null,null,null,null,null,{"$error":"#N/A"},null,null,null,null,null,null,null,null,null,null,null,null,null,"",0]
[null,null,null,null,null,null,null,null,null,null,null,null,null,null,null,null,null,null,null,null,null,null,null,null,null,null,null,null,null,null,null,{"$error":"#N/A"},null,null,null,null,null,null,null,null,null,null,null,null,null,"",0]
[null,null,null,null,null,null,null,null,null,null,null,null,null,null,null,null,null,null,null,null,null,null,null,null,null,null,null,null,null,null,null,{"$error":"#N/A"},null,null,null,null,null,null,null,null,null,null,null,null,null,"",0]
[null,null,null,null,null,null,null,null,null,null,null,null,null,null,null,null,null,null,null,null,null,null,null,null,null,null,null,null,null,null,null,{"$error":"#N/A"},null,null,null,null,null,null,null,null,null,null,null,null,null,"",0]
[null,null,null,null,null,null,null,null,null,null,null,null,null,null,null,null,null,null,null,null,null,null,null,null,null,null,null,null,null,null,null,{"$error":"#N/A"},null,null,null,null,null,null,null,null,null,null,null,null,null,"",0]
[null,null,null,null,null,null,null,null,null,null,null,null,null,null,null,null,null,null,null,null,null,null,null,null,null,null,null,null,null,null,null,{"$error":"#N/A"},null,null,null,null,null,null,null,null,null,null,null,null,null,"",0]
[null,null,null,null,null,null,null,null,null,null,null,null,null,null,null,null,null,null,null,null,null,null,null,null,null,null,null,null,null,null,null,{"$error":"#N/A"},null,null,null,null,null,null,null,null,null,null,null,null,null,"",0]
[null,null,null,null,null,null,null,null,null,null,null,null,null,null,null,null,null,null,null,null,null,null,null,null,null,null,null,null,null,null,null,{"$error":"#N/A"},null,null,null,null,null,null,null,null,null,null,null,null,null,"",0]
[null,null,null,null,null,null,null,null,null,null,null,null,null,null,null,null,null,null,null,null,null,null,null,null,null,null,null,null,null,null,null,{"$error":"#N/A"},null,null,null,null,null,null,null,null,null,null,null,null,null,"",0]
[null,null,null,null,null,null,null,null,null,null,null,null,null,null,null,null,null,null,null,null,null,null,null,null,null,null,null,null,null,null,null,{"$error":"#N/A"},null,null,null,null,null,null,null,null,null,null,null,null,null,"",0]
[null,null,null,null,null,null,null,null,null,null,null,null,null,null,null,null,null,null,null,null,null,null,null,null,null,null,null,null,null,null,null,{"$error":"#N/A"},null,null,null,null,null,null,null,null,null,null,null,null,null,"",0]
[null,null,null,null,null,null,null,null,null,null,null,null,null,null,null,null,null,null,null,null,null,null,null,null,null,null,null,null,null,null,null,{"$error":"#N/A"},null,null,null,null,null,null,null,null,null,null,null,null,null,"",0]
[null,null,null,null,null,null,null,null,null,null,null,null,null,null,null,null,null,null,null,null,null,null,null,null,null,null,null,null,null,null,null,{"$error":"#N/A"},null,null,null,null,null,null,null,null,null,null,null,null,null,"",0]
[null,null,null,null,null,null,null,null,null,null,null,null,null,null,null,null,null,null,null,null,null,null,null,null,null,null,null,null,null,null,null,{"$error":"#N/A"},null,null,null,null,null,null,null,null,null,null,null,null,null,"",0]
[null,null,null,null,null,null,null,null,null,null,null,null,null,null,null,null,null,null,null,null,null,null,null,null,null,null,null,null,null,null,null,{"$error":"#N/A"},null,null,null,null,null,null,null,null,null,null,null,null,null,"",0]
[null,null,null,null,null,null,null,null,null,null,null,null,null,null,null,null,null,null,null,null,null,null,null,null,null,null,null,null,null,null,null,{"$error":"#N/A"},null,null,null,null,null,null,null,null,null,null,null,null,null,"",0]
[null,null,null,null,null,null,null,null,null,null,null,null,null,null,null,null,null,null,null,null,null,null,null,null,null,null,null,null,null,null,null,{"$error":"#N/A"},null,null,null,null,null,null,null,null,null,null,null,null,null,"",0]
[null,null,null,null,null,null,null,null,null,null,null,null,null,null,null,null,null,null,null,null,null,null,null,null,null,null,null,null,null,null,null,{"$f":"MATCH(B326,$AG$5:$AG$14,0)","v":{"$error":"#N/A"}},null,null,null,null,null,null,null,null,null,null,null,null,null,{"$f":"IF(OR(MID(H326,1,1)=\"N\",MID(H326,1,1)=\"Q\"),MID(H326,1,1),\"\")","v":""},{"$f":"IF(OR(MID(H326,1,1)=\"N\",MID(H326,1,1)=\"Q\"),INT(MID(H326,2,2)),H326)","v":0}]
[null,null,null,null,null,null,null,null,null,null,null,null,null,null,null,null,null,null,null,null,null,null,null,null,null,null,null,null,null,null,null,{"$error":"#N/A"},null,null,null,null,null,null,null,null,null,null,null,null,null,"",0]
[null,null,null,null,null,null,null,null,null,null,null,null,null,null,null,null,null,null,null,null,null,null,null,null,null,null,null,null,null,null,null,{"$error":"#N/A"},null,null,null,null,null,null,null,null,null,null,null,null,null,"",0]
[null,null,null,null,null,null,null,null,null,null,null,null,null,null,null,null,null,null,null,null,null,null,null,null,null,null,null,null,null,null,null,{"$error":"#N/A"},null,null,null,null,null,null,null,null,null,null,null,null,null,"",0]
[null,null,null,null,null,null,null,null,null,null,null,null,null,null,null,null,null,null,null,null,null,null,null,null,null,null,null,null,null,null,null,{"$error":"#N/A"},null,null,null,null,null,null,null,null,null,null,null,null,null,"",0]
[null,null,null,null,null,null,null,null,null,null,null,null,null,null,null,null,null,null,null,null,null,null,null,null,null,null,null,null,null,null,null,{"$error":"#N/A"},null,null,null,null,null,null,null,null,null,null,null,null,null,"",0]
[null,null,null,null,null,null,null,null,null,null,null,null,null,null,null,null,null,null,null,null,null,null,null,null,null,null,null,null,null,null,null,{"$error":"#N/A"},null,null,null,null,null,null,null,null,null,null,null,null,null,"",0]
[null,null,null,null,null,null,null,null,null,null,null,null,null,null,null,null,null,null,null,null,null,null,null,null,null,null,null,null,null,null,null,{"$error":"#N/A"},null,null,null,null,null,null,null,null,null,null,null,null,null,"",0]
[null,null,null,null,null,null,null,null,null,null,null,null,null,null,null,null,null,null,null,null,null,null,null,null,null,null,null,null,null,null,null,{"$error":"#N/A"},null,null,null,null,null,null,null,null,null,null,null,null,null,"",0]
[null,null,null,null,null,null,null,null,null,null,null,null,null,null,null,null,null,null,null,null,null,null,null,null,null,null,null,null,null,null,null,{"$error":"#N/A"},null,null,null,null,null,null,null,null,null,null,null,null,null,"",0]
[null,null,null,null,null,null,null,null,null,null,null,null,null,null,null,null,null,null,null,null,null,null,null,null,null,null,null,null,null,null,null,{"$error":"#N/A"},null,null,null,null,null,null,null,null,null,null,null,null,null,"",0]
[null,null,null,null,null,null,null,null,null,null,null,null,null,null,null,null,null,null,null,null,null,null,null,null,null,null,null,null,null,null,null,{"$error":"#N/A"},null,null,null,null,null,null,null,null,null,null,null,null,null,"",0]
[null,null,null,null,null,null,null,null,null,null,null,null,null,null,null,null,null,null,null,null,null,null,null,null,null,null,null,null,null,null,null,{"$error":"#N/A"},null,null,null,null,null,null,null,null,null,null,null,null,null,"",0]
[null,null,null,null,null,null,null,null,null,null,null,null,null,null,null,null,null,null,null,null,null,null,null,null,null,null,null,null,null,null,null,{"$error":"#N/A"},null,null,null,null,null,null,null,null,null,null,null,null,null,"",0]
[null,null,null,null,null,null,null,null,null,null,null,null,null,null,null,null,null,null,null,null,null,null,null,null,null,null,null,null,null,null,null,{"$error":"#N/A"},null,null,null,null,null,null,null,null,null,null,null,null,null,"",0]
[null,null,null,null,null,null,null,null,null,null,null,null,null,null,null,null,null,null,null,null,null,null,null,null,null,null,null,null,null,null,null,{"$error":"#N/A"},null,null,null,null,null,null,null,null,null,null,null,null,null,"",0]
[null,null,null,null,null,null,null,null,null,null,null,null,null,null,null,null,null,null,null,null,null,null,null,null,null,null,null,null,null,null,null,{"$error":"#N/A"},null,null,null,null,null,null,null,null,null,null,null,null,null,"",0]
[null,null,null,null,null,null,null,null,null,null,null,null,null,null,null,null,null,null,null,null,null,null,null,null,null,null,null,null,null,null,null,{"$error":"#N/A"},null,null,null,null,null,null,null,null,null,null,null,null,null,"",0]
[null,null,null,null,null,null,null,null,null,null,null,null,null,null,null,null,null,null,null,null,null,null,null,null,null,null,null,null,null,null,null,{"$error":"#N/A"},null,null,null,null,null,null,null,null,null,null,null,null,null,"",0]
[null,null,null,null,null,null,null,null,null,null,null,null,null,null,null,null,null,null,null,null,null,null,null,null,null,null,null,null,null,null,null,{"$error":"#N/A"},null,null,null,null,null,null,null,null,null,null,null,null,null,"",0]
[null,null,null,null,null,null,null,null,null,null,null,null,null,null,null,null,null,null,null,null,null,null,null,null,null,null,null,null,null,null,null,{"$error":"#N/A"},null,null,null,null,null,null,null,null,null,null,null,null,null,"",0]
[null,null,null,null,null,null,null,null,null,null,null,null,null,null,null,null,null,null,null,null,null,null,null,null,null,null,null,null,null,null,null,{"$error":"#N/A"},null,null,null,null,null,null,null,null,null,null,null,null,null,"",0]
[null,null,null,null,null,null,null,null,null,null,null,null,null,null,null,null,null,null,null,null,null,null,null,null,null,null,null,null,null,null,null,{"$error":"#N/A"},null,null,null,null,null,null,null,null,null,null,null,null,null,"",0]
[null,null,null,null,null,null,null,null,null,null,null,null,null,null,null,null,null,null,null,null,null,null,null,null,null,null,null,null,null,null,null,{"$error":"#N/A"},null,null,null,null,null,null,null,null,null,null,null,null,null,"",0]
[null,null,null,null,null,null,null,null,null,null,null,null,null,null,null,null,null,null,null,null,null,null,null,null,null,null,null,null,null,null,null,{"$error":"#N/A"},null,null,null,null,null,null,null,null,null,null,null,null,null,"",0]
[null,null,null,null,null,null,null,null,null,null,null,null,null,null,null,null,null,null,null,null,null,null,null,null,null,null,null,null,null,null,null,{"$error":"#N/A"},null,null,null,null,null,null,null,null,null,null,null,null,null,"",0]
[null,null,null,null,null,null,null,null,null,null,null,null,null,null,null,null,null,null,null,null,null,null,null,null,null,null,null,null,null,null,null,{"$error":"#N/A"},null,null,null,null,null,null,null,null,null,null,null,null,null,"",0]
[null,null,null,null,null,null,null,null,null,null,null,null,null,null,null,null,null,null,null,null,null,null,null,null,null,null,null,null,null,null,null,{"$error":"#N/A"},null,null,null,null,null,null,null,null,null,null,null,null,null,"",0]
[null,null,null,null,null,null,null,null,null,null,null,null,null,null,null,null,null,null,null,null,null,null,null,null,null,null,null,null,null,null,null,{"$error":"#N/A"},null,null,null,null,null,null,null,null,null,null,null,null,null,"",0]
[null,null,null,null,null,null,null,null,null,null,null,null,null,null,null,null,null,null,null,null,null,null,null,null,null,null,null,null,null,null,null,{"$error":"#N/A"},null,null,null,null,null,null,null,null,null,null,null,null,null,"",0]
[null,null,null,null,null,null,null,null,null,null,null,null,null,null,null,null,null,null,null,null,null,null,null,null,null,null,null,null,null,null,null,{"$error":"#N/A"},null,null,null,null,null,null,null,null,null,null,null,null,null,"",0]
[null,null,null,null,null,null,null,null,null,null,null,null,null,null,null,null,null,null,null,null,null,null,null,null,null,null,null,null,null,null,null,{"$error":"#N/A"},null,null,null,null,null,null,null,null,null,null,null,null,null,"",0]
[null,null,null,null,null,null,null,null,null,null,null,null,null,null,null,null,null,null,null,null,null,null,null,null,null,null,null,null,null,null,null,{"$error":"#N/A"},null,null,null,null,null,null,null,null,null,null,null,null,null,"",0]
[null,null,null,null,null,null,null,null,null,null,null,null,null,null,null,null,null,null,null,null,null,null,null,null,null,null,null,null,null,null,null,{"$error":"#N/A"},null,null,null,null,null,null,null,null,null,null,null,null,null,"",0]
[null,null,null,null,null,null,null,null,null,null,null,null,null,null,null,null,null,null,null,null,null,null,null,null,null,null,null,null,null,null,null,{"$error":"#N/A"},null,null,null,null,null,null,null,null,null,null,null,null,null,"",0]
[null,null,null,null,null,null,null,null,null,null,null,null,null,null,null,null,null,null,null,null,null,null,null,null,null,null,null,null,null,null,null,{"$error":"#N/A"},null,null,null,null,null,null,null,null,null,null,null,null,null,"",0]
[null,null,null,null,null,null,null,null,null,null,null,null,null,null,null,null,null,null,null,null,null,null,null,null,null,null,null,null,null,null,null,{"$error":"#N/A"},null,null,null,null,null,null,null,null,null,null,null,null,null,"",0]
[null,null,null,null,null,null,null,null,null,null,null,null,null,null,null,null,null,null,null,null,null,null,null,null,null,null,null,null,null,null,null,{"$error":"#N/A"},null,null,null,null,null,null,null,null,null,null,null,null,null,"",0]
[null,null,null,null,null,null,null,null,null,null,null,null,null,null,null,null,null,null,null,null,null,null,null,null,null,null,null,null,null,null,null,{"$error":"#N/A"},null,null,null,null,null,null,null,null,null,null,null,null,null,"",0]
[null,null,null,null,null,null,null,null,null,null,null,null,null,null,null,null,null,null,null,null,null,null,null,null,null,null,null,null,null,null,null,{"$error":"#N/A"},null,null,null,null,null,null,null,null,null,null,null,null,null,"",0]
[null,null,null,null,null,null,null,null,null,null,null,null,null,null,null,null,null,null,null,null,null,null,null,null,null,null,null,null,null,null,null,{"$error":"#N/A"},null,null,null,null,null,null,null,null,null,null,null,null,null,"",0]
[null,null,null,null,null,null,null,null,null,null,null,null,null,null,null,null,null,null,null,null,null,null,null,null,null,null,null,null,null,null,null,{"$error":"#N/A"},null,null,null,null,null,null,null,null,null,null,null,null,null,"",0]
[null,null,null,null,null,null,null,null,null,null,null,null,null,null,null,null,null,null,null,null,null,null,null,null,null,null,null,null,null,null,null,{"$error":"#N/A"},null,null,null,null,null,null,null,null,null,null,null,null,null,"",0]
[null,null,null,null,null,null,null,null,null,null,null,null,null,null,null,null,null,null,null,null,null,null,null,null,null,null,null,null,null,null,null,{"$error":"#N/A"},null,null,null,null,null,null,null,null,null,null,null,null,null,"",0]
[null,null,null,null,null,null,null,null,null,null,null,null,null,null,null,null,null,null,null,null,null,null,null,null,null,null,null,null,null,null,null,{"$error":"#N/A"},null,null,null,null,null,null,null,null,null,null,null,null,null,"",0]
[null,null,null,null,null,null,null,null,null,null,null,null,null,null,null,null,null,null,null,null,null,null,null,null,null,null,null,null,null,null,null,{"$error":"#N/A"},null,null,null,null,null,null,null,null,null,null,null,null,null,"",0]
[null,null,null,null,null,null,null,null,null,null,null,null,null,null,null,null,null,null,null,null,null,null,null,null,null,null,null,null,null,null,null,{"$error":"#N/A"},null,null,null,null,null,null,null,null,null,null,null,null,null,"",0]
[null,null,null,null,null,null,null,null,null,null,null,null,null,null,null,null,null,null,null,null,null,null,null,null,null,null,null,null,null,null,null,{"$error":"#N/A"},null,null,null,null,null,null,null,null,null,null,null,null,null,"",0]
[null,null,null,null,null,null,null,null,null,null,null,null,null,null,null,null,null,null,null,null,null,null,null,null,null,null,null,null,null,null,null,{"$error":"#N/A"},null,null,null,null,null,null,null,null,null,null,null,null,null,"",0]
[null,null,null,null,null,null,null,null,null,null,null,null,null,null,null,null,null,null,null,null,null,null,null,null,null,null,null,null,null,null,null,{"$error":"#N/A"},null,null,null,null,null,null,null,null,null,null,null,null,null,"",0]
[null,null,null,null,null,null,null,null,null,null,null,null,null,null,null,null,null,null,null,null,null,null,null,null,null,null,null,null,null,null,null,{"$error":"#N/A"},null,null,null,null,null,null,null,null,null,null,null,null,null,"",0]
[null,null,null,null,null,null,null,null,null,null,null,null,null,null,null,null,null,null,null,null,null,null,null,null,null,null,null,null,null,null,null,{"$error":"#N/A"},null,null,null,null,null,null,null,null,null,null,null,null,null,"",0]
[null,null,null,null,null,null,null,null,null,null,null,null,null,null,null,null,null,null,null,null,null,null,null,null,null,null,null,null,null,null,null,{"$error":"#N/A"},null,null,null,null,null,null,null,null,null,null,null,null,null,"",0]
[null,null,null,null,null,null,null,null,null,null,null,null,null,null,null,null,null,null,null,null,null,null,null,null,null,null,null,null,null,null,null,{"$error":"#N/A"},null,null,null,null,null,null,null,null,null,null,null,null,null,"",0]
[null,null,null,null,null,null,null,null,null,null,null,null,null,null,null,null,null,null,null,null,null,null,null,null,null,null,null,null,null,null,null,{"$error":"#N/A"},null,null,null,null,null,null,null,null,null,null,null,null,null,"",0]
[null,null,null,null,null,null,null,null,null,null,null,null,null,null,null,null,null,null,null,null,null,null,null,null,null,null,null,null,null,null,null,{"$error":"#N/A"},null,null,null,null,null,null,null,null,null,null,null,null,null,"",0]
[null,null,null,null,null,null,null,null,null,null,null,null,null,null,null,null,null,null,null,null,null,null,null,null,null,null,null,null,null,null,null,{"$error":"#N/A"},null,null,null,null,null,null,null,null,null,null,null,null,null,"",0]
[null,null,null,null,null,null,null,null,null,null,null,null,null,null,null,null,null,null,null,null,null,null,null,null,null,null,null,null,null,null,null,{"$error":"#N/A"},null,null,null,null,null,null,null,null,null,null,null,null,null,"",0]
[null,null,null,null,null,null,null,null,null,null,null,null,null,null,null,null,null,null,null,null,null,null,null,null,null,null,null,null,null,null,null,{"$error":"#N/A"},null,null,null,null,null,null,null,null,null,null,null,null,null,"",0]
[null,null,null,null,null,null,null,null,null,null,null,null,null,null,null,null,null,null,null,null,null,null,null,null,null,null,null,null,null,null,null,{"$error":"#N/A"},null,null,null,null,null,null,null,null,null,null,null,null,null,"",0]
[null,null,null,null,null,null,null,null,null,null,null,null,null,null,null,null,null,null,null,null,null,null,null,null,null,null,null,null,null,null,null,{"$error":"#N/A"},null,null,null,null,null,null,null,null,null,null,null,null,null,"",0]
[null,null,null,null,null,null,null,null,null,null,null,null,null,null,null,null,null,null,null,null,null,null,null,null,null,null,null,null,null,null,null,{"$error":"#N/A"},null,null,null,null,null,null,null,null,null,null,null,null,null,"",0]
[null,null,null,null,null,null,null,null,null,null,null,null,null,null,null,null,null,null,null,null,null,null,null,null,null,null,null,null,null,null,null,{"$error":"#N/A"},null,null,null,null,null,null,null,null,null,null,null,null,null,"",0]
[null,null,null,null,null,null,null,null,null,null,null,null,null,null,null,null,null,null,null,null,null,null,null,null,null,null,null,null,null,null,null,{"$error":"#N/A"},null,null,null,null,null,null,null,null,null,null,null,null,null,"",0]
[null,null,null,null,null,null,null,null,null,null,null,null,null,null,null,null,null,null,null,null,null,null,null,null,null,null,null,null,null,null,null,{"$f":"MATCH(B390,$AG$5:$AG$14,0)","v":{"$error":"#N/A"}},null,null,null,null,null,null,null,null,null,null,null,null,null,{"$f":"IF(OR(MID(H390,1,1)=\"N\",MID(H390,1,1)=\"Q\"),MID(H390,1,1),\"\")","v":""},{"$f":"IF(OR(MID(H390,1,1)=\"N\",MID(H390,1,1)=\"Q\"),INT(MID(H390,2,2)),H390)","v":0}]
[null,null,null,null,null,null,null,null,null,null,null,null,null,null,null,null,null,null,null,null,null,null,null,null,null,null,null,null,null,null,null,{"$error":"#N/A"},null,null,null,null,null,null,null,null,null,null,null,null,null,"",0]
[null,null,null,null,null,null,null,null,null,null,null,null,null,null,null,null,null,null,null,null,null,null,null,null,null,null,null,null,null,null,null,{"$error":"#N/A"},null,null,null,null,null,null,null,null,null,null,null,null,null,"",0]
[null,null,null,null,null,null,null,null,null,null,null,null,null,null,null,null,null,null,null,null,null,null,null,null,null,null,null,null,null,null,null,{"$error":"#N/A"},null,null,null,null,null,null,null,null,null,null,null,null,null,"",0]
[null,null,null,null,null,null,null,null,null,null,null,null,null,null,null,null,null,null,null,null,null,null,null,null,null,null,null,null,null,null,null,{"$error":"#N/A"},null,null,null,null,null,null,null,null,null,null,null,null,null,"",0]
[null,null,null,null,null,null,null,null,null,null,null,null,null,null,null,null,null,null,null,null,null,null,null,null,null,null,null,null,null,null,null,{"$error":"#N/A"},null,null,null,null,null,null,null,null,null,null,null,null,null,"",0]
[null,null,null,null,null,null,null,null,null,null,null,null,null,null,null,null,null,null,null,null,null,null,null,null,null,null,null,null,null,null,null,{"$error":"#N/A"},null,null,null,null,null,null,null,null,null,null,null,null,null,"",0]
[null,null,null,null,null,null,null,null,null,null,null,null,null,null,null,null,null,null,null,null,null,null,null,null,null,null,null,null,null,null,null,{"$error":"#N/A"},null,null,null,null,null,null,null,null,null,null,null,null,null,"",0]
[null,null,null,null,null,null,null,null,null,null,null,null,null,null,null,null,null,null,null,null,null,null,null,null,null,null,null,null,null,null,null,{"$error":"#N/A"},null,null,null,null,null,null,null,null,null,null,null,null,null,"",0]
[null,null,null,null,null,null,null,null,null,null,null,null,null,null,null,null,null,null,null,null,null,null,null,null,null,null,null,null,null,null,null,{"$error":"#N/A"},null,null,null,null,null,null,null,null,null,null,null,null,null,"",0]
[null,null,null,null,null,null,null,null,null,null,null,null,null,null,null,null,null,null,null,null,null,null,null,null,null,null,null,null,null,null,null,{"$error":"#N/A"},null,null,null,null,null,null,null,null,null,null,null,null,null,"",0]
[null,null,null,null,null,null,null,null,null,null,null,null,null,null,null,null,null,null,null,null,null,null,null,null,null,null,null,null,null,null,null,{"$error":"#N/A"},null,null,null,null,null,null,null,null,null,null,null,null,null,"",0]
[null,null,null,null,null,null,null,null,null,null,null,null,null,null,null,null,null,null,null,null,null,null,null,null,null,null,null,null,null,null,null,{"$error":"#N/A"},null,null,null,null,null,null,null,null,null,null,null,null,null,"",0]
[null,null,null,null,null,null,null,null,null,null,null,null,null,null,null,null,null,null,null,null,null,null,null,null,null,null,null,null,null,null,null,{"$error":"#N/A"},null,null,null,null,null,null,null,null,null,null,null,null,null,"",0]
[null,null,null,null,null,null,null,null,null,null,null,null,null,null,null,null,null,null,null,null,null,null,null,null,null,null,null,null,null,null,null,{"$error":"#N/A"},null,null,null,null,null,null,null,null,null,null,null,null,null,"",0]
[null,null,null,null,null,null,null,null,null,null,null,null,null,null,null,null,null,null,null,null,null,null,null,null,null,null,null,null,null,null,null,{"$error":"#N/A"},null,null,null,null,null,null,null,null,null,null,null,null,null,"",0]
[null,null,null,null,null,null,null,null,null,null,null,null,null,null,null,null,null,null,null,null,null,null,null,null,null,null,null,null,null,null,null,{"$error":"#N/A"},null,null,null,null,null,null,null,null,null,null,null,null,null,"",0]
[null,null,null,null,null,null,null,null,null,null,null,null,null,null,null,null,null,null,null,null,null,null,null,null,null,null,null,null,null,null,null,{"$error":"#N/A"},null,null,null,null,null,null,null,null,null,null,null,null,null,"",0]
[null,null,null,null,null,null,null,null,null,null,null,null,null,null,null,null,null,null,null,null,null,null,null,null,null,null,null,null,null,null,null,{"$error":"#N/A"},null,null,null,null,null,null,null,null,null,null,null,null,null,"",0]
[null,null,null,null,null,null,null,null,null,null,null,null,null,null,null,null,null,null,null,null,null,null,null,null,null,null,null,null,null,null,null,{"$error":"#N/A"},null,null,null,null,null,null,null,null,null,null,null,null,null,"",0]
[null,null,null,null,null,null,null,null,null,null,null,null,null,null,null,null,null,null,null,null,null,null,null,null,null,null,null,null,null,null,null,{"$error":"#N/A"},null,null,null,null,null,null,null,null,null,null,null,null,null,"",0]
[null,null,null,null,null,null,null,null,null,null,null,null,null,null,null,null,null,null,null,null,null,null,null,null,null,null,null,null,null,null,null,{"$error":"#N/A"},null,null,null,null,null,null,null,null,null,null,null,null,null,"",0]
[null,null,null,null,null,null,null,null,null,null,null,null,null,null,null,null,null,null,null,null,null,null,null,null,null,null,null,null,null,null,null,{"$error":"#N/A"},null,null,null,null,null,null,null,null,null,null,null,null,null,"",0]
[null,null,null,null,null,null,null,null,null,null,null,null,null,null,null,null,null,null,null,null,null,null,null,null,null,null,null,null,null,null,null,{"$error":"#N/A"},null,null,null,null,null,null,null,null,null,null,null,null,null,"",0]
[null,null,null,null,null,null,null,null,null,null,null,null,null,null,null,null,null,null,null,null,null,null,null,null,null,null,null,null,null,null,null,{"$error":"#N/A"},null,null,null,null,null,null,null,null,null,null,null,null,null,"",0]
[null,null,null,null,null,null,null,null,null,null,null,null,null,null,null,null,null,null,null,null,null,null,null,null,null,null,null,null,null,null,null,{"$error":"#N/A"},null,null,null,null,null,null,null,null,null,null,null,null,null,"",0]
[null,null,null,null,null,null,null,null,null,null,null,null,null,null,null,null,null,null,null,null,null,null,null,null,null,null,null,null,null,null,null,{"$error":"#N/A"},null,null,null,null,null,null,null,null,null,null,null,null,null,"",0]
[null,null,null,null,null,null,null,null,null,null,null,null,null,null,null,null,null,null,null,null,null,null,null,null,null,null,null,null,null,null,null,{"$error":"#N/A"},null,null,null,null,null,null,null,null,null,null,null,null,null,"",0]
[null,null,null,null,null,null,null,null,null,null,null,null,null,null,null,null,null,null,null,null,null,null,null,null,null,null,null,null,null,null,null,{"$error":"#N/A"},null,null,null,null,null,null,null,null,null,null,null,null,null,"",0]
[null,null,null,null,null,null,null,null,null,null,null,null,null,null,null,null,null,null,null,null,null,null,null,null,null,null,null,null,null,null,null,{"$error":"#N/A"},null,null,null,null,null,null,null,null,null,null,null,null,null,"",0]
[null,null,null,null,null,null,null,null,null,null,null,null,null,null,null,null,null,null,null,null,null,null,null,null,null,null,null,null,null,null,null,{"$error":"#N/A"},null,null,null,null,null,null,null,null,null,null,null,null,null,"",0]
[null,null,null,null,null,null,null,null,null,null,null,null,null,null,null,null,null,null,null,null,null,null,null,null,null,null,null,null,null,null,null,{"$error":"#N/A"},null,null,null,null,null,null,null,null,null,null,null,null,null,"",0]
[null,null,null,null,null,null,null,null,null,null,null,null,null,null,null,null,null,null,null,null,null,null,null,null,null,null,null,null,null,null,null,{"$error":"#N/A"},null,null,null,null,null,null,null,null,null,null,null,null,null,"",0]
[null,null,null,null,null,null,null,null,null,null,null,null,null,null,null,null,null,null,null,null,null,null,null,null,null,null,null,null,null,null,null,{"$error":"#N/A"},null,null,null,null,null,null,null,null,null,null,null,null,null,"",0]
[null,null,null,null,null,null,null,null,null,null,null,null,null,null,null,null,null,null,null,null,null,null,null,null,null,null,null,null,null,null,null,{"$error":"#N/A"},null,null,null,null,null,null,null,null,null,null,null,null,null,"",0]
[null,null,null,null,null,null,null,null,null,null,null,null,null,null,null,null,null,null,null,null,null,null,null,null,null,null,null,null,null,null,null,{"$error":"#N/A"},null,null,null,null,null,null,null,null,null,null,null,null,null,"",0]
[null,null,null,null,null,null,null,null,null,null,null,null,null,null,null,null,null,null,null,null,null,null,null,null,null,null,null,null,null,null,null,{"$error":"#N/A"},null,null,null,null,null,null,null,null,null,null,null,null,null,"",0]
[null,null,null,null,null,null,null,null,null,null,null,null,null,null,null,null,null,null,null,null,null,null,null,null,null,null,null,null,null,null,null,{"$error":"#N/A"},null,null,null,null,null,null,null,null,null,null,null,null,null,"",0]
[null,null,null,null,null,null,null,null,null,null,null,null,null,null,null,null,null,null,null,null,null,null,null,null,null,null,null,null,null,null,null,{"$error":"#N/A"},null,null,null,null,null,null,null,null,null,null,null,null,null,"",0]
[null,null,null,null,null,null,null,null,null,null,null,null,null,null,null,null,null,null,null,null,null,null,null,null,null,null,null,null,null,null,null,{"$error":"#N/A"},null,null,null,null,null,null,null,null,null,null,null,null,null,"",0]
[null,null,null,null,null,null,null,null,null,null,null,null,null,null,null,null,null,null,null,null,null,null,null,null,null,null,null,null,null,null,null,{"$error":"#N/A"},null,null,null,null,null,null,null,null,null,null,null,null,null,"",0]
[null,null,null,null,null,null,null,null,null,null,null,null,null,null,null,null,null,null,null,null,null,null,null,null,null,null,null,null,null,null,null,{"$error":"#N/A"},null,null,null,null,null,null,null,null,null,null,null,null,null,"",0]
[null,null,null,null,null,null,null,null,null,null,null,null,null,null,null,null,null,null,null,null,null,null,null,null,null,null,null,null,null,null,null,{"$error":"#N/A"},null,null,null,null,null,null,null,null,null,null,null,null,null,"",0]
[null,null,null,null,null,null,null,null,null,null,null,null,null,null,null,null,null,null,null,null,null,null,null,null,null,null,null,null,null,null,null,{"$error":"#N/A"},null,null,null,null,null,null,null,null,null,null,null,null,null,"",0]
[null,null,null,null,null,null,null,null,null,null,null,null,null,null,null,null,null,null,null,null,null,null,null,null,null,null,null,null,null,null,null,{"$error":"#N/A"},null,null,null,null,null,null,null,null,null,null,null,null,null,"",0]
[null,null,null,null,null,null,null,null,null,null,null,null,null,null,null,null,null,null,null,null,null,null,null,null,null,null,null,null,null,null,null,{"$error":"#N/A"},null,null,null,null,null,null,null,null,null,null,null,null,null,"",0]
[null,null,null,null,null,null,null,null,null,null,null,null,null,null,null,null,null,null,null,null,null,null,null,null,null,null,null,null,null,null,null,{"$error":"#N/A"},null,null,null,null,null,null,null,null,null,null,null,null,null,"",0]
[null,null,null,null,null,null,null,null,null,null,null,null,null,null,null,null,null,null,null,null,null,null,null,null,null,null,null,null,null,null,null,{"$error":"#N/A"},null,null,null,null,null,null,null,null,null,null,null,null,null,"",0]
[null,null,null,null,null,null,null,null,null,null,null,null,null,null,null,null,null,null,null,null,null,null,null,null,null,null,null,null,null,null,null,{"$error":"#N/A"},null,null,null,null,null,null,null,null,null,null,null,null,null,"",0]
[null,null,null,null,null,null,null,null,null,null,null,null,null,null,null,null,null,null,null,null,null,null,null,null,null,null,null,null,null,null,null,{"$error":"#N/A"},null,null,null,null,null,null,null,null,null,null,null,null,null,"",0]
[null,null,null,null,null,null,null,null,null,null,null,null,null,null,null,null,null,null,null,null,null,null,null,null,null,null,null,null,null,null,null,{"$error":"#N/A"},null,null,null,null,null,null,null,null,null,null,null,null,null,"",0]
[null,null,null,null,null,null,null,null,null,null,null,null,null,null,null,null,null,null,null,null,null,null,null,null,null,null,null,null,null,null,null,{"$error":"#N/A"},null,null,null,null,null,null,null,null,null,null,null,null,null,"",0]
[null,null,null,null,null,null,null,null,null,null,null,null,null,null,null,null,null,null,null,null,null,null,null,null,null,null,null,null,null,null,null,{"$error":"#N/A"},null,null,null,null,null,null,null,null,null,null,null,null,null,"",0]
[null,null,null,null,null,null,null,null,null,null,null,null,null,null,null,null,null,null,null,null,null,null,null,null,null,null,null,null,null,null,null,{"$error":"#N/A"},null,null,null,null,null,null,null,null,null,null,null,null,null,"",0]
[null,null,null,null,null,null,null,null,null,null,null,null,null,null,null,null,null,null,null,null,null,null,null,null,null,null,null,null,null,null,null,{"$error":"#N/A"},null,null,null,null,null,null,null,null,null,null,null,null,null,"",0]
[null,null,null,null,null,null,null,null,null,null,null,null,null,null,null,null,null,null,null,null,null,null,null,null,null,null,null,null,null,null,null,{"$error":"#N/A"},null,null,null,null,null,null,null,null,null,null,null,null,null,"",0]
[null,null,null,null,null,null,null,null,null,null,null,null,null,null,null,null,null,null,null,null,null,null,null,null,null,null,null,null,null,null,null,{"$error":"#N/A"},null,null,null,null,null,null,null,null,null,null,null,null,null,"",0]
[null,null,null,null,null,null,null,null,null,null,null,null,null,null,null,null,null,null,null,null,null,null,null,null,null,null,null,null,null,null,null,{"$error":"#N/A"},null,null,null,null,null,null,null,null,null,null,null,null,null,"",0]
[null,null,null,null,null,null,null,null,null,null,null,null,null,null,null,null,null,null,null,null,null,null,null,null,null,null,null,null,null,null,null,{"$error":"#N/A"},null,null,null,null,null,null,null,null,null,null,null,null,null,"",0]
[null,null,null,null,null,null,null,null,null,null,null,null,null,null,null,null,null,null,null,null,null,null,null,null,null,null,null,null,null,null,null,{"$error":"#N/A"},null,null,null,null,null,null,null,null,null,null,null,null,null,"",0]
[null,null,null,null,null,null,null,null,null,null,null,null,null,null,null,null,null,null,null,null,null,null,null,null,null,null,null,null,null,null,null,{"$error":"#N/A"},null,null,null,null,null,null,null,null,null,null,null,null,null,"",0]
[null,null,null,null,null,null,null,null,null,null,null,null,null,null,null,null,null,null,null,null,null,null,null,null,null,null,null,null,null,null,null,{"$error":"#N/A"},null,null,null,null,null,null,null,null,null,null,null,null,null,"",0]
[null,null,null,null,null,null,null,null,null,null,null,null,null,null,null,null,null,null,null,null,null,null,null,null,null,null,null,null,null,null,null,{"$error":"#N/A"},null,null,null,null,null,null,null,null,null,null,null,null,null,"",0]
[null,null,null,null,null,null,null,null,null,null,null,null,null,null,null,null,null,null,null,null,null,null,null,null,null,null,null,null,null,null,null,{"$error":"#N/A"},null,null,null,null,null,null,null,null,null,null,null,null,null,"",0]
[null,null,null,null,null,null,null,null,null,null,null,null,null,null,null,null,null,null,null,null,null,null,null,null,null,null,null,null,null,null,null,{"$f":"MATCH(B454,$AG$5:$AG$14,0)","v":{"$error":"#N/A"}},null,null,null,null,null,null,null,null,null,null,null,null,null,{"$f":"IF(OR(MID(H454,1,1)=\"N\",MID(H454,1,1)=\"Q\"),MID(H454,1,1),\"\")","v":""},{"$f":"IF(OR(MID(H454,1,1)=\"N\",MID(H454,1,1)=\"Q\"),INT(MID(H454,2,2)),H454)","v":0}]
[null,null,null,null,null,null,null,null,null,null,null,null,null,null,null,null,null,null,null,null,null,null,null,null,null,null,null,null,null,null,null,{"$error":"#N/A"},null,null,null,null,null,null,null,null,null,null,null,null,null,"",0]
[null,null,null,null,null,null,null,null,null,null,null,null,null,null,null,null,null,null,null,null,null,null,null,null,null,null,null,null,null,null,null,{"$error":"#N/A"},null,null,null,null,null,null,null,null,null,null,null,null,null,"",0]
[null,null,null,null,null,null,null,null,null,null,null,null,null,null,null,null,null,null,null,null,null,null,null,null,null,null,null,null,null,null,null,{"$error":"#N/A"},null,null,null,null,null,null,null,null,null,null,null,null,null,"",0]
[null,null,null,null,null,null,null,null,null,null,null,null,null,null,null,null,null,null,null,null,null,null,null,null,null,null,null,null,null,null,null,{"$error":"#N/A"},null,null,null,null,null,null,null,null,null,null,null,null,null,"",0]
[null,null,null,null,null,null,null,null,null,null,null,null,null,null,null,null,null,null,null,null,null,null,null,null,null,null,null,null,null,null,null,{"$error":"#N/A"},null,null,null,null,null,null,null,null,null,null,null,null,null,"",0]
[null,null,null,null,null,null,null,null,null,null,null,null,null,null,null,null,null,null,null,null,null,null,null,null,null,null,null,null,null,null,null,{"$error":"#N/A"},null,null,null,null,null,null,null,null,null,null,null,null,null,"",0]
[null,null,null,null,null,null,null,null,null,null,null,null,null,null,null,null,null,null,null,null,null,null,null,null,null,null,null,null,null,null,null,{"$error":"#N/A"},null,null,null,null,null,null,null,null,null,null,null,null,null,"",0]
[null,null,null,null,null,null,null,null,null,null,null,null,null,null,null,null,null,null,null,null,null,null,null,null,null,null,null,null,null,null,null,{"$error":"#N/A"},null,null,null,null,null,null,null,null,null,null,null,null,null,"",0]
[null,null,null,null,null,null,null,null,null,null,null,null,null,null,null,null,null,null,null,null,null,null,null,null,null,null,null,null,null,null,null,{"$error":"#N/A"},null,null,null,null,null,null,null,null,null,null,null,null,null,"",0]
[null,null,null,null,null,null,null,null,null,null,null,null,null,null,null,null,null,null,null,null,null,null,null,null,null,null,null,null,null,null,null,{"$error":"#N/A"},null,null,null,null,null,null,null,null,null,null,null,null,null,"",0]
[null,null,null,null,null,null,null,null,null,null,null,null,null,null,null,null,null,null,null,null,null,null,null,null,null,null,null,null,null,null,null,{"$error":"#N/A"},null,null,null,null,null,null,null,null,null,null,null,null,null,"",0]
[null,null,null,null,null,null,null,null,null,null,null,null,null,null,null,null,null,null,null,null,null,null,null,null,null,null,null,null,null,null,null,{"$error":"#N/A"},null,null,null,null,null,null,null,null,null,null,null,null,null,"",0]
[null,null,null,null,null,null,null,null,null,null,null,null,null,null,null,null,null,null,null,null,null,null,null,null,null,null,null,null,null,null,null,{"$error":"#N/A"},null,null,null,null,null,null,null,null,null,null,null,null,null,"",0]
[null,null,null,null,null,null,null,null,null,null,null,null,null,null,null,null,null,null,null,null,null,null,null,null,null,null,null,null,null,null,null,{"$error":"#N/A"},null,null,null,null,null,null,null,null,null,null,null,null,null,"",0]
[null,null,null,null,null,null,null,null,null,null,null,null,null,null,null,null,null,null,null,null,null,null,null,null,null,null,null,null,null,null,null,{"$error":"#N/A"},null,null,null,null,null,null,null,null,null,null,null,null,null,"",0]
[null,null,null,null,null,null,null,null,null,null,null,null,null,null,null,null,null,null,null,null,null,null,null,null,null,null,null,null,null,null,null,{"$error":"#N/A"},null,null,null,null,null,null,null,null,null,null,null,null,null,"",0]
[null,null,null,null,null,null,null,null,null,null,null,null,null,null,null,null,null,null,null,null,null,null,null,null,null,null,null,null,null,null,null,{"$error":"#N/A"},null,null,null,null,null,null,null,null,null,null,null,null,null,"",0]
[null,null,null,null,null,null,null,null,null,null,null,null,null,null,null,null,null,null,null,null,null,null,null,null,null,null,null,null,null,null,null,{"$error":"#N/A"},null,null,null,null,null,null,null,null,null,null,null,null,null,"",0]
[null,null,null,null,null,null,null,null,null,null,null,null,null,null,null,null,null,null,null,null,null,null,null,null,null,null,null,null,null,null,null,{"$error":"#N/A"},null,null,null,null,null,null,null,null,null,null,null,null,null,"",0]
[null,null,null,null,null,null,null,null,null,null,null,null,null,null,null,null,null,null,null,null,null,null,null,null,null,null,null,null,null,null,null,{"$error":"#N/A"},null,null,null,null,null,null,null,null,null,null,null,null,null,"",0]
[null,null,null,null,null,null,null,null,null,null,null,null,null,null,null,null,null,null,null,null,null,null,null,null,null,null,null,null,null,null,null,{"$error":"#N/A"},null,null,null,null,null,null,null,null,null,null,null,null,null,"",0]
[null,null,null,null,null,null,null,null,null,null,null,null,null,null,null,null,null,null,null,null,null,null,null,null,null,null,null,null,null,null,null,{"$error":"#N/A"},null,null,null,null,null,null,null,null,null,null,null,null,null,"",0]
[null,null,null,null,null,null,null,null,null,null,null,null,null,null,null,null,null,null,null,null,null,null,null,null,null,null,null,null,null,null,null,{"$error":"#N/A"},null,null,null,null,null,null,null,null,null,null,null,null,null,"",0]
[null,null,null,null,null,null,null,null,null,null,null,null,null,null,null,null,null,null,null,null,null,null,null,null,null,null,null,null,null,null,null,{"$error":"#N/A"},null,null,null,null,null,null,null,null,null,null,null,null,null,"",0]
[null,null,null,null,null,null,null,null,null,null,null,null,null,null,null,null,null,null,null,null,null,null,null,null,null,null,null,null,null,null,null,{"$error":"#N/A"},null,null,null,null,null,null,null,null,null,null,null,null,null,"",0]
[null,null,null,null,null,null,null,null,null,null,null,null,null,null,null,null,null,null,null,null,null,null,null,null,null,null,null,null,null,null,null,{"$error":"#N/A"},null,null,null,null,null,null,null,null,null,null,null,null,null,"",0]
[null,null,null,null,null,null,null,null,null,null,null,null,null,null,null,null,null,null,null,null,null,null,null,null,null,null,null,null,null,null,null,{"$error":"#N/A"},null,null,null,null,null,null,null,null,null,null,null,null,null,"",0]
[null,null,null,null,null,null,null,null,null,null,null,null,null,null,null,null,null,null,null,null,null,null,null,null,null,null,null,null,null,null,null,{"$error":"#N/A"},null,null,null,null,null,null,null,null,null,null,null,null,null,"",0]
[null,null,null,null,null,null,null,null,null,null,null,null,null,null,null,null,null,null,null,null,null,null,null,null,null,null,null,null,null,null,null,{"$error":"#N/A"},null,null,null,null,null,null,null,null,null,null,null,null,null,"",0]
[null,null,null,null,null,null,null,null,null,null,null,null,null,null,null,null,null,null,null,null,null,null,null,null,null,null,null,null,null,null,null,{"$error":"#N/A"},null,null,null,null,null,null,null,null,null,null,null,null,null,"",0]
[null,null,null,null,null,null,null,null,null,null,null,null,null,null,null,null,null,null,null,null,null,null,null,null,null,null,null,null,null,null,null,{"$error":"#N/A"},null,null,null,null,null,null,null,null,null,null,null,null,null,"",0]
[null,null,null,null,null,null,null,null,null,null,null,null,null,null,null,null,null,null,null,null,null,null,null,null,null,null,null,null,null,null,null,{"$error":"#N/A"},null,null,null,null,null,null,null,null,null,null,null,null,null,"",0]
[null,null,null,null,null,null,null,null,null,null,null,null,null,null,null,null,null,null,null,null,null,null,null,null,null,null,null,null,null,null,null,{"$error":"#N/A"},null,null,null,null,null,null,null,null,null,null,null,null,null,"",0]
[null,null,null,null,null,null,null,null,null,null,null,null,null,null,null,null,null,null,null,null,null,null,null,null,null,null,null,null,null,null,null,{"$error":"#N/A"},null,null,null,null,null,null,null,null,null,null,null,null,null,"",0]
[null,null,null,null,null,null,null,null,null,null,null,null,null,null,null,null,null,null,null,null,null,null,null,null,null,null,null,null,null,null,null,{"$error":"#N/A"},null,null,null,null,null,null,null,null,null,null,null,null,null,"",0]
[null,null,null,null,null,null,null,null,null,null,null,null,null,null,null,null,null,null,null,null,null,null,null,null,null,null,null,null,null,null,null,{"$error":"#N/A"},null,null,null,null,null,null,null,null,null,null,null,null,null,"",0]
[null,null,null,null,null,null,null,null,null,null,null,null,null,null,null,null,null,null,null,null,null,null,null,null,null,null,null,null,null,null,null,{"$error":"#N/A"},null,null,null,null,null,null,null,null,null,null,null,null,null,"",0]
[null,null,null,null,null,null,null,null,null,null,null,null,null,null,null,null,null,null,null,null,null,null,null,null,null,null,null,null,null,null,null,{"$error":"#N/A"},null,null,null,null,null,null,null,null,null,null,null,null,null,"",0]
[null,null,null,null,null,null,null,null,null,null,null,null,null,null,null,null,null,null,null,null,null,null,null,null,null,null,null,null,null,null,null,{"$error":"#N/A"},null,null,null,null,null,null,null,null,null,null,null,null,null,"",0]
[null,null,null,null,null,null,null,null,null,null,null,null,null,null,null,null,null,null,null,null,null,null,null,null,null,null,null,null,null,null,null,{"$error":"#N/A"},null,null,null,null,null,null,null,null,null,null,null,null,null,"",0]
[null,null,null,null,null,null,null,null,null,null,null,null,null,null,null,null,null,null,null,null,null,null,null,null,null,null,null,null,null,null,null,{"$error":"#N/A"},null,null,null,null,null,null,null,null,null,null,null,null,null,"",0]
[null,null,null,null,null,null,null,null,null,null,null,null,null,null,null,null,null,null,null,null,null,null,null,null,null,null,null,null,null,null,null,{"$error":"#N/A"},null,null,null,null,null,null,null,null,null,null,null,null,null,"",0]
[null,null,null,null,null,null,null,null,null,null,null,null,null,null,null,null,null,null,null,null,null,null,null,null,null,null,null,null,null,null,null,{"$error":"#N/A"},null,null,null,null,null,null,null,null,null,null,null,null,null,"",0]
[null,null,null,null,null,null,null,null,null,null,null,null,null,null,null,null,null,null,null,null,null,null,null,null,null,null,null,null,null,null,null,{"$error":"#N/A"},null,null,null,null,null,null,null,null,null,null,null,null,null,"",0]
[null,null,null,null,null,null,null,null,null,null,null,null,null,null,null,null,null,null,null,null,null,null,null,null,null,null,null,null,null,null,null,{"$error":"#N/A"},null,null,null,null,null,null,null,null,null,null,null,null,null,"",0]
[null,null,null,null,null,null,null,null,null,null,null,null,null,null,null,null,null,null,null,null,null,null,null,null,null,null,null,null,null,null,null,{"$error":"#N/A"},null,null,null,null,null,null,null,null,null,null,null,null,null,"",0]
[null,null,null,null,null,null,null,null,null,null,null,null,null,null,null,null,null,null,null,null,null,null,null,null,null,null,null,null,null,null,null,{"$error":"#N/A"},null,null,null,null,null,null,null,null,null,null,null,null,null,"",0]
[null,null,null,null,null,null,null,null,null,null,null,null,null,null,null,null,null,null,null,null,null,null,null,null,null,null,null,null,null,null,null,{"$error":"#N/A"},null,null,null,null,null,null,null,null,null,null,null,null,null,"",0]
[null,null,null,null,null,null,null,null,null,null,null,null,null,null,null,null,null,null,null,null,null,null,null,null,null,null,null,null,null,null,null,{"$error":"#N/A"},null,null,null,null,null,null,null,null,null,null,null,null,null,"",0]
[null,null,null,null,null,null,null,null,null,null,null,null,null,null,null,null,null,null,null,null,null,null,null,null,null,null,null,null,null,null,null,{"$error":"#N/A"},null,null,null,null,null,null,null,null,null,null,null,null,null,"",0]
[null,null,null,null,null,null,null,null,null,null,null,null,null,null,null,null,null,null,null,null,null,null,null,null,null,null,null,null,null,null,null,{"$error":"#N/A"},null,null,null,null,null,null,null,null,null,null,null,null,null,"",0]
[null,null,null,null,null,null,null,null,null,null,null,null,null,null,null,null,null,null,null,null,null,null,null,null,null,null,null,null,null,null,null,{"$error":"#N/A"},null,null,null,null,null,null,null,null,null,null,null,null,null,"",0]
[null,null,null,null,null,null,null,null,null,null,null,null,null,null,null,null,null,null,null,null,null,null,null,null,null,null,null,null,null,null,null,{"$error":"#N/A"},null,null,null,null,null,null,null,null,null,null,null,null,null,"",0]
[null,null,null,null,null,null,null,null,null,null,null,null,null,null,null,null,null,null,null,null,null,null,null,null,null,null,null,null,null,null,null,{"$error":"#N/A"},null,null,null,null,null,null,null,null,null,null,null,null,null,"",0]
[null,null,null,null,null,null,null,null,null,null,null,null,null,null,null,null,null,null,null,null,null,null,null,null,null,null,null,null,null,null,null,null,null,null,null,null,null,null,null,null,null,null,null,null,null,"",0]
[null,null,null,null,null,null,null,null,null,null,null,null,null,null,null,null,null,null,null,null,null,null,null,null,null,null,null,null,null,null,null,null,null,null,null,null,null,null,null,null,null,null,null,null,null,"",0]
[null,null,null,null,null,null,null,null,null,null,null,null,null,null,null,null,null,null,null,null,null,null,null,null,null,null,null,null,null,null,null,null,null,null,null,null,null,null,null,null,null,null,null,null,null,"",0]
[null,null,null,null,null,null,null,null,null,null,null,null,null,null,null,null,null,null,null,null,null,null,null,null,null,null,null,null,null,null,null,null,null,null,null,null,null,null,null,null,null,null,null,null,null,"",0]
[null,null,null,null,null,null,null,null,null,null,null,null,null,null,null,null,null,null,null,null,null,null,null,null,null,null,null,null,null,null,null,null,null,null,null,null,null,null,null,null,null,null,null,null,null,"",0]
[null,null,null,null,null,null,null,null,null,null,null,null,null,null,null,null,null,null,null,null,null,null,null,null,null,null,null,null,null,null,null,null,null,null,null,null,null,null,null,null,null,null,null,null,null,"",0]
[null,null,null,null,null,null,null,null,null,null,null,null,null,null,null,null,null,null,null,null,null,null,null,null,null,null,null,null,null,null,null,null,null,null,null,null,null,null,null,null,null,null,null,null,null,"",0]
[null,null,null,null,null,null,null,null,null,null,null,null,null,null,null,null,null,null,null,null,null,null,null,null,null,null,null,null,null,null,null,null,null,null,null,null,null,null,null,null,null,null,null,null,null,"",0]
[null,null,null,null,null,null,null,null,null,null,null,null,null,null,null,null,null,null,null,null,null,null,null,null,null,null,null,null,null,null,null,null,null,null,null,null,null,null,null,null,null,null,null,null,null,"",0]
[null,null,null,null,null,null,null,null,null,null,null,null,null,null,null,null,null,null,null,null,null,null,null,null,null,null,null,null,null,null,null,null,null,null,null,null,null,null,null,null,null,null,null,null,null,"",0]
[null,null,null,null,null,null,null,null,null,null,null,null,null,null,null,null,null,null,null,null,null,null,null,null,null,null,null,null,null,null,null,null,null,null,null,null,null,null,null,null,null,null,null,null,null,"",0]
[null,null,null,null,null,null,null,null,null,null,null,null,null,null,null,null,null,null,null,null,null,null,null,null,null,null,null,null,null,null,null,null,null,null,null,null,null,null,null,null,null,null,null,null,null,"",0]
[null,null,null,null,null,null,null,null,null,null,null,null,null,null,null,null,null,null,null,null,null,null,null,null,null,null,null,null,null,null,null,null,null,null,null,null,null,null,null,null,null,null,null,null,null,"",0]
[null,null,null,null,null,null,null,null,null,null,null,null,null,null,null,null,null,null,null,null,null,null,null,null,null,null,null,null,null,null,null,null,null,null,null,null,null,null,null,null,null,null,null,null,null,"",0]
[null,null,null,null,null,null,null,null,null,null,null,null,null,null,null,null,null,null,null,null,null,null,null,null,null,null,null,null,null,null,null,null,null,null,null,null,null,null,null,null,null,null,null,null,null,"",0]
[null,null,null,null,null,null,null,null,null,null,null,null,null,null,null,null,null,null,null,null,null,null,null,null,null,null,null,null,null,null,null,null,null,null,null,null,null,null,null,null,null,null,null,null,null,"",0]
[null,null,null,null,null,null,null,null,null,null,null,null,null,null,null,null,null,null,null,null,null,null,null,null,null,null,null,null,null,null,null,null,null,null,null,null,null,null,null,null,null,null,null,null,null,"",0]
[null,null,null,null,null,null,null,null,null,null,null,null,null,null,null,null,null,null,null,null,null,null,null,null,null,null,null,null,null,null,null,null,null,null,null,null,null,null,null,null,null,null,null,null,null,"",0]
[null,null,null,null,null,null,null,null,null,null,null,null,null,null,null,null,null,null,null,null,null,null,null,null,null,null,null,null,null,null,null,null,null,null,null,null,null,null,null,null,null,null,null,null,null,"",0]
[null,null,null,null,null,null,null,null,null,null,null,null,null,null,null,null,null,null,null,null,null,null,null,null,null,null,null,null,null,null,null,null,null,null,null,null,null,null,null,null,null,null,null,null,null,"",0]
[null,null,null,null,null,null,null,null,null,null,null,null,null,null,null,null,null,null,null,null,null,null,null,null,null,null,null,null,null,null,null,null,null,null,null,null,null,null,null,null,null,null,null,null,null,"",0]
[null,null,null,null,null,null,null,null,null,null,null,null,null,null,null,null,null,null,null,null,null,null,null,null,null,null,null,null,null,null,null,null,null,null,null,null,null,null,null,null,null,null,null,null,null,"",0]
[null,null,null,null,null,null,null,null,null,null,null,null,null,null,null,null,null,null,null,null,null,null,null,null,null,null,null,null,null,null,null,null,null,null,null,null,null,null,null,null,null,null,null,null,null,"",0]
[null,null,null,null,null,null,null,null,null,null,null,null,null,null,null,null,null,null,null,null,null,null,null,null,null,null,null,null,null,null,null,null,null,null,null,null,null,null,null,null,null,null,null,null,null,"",0]
[null,null,null,null,null,null,null,null,null,null,null,null,null,null,null,null,null,null,null,null,null,null,null,null,null,null,null,null,null,null,null,null,null,null,null,null,null,null,null,null,null,null,null,null,null,"",0]
[null,null,null,null,null,null,null,null,null,null,null,null,null,null,null,null,null,null,null,null,null,null,null,null,null,null,null,null,null,null,null,null,null,null,null,null,null,null,null,null,null,null,null,null,null,"",0]
[null,null,null,null,null,null,null,null,null,null,null,null,null,null,null,null,null,null,null,null,null,null,null,null,null,null,null,null,null,null,null,null,null,null,null,null,null,null,null,null,null,null,null,null,null,"",0]
[null,null,null,null,null,null,null,null,null,null,null,null,null,null,null,null,null,null,null,null,null,null,null,null,null,null,null,null,null,null,null,null,null,null,null,null,null,null,null,null,null,null,null,null,null,"",0]
[null,null,null,null,null,null,null,null,null,null,null,null,null,null,null,null,null,null,null,null,null,null,null,null,null,null,null,null,null,null,null,null,null,null,null,null,null,null,null,null,null,null,null,null,null,"",0]
[null,null,null,null,null,null,null,null,null,null,null,null,null,null,null,null,null,null,null,null,null,null,null,null,null,null,null,null,null,null,null,null,null,null,null,null,null,null,null,null,null,null,null,null,null,"",0]
[null,null,null,null,null,null,null,null,null,null,null,null,null,null,null,null,null,null,null,null,null,null,null,null,null,null,null,null,null,null,null,null,null,null,null,null,null,null,null,null,null,null,null,null,null,"",0]
[null,null,null,null,null,null,null,null,null,null,null,null,null,null,null,null,null,null,null,null,null,null,null,null,null,null,null,null,null,null,null,null,null,null,null,null,null,null,null,null,null,null,null,null,null,"",0]
[null,null,null,null,null,null,null,null,null,null,null,null,null,null,null,null,null,null,null,null,null,null,null,null,null,null,null,null,null,null,null,null,null,null,null,null,null,null,null,null,null,null,null,null,null,"",0]
[null,null,null,null,null,null,null,null,null,null,null,null,null,null,null,null,null,null,null,null,null,null,null,null,null,null,null,null,null,null,null,null,null,null,null,null,null,null,null,null,null,null,null,null,null,"",0]
[null,null,null,null,null,null,null,null,null,null,null,null,null,null,null,null,null,null,null,null,null,null,null,null,null,null,null,null,null,null,null,null,null,null,null,null,null,null,null,null,null,null,null,null,null,"",0]
[null,null,null,null,null,null,null,null,null,null,null,null,null,null,null,null,null,null,null,null,null,null,null,null,null,null,null,null,null,null,null,null,null,null,null,null,null,null,null,null,null,null,null,null,null,"",0]
[null,null,null,null,null,null,null,null,null,null,null,null,null,null,null,null,null,null,null,null,null,null,null,null,null,null,null,null,null,null,null,null,null,null,null,null,null,null,null,null,null,null,null,null,null,"",0]
[null,null,null,null,null,null,null,null,null,null,null,null,null,null,null,null,null,null,null,null,null,null,null,null,null,null,null,null,null,null,null,null,null,null,null,null,null,null,null,null,null,null,null,null,null,"",0]
[null,null,null,null,null,null,null,null,null,null,null,null,null,null,null,null,null,null,null,null,null,null,null,null,null,null,null,null,null,null,null,null,null,null,null,null,null,null,null,null,null,null,null,null,null,"",0]
[null,null,null,null,null,null,null,null,null,null,null,null,null,null,null,null,null,null,null,null,null,null,null,null,null,null,null,null,null,null,null,null,null,null,null,null,null,null,null,null,null,null,null,null,null,"",0]
[null,null,null,null,null,null,null,null,null,null,null,null,null,null,null,null,null,null,null,null,null,null,null,null,null,null,null,null,null,null,null,null,null,null,null,null,null,null,null,null,null,null,null,null,null,"",0]
[null,null,null,null,null,null,null,null,null,null,null,null,null,null,null,null,null,null,null,null,null,null,null,null,null,null,null,null,null,null,null,null,null,null,null,null,null,null,null,null,null,null,null,null,null,"",0]
[null,null,null,null,null,null,null,null,null,null,null,null,null,null,null,null,null,null,null,null,null,null,null,null,null,null,null,null,null,null,null,null,null,null,null,null,null,null,null,null,null,null,null,null,null,"",0]
[null,null,null,null,null,null,null,null,null,null,null,null,null,null,null,null,null,null,null,null,null,null,null,null,null,null,null,null,null,null,null,null,null,null,null,null,null,null,null,null,null,null,null,null,null,"",0]
[null,null,null,null,null,null,null,null,null,null,null,null,null,null,null,null,null,null,null,null,null,null,null,null,null,null,null,null,null,null,null,null,null,null,null,null,null,null,null,null,null,null,null,null,null,"",0]
[null,null,null,null,null,null,null,null,null,null,null,null,null,null,null,null,null,null,null,null,null,null,null,null,null,null,null,null,null,null,null,null,null,null,null,null,null,null,null,null,null,null,null,null,null,"",0]
[null,null,null,null,null,null,null,null,null,null,null,null,null,null,null,null,null,null,null,null,null,null,null,null,null,null,null,null,null,null,null,null,null,null,null,null,null,null,null,null,null,null,null,null,null,"",0]
[null,null,null,null,null,null,null,null,null,null,null,null,null,null,null,null,null,null,null,null,null,null,null,null,null,null,null,null,null,null,null,null,null,null,null,null,null,null,null,null,null,null,null,null,null,"",0]
[null,null,null,null,null,null,null,null,null,null,null,null,null,null,null,null,null,null,null,null,null,null,null,null,null,null,null,null,null,null,null,null,null,null,null,null,null,null,null,null,null,null,null,null,null,"",0]
[null,null,null,null,null,null,null,null,null,null,null,null,null,null,null,null,null,null,null,null,null,null,null,null,null,null,null,null,null,null,null,null,null,null,null,null,null,null,null,null,null,null,null,null,null,"",0]
[null,null,null,null,null,null,null,null,null,null,null,null,null,null,null,null,null,null,null,null,null,null,null,null,null,null,null,null,null,null,null,null,null,null,null,null,null,null,null,null,null,null,null,null,null,"",0]
[null,null,null,null,null,null,null,null,null,null,null,null,null,null,null,null,null,null,null,null,null,null,null,null,null,null,null,null,null,null,null,null,null,null,null,null,null,null,null,null,null,null,null,null,null,"",0]
[null,null,null,null,null,null,null,null,null,null,null,null,null,null,null,null,null,null,null,null,null,null,null,null,null,null,null,null,null,null,null,null,null,null,null,null,null,null,null,null,null,null,null,null,null,"",0]
[null,null,null,null,null,null,null,null,null,null,null,null,null,null,null,null,null,null,null,null,null,null,null,null,null,null,null,null,null,null,null,null,null,null,null,null,null,null,null,null,null,null,null,null,null,"",0]
[null,null,null,null,null,null,null,null,null,null,null,null,null,null,null,null,null,null,null,null,null,null,null,null,null,null,null,null,null,null,null,null,null,null,null,null,null,null,null,null,null,null,null,null,null,"",0]
[null,null,null,null,null,null,null,null,null,null,null,null,null,null,null,null,null,null,null,null,null,null,null,null,null,null,null,null,null,null,null,null,null,null,null,null,null,null,null,null,null,null,null,null,null,"",0]
[null,null,null,null,null,null,null,null,null,null,null,null,null,null,null,null,null,null,null,null,null,null,null,null,null,null,null,null,null,null,null,null,null,null,null,null,null,null,null,null,null,null,null,null,null,"",0]
[null,null,null,null,null,null,null,null,null,null,null,null,null,null,null,null,null,null,null,null,null,null,null,null,null,null,null,null,null,null,null,null,null,null,null,null,null,null,null,null,null,null,null,null,null,"",0]
[null,null,null,null,null,null,null,null,null,null,null,null,null,null,null,null,null,null,null,null,null,null,null,null,null,null,null,null,null,null,null,null,null,null,null,null,null,null,null,null,null,null,null,null,null,"",0]
[null,null,null,null,null,null,null,null,null,null,null,null,null,null,null,null,null,null,null,null,null,null,null,null,null,null,null,null,null,null,null,null,null,null,null,null,null,null,null,null,null,null,null,null,null,"",0]
[null,null,null,null,null,null,null,null,null,null,null,null,null,null,null,null,null,null,null,null,null,null,null,null,null,null,null,null,null,null,null,null,null,null,null,null,null,null,null,null,null,null,null,null,null,"",0]
[null,null,null,null,null,null,null,null,null,null,null,null,null,null,null,null,null,null,null,null,null,null,null,null,null,null,null,null,null,null,null,null,null,null,null,null,null,null,null,null,null,null,null,null,null,"",0]
[null,null,null,null,null,null,null,null,null,null,null,null,null,null,null,null,null,null,null,null,null,null,null,null,null,null,null,null,null,null,null,null,null,null,null,null,null,null,null,null,null,null,null,null,null,"",0]
[null,null,null,null,null,null,null,null,null,null,null,null,null,null,null,null,null,null,null,null,null,null,null,null,null,null,null,null,null,null,null,null,null,null,null,null,null,null,null,null,null,null,null,null,null,"",0]
[null,null,null,null,null,null,null,null,null,null,null,null,null,null,null,null,null,null,null,null,null,null,null,null,null,null,null,null,null,null,null,null,null,null,null,null,null,null,null,null,null,null,null,null,null,"",0]
[null,null,null,null,null,null,null,null,null,null,null,null,null,null,null,null,null,null,null,null,null,null,null,null,null,null,null,null,null,null,null,null,null,null,null,null,null,null,null,null,null,null,null,null,null,"",0]
[null,null,null,null,null,null,null,null,null,null,null,null,null,null,null,null,null,null,null,null,null,null,null,null,null,null,null,null,null,null,null,null,null,null,null,null,null,null,null,null,null,null,null,null,null,"",0]
[null,null,null,null,null,null,null,null,null,null,null,null,null,null,null,null,null,null,null,null,null,null,null,null,null,null,null,null,null,null,null,null,null,null,null,null,null,null,null,null,null,null,null,null,null,"",0]
[null,null,null,null,null,null,null,null,null,null,null,null,null,null,null,null,null,null,null,null,null,null,null,null,null,null,null,null,null,null,null,null,null,null,null,null,null,null,null,null,null,null,null,null,null,"",0]
[null,null,null,null,null,null,null,null,null,null,null,null,null,null,null,null,null,null,null,null,null,null,null,null,null,null,null,null,null,null,null,null,null,null,null,null,null,null,null,null,null,null,null,null,null,"",0]
[null,null,null,null,null,null,null,null,null,null,null,null,null,null,null,null,null,null,null,null,null,null,null,null,null,null,null,null,null,null,null,null,null,null,null,null,null,null,null,null,null,null,null,null,null,"",0]
[null,null,null,null,null,null,null,null,null,null,null,null,null,null,null,null,null,null,null,null,null,null,null,null,null,null,null,null,null,null,null,null,null,null,null,null,null,null,null,null,null,null,null,null,null,"",0]
[null,null,null,null,null,null,null,null,null,null,null,null,null,null,null,null,null,null,null,null,null,null,null,null,null,null,null,null,null,null,null,null,null,null,null,null,null,null,null,null,null,null,null,null,null,"",0]
[null,null,null,null,null,null,null,null,null,null,null,null,null,null,null,null,null,null,null,null,null,null,null,null,null,null,null,null,null,null,null,null,null,null,null,null,null,null,null,null,null,null,null,null,null,"",0]
[null,null,null,null,null,null,null,null,null,null,null,null,null,null,null,null,null,null,null,null,null,null,null,null,null,null,null,null,null,null,null,null,null,null,null,null,null,null,null,null,null,null,null,null,null,"",0]
[null,null,null,null,null,null,null,null,null,null,null,null,null,null,null,null,null,null,null,null,null,null,null,null,null,null,null,null,null,null,null,null,null,null,null,null,null,null,null,null,null,null,null,null,null,"",0]
[null,null,null,null,null,null,null,null,null,null,null,null,null,null,null,null,null,null,null,null,null,null,null,null,null,null,null,null,null,null,null,null,null,null,null,null,null,null,null,null,null,null,null,null,null,"",0]
[null,null,null,null,null,null,null,null,null,null,null,null,null,null,null,null,null,null,null,null,null,null,null,null,null,null,null,null,null,null,null,null,null,null,null,null,null,null,null,null,null,null,null,null,null,"",0]
[null,null,null,null,null,null,null,null,null,null,null,null,null,null,null,null,null,null,null,null,null,null,null,null,null,null,null,null,null,null,null,null,null,null,null,null,null,null,null,null,null,null,null,null,null,"",0]
[null,null,null,null,null,null,null,null,null,null,null,null,null,null,null,null,null,null,null,null,null,null,null,null,null,null,null,null,null,null,null,null,null,null,null,null,null,null,null,null,null,null,null,null,null,"",0]
[null,null,null,null,null,null,null,null,null,null,null,null,null,null,null,null,null,null,null,null,null,null,null,null,null,null,null,null,null,null,null,null,null,null,null,null,null,null,null,null,null,null,null,null,null,"",0]
[null,null,null,null,null,null,null,null,null,null,null,null,null,null,null,null,null,null,null,null,null,null,null,null,null,null,null,null,null,null,null,null,null,null,null,null,null,null,null,null,null,null,null,null,null,"",0]
[null,null,null,null,null,null,null,null,null,null,null,null,null,null,null,null,null,null,null,null,null,null,null,null,null,null,null,null,null,null,null,null,null,null,null,null,null,null,null,null,null,null,null,null,null,"",0]
[null,null,null,null,null,null,null,null,null,null,null,null,null,null,null,null,null,null,null,null,null,null,null,null,null,null,null,null,null,null,null,null,null,null,null,null,null,null,null,null,null,null,null,null,null,"",0]
[null,null,null,null,null,null,null,null,null,null,null,null,null,null,null,null,null,null,null,null,null,null,null,null,null,null,null,null,null,null,null,null,null,null,null,null,null,null,null,null,null,null,null,null,null,"",0]
[null,null,null,null,null,null,null,null,null,null,null,null,null,null,null,null,null,null,null,null,null,null,null,null,null,null,null,null,null,null,null,null,null,null,null,null,null,null,null,null,null,null,null,null,null,"",0]
[null,null,null,null,null,null,null,null,null,null,null,null,null,null,null,null,null,null,null,null,null,null,null,null,null,null,null,null,null,null,null,null,null,null,null,null,null,null,null,null,null,null,null,null,null,"",0]
[null,null,null,null,null,null,null,null,null,null,null,null,null,null,null,null,null,null,null,null,null,null,null,null,null,null,null,null,null,null,null,null,null,null,null,null,null,null,null,null,null,null,null,null,null,"",0]
[null,null,null,null,null,null,null,null,null,null,null,null,null,null,null,null,null,null,null,null,null,null,null,null,null,null,null,null,null,null,null,null,null,null,null,null,null,null,null,null,null,null,null,null,null,"",0]
[null,null,null,null,null,null,null,null,null,null,null,null,null,null,null,null,null,null,null,null,null,null,null,null,null,null,null,null,null,null,null,null,null,null,null,null,null,null,null,null,null,null,null,null,null,"",0]
[null,null,null,null,null,null,null,null,null,null,null,null,null,null,null,null,null,null,null,null,null,null,null,null,null,null,null,null,null,null,null,null,null,null,null,null,null,null,null,null,null,null,null,null,null,"",0]
[null,null,null,null,null,null,null,null,null,null,null,null,null,null,null,null,null,null,null,null,null,null,null,null,null,null,null,null,null,null,null,null,null,null,null,null,null,null,null,null,null,null,null,null,null,"",0]
[null,null,null,null,null,null,null,null,null,null,null,null,null,null,null,null,null,null,null,null,null,null,null,null,null,null,null,null,null,null,null,null,null,null,null,null,null,null,null,null,null,null,null,null,null,"",0]
[null,null,null,null,null,null,null,null,null,null,null,null,null,null,null,null,null,null,null,null,null,null,null,null,null,null,null,null,null,null,null,null,null,null,null,null,null,null,null,null,null,null,null,null,null,"",0]
[null,null,null,null,null,null,null,null,null,null,null,null,null,null,null,null,null,null,null,null,null,null,null,null,null,null,null,null,null,null,null,null,null,null,null,null,null,null,null,null,null,null,null,null,null,"",0]
[null,null,null,null,null,null,null,null,null,null,null,null,null,null,null,null,null,null,null,null,null,null,null,null,null,null,null,null,null,null,null,null,null,null,null,null,null,null,null,null,null,null,null,null,null,"",0]
[null,null,null,null,null,null,null,null,null,null,null,null,null,null,null,null,null,null,null,null,null,null,null,null,null,null,null,null,null,null,null,null,null,null,null,null,null,null,null,null,null,null,null,null,null,"",0]
[null,null,null,null,null,null,null,null,null,null,null,null,null,null,null,null,null,null,null,null,null,null,null,null,null,null,null,null,null,null,null,null,null,null,null,null,null,null,null,null,null,null,null,null,null,"",0]
[null,null,null,null,null,null,null,null,null,null,null,null,null,null,null,null,null,null,null,null,null,null,null,null,null,null,null,null,null,null,null,null,null,null,null,null,null,null,null,null,null,null,null,null,null,"",0]
[null,null,null,null,null,null,null,null,null,null,null,null,null,null,null,null,null,null,null,null,null,null,null,null,null,null,null,null,null,null,null,null,null,null,null,null,null,null,null,null,null,null,null,null,null,"",0]
[null,null,null,null,null,null,null,null,null,null,null,null,null,null,null,null,null,null,null,null,null,null,null,null,null,null,null,null,null,null,null,null,null,null,null,null,null,null,null,null,null,null,null,null,null,"",0]
[null,null,null,null,null,null,null,null,null,null,null,null,null,null,null,null,null,null,null,null,null,null,null,null,null,null,null,null,null,null,null,null,null,null,null,null,null,null,null,null,null,null,null,null,null,"",0]
[null,null,null,null,null,null,null,null,null,null,null,null,null,null,null,null,null,null,null,null,null,null,null,null,null,null,null,null,null,null,null,null,null,null,null,null,null,null,null,null,null,null,null,null,null,"",0]
[null,null,null,null,null,null,null,null,null,null,null,null,null,null,null,null,null,null,null,null,null,null,null,null,null,null,null,null,null,null,null,null,null,null,null,null,null,null,null,null,null,null,null,null,null,"",0]
[null,null,null,null,null,null,null,null,null,null,null,null,null,null,null,null,null,null,null,null,null,null,null,null,null,null,null,null,null,null,null,null,null,null,null,null,null,null,null,null,null,null,null,null,null,"",0]
[null,null,null,null,null,null,null,null,null,null,null,null,null,null,null,null,null,null,null,null,null,null,null,null,null,null,null,null,null,null,null,null,null,null,null,null,null,null,null,null,null,null,null,null,null,"",0]
[null,null,null,null,null,null,null,null,null,null,null,null,null,null,null,null,null,null,null,null,null,null,null,null,null,null,null,null,null,null,null,null,null,null,null,null,null,null,null,null,null,null,null,null,null,"",0]
[null,null,null,null,null,null,null,null,null,null,null,null,null,null,null,null,null,null,null,null,null,null,null,null,null,null,null,null,null,null,null,null,null,null,null,null,null,null,null,null,null,null,null,null,null,"",0]
[null,null,null,null,null,null,null,null,null,null,null,null,null,null,null,null,null,null,null,null,null,null,null,null,null,null,null,null,null,null,null,null,null,null,null,null,null,null,null,null,null,null,null,null,null,"",0]
[null,null,null,null,null,null,null,null,null,null,null,null,null,null,null,null,null,null,null,null,null,null,null,null,null,null,null,null,null,null,null,null,null,null,null,null,null,null,null,null,null,null,null,null,null,"",0]
[null,null,null,null,null,null,null,null,null,null,null,null,null,null,null,null,null,null,null,null,null,null,null,null,null,null,null,null,null,null,null,null,null,null,null,null,null,null,null,null,null,null,null,null,null,"",0]
[null,null,null,null,null,null,null,null,null,null,null,null,null,null,null,null,null,null,null,null,null,null,null,null,null,null,null,null,null,null,null,null,null,null,null,null,null,null,null,null,null,null,null,null,null,"",0]
[null,null,null,null,null,null,null,null,null,null,null,null,null,null,null,null,null,null,null,null,null,null,null,null,null,null,null,null,null,null,null,null,null,null,null,null,null,null,null,null,null,null,null,null,null,"",0]
[null,null,null,null,null,null,null,null,null,null,null,null,null,null,null,null,null,null,null,null,null,null,null,null,null,null,null,null,null,null,null,null,null,null,null,null,null,null,null,null,null,null,null,null,null,"",0]
[null,null,null,null,null,null,null,null,null,null,null,null,null,null,null,null,null,null,null,null,null,null,null,null,null,null,null,null,null,null,null,null,null,null,null,null,null,null,null,null,null,null,null,null,null,"",0]
[null,null,null,null,null,null,null,null,null,null,null,null,null,null,null,null,null,null,null,null,null,null,null,null,null,null,null,null,null,null,null,null,null,null,null,null,null,null,null,null,null,null,null,null,null,"",0]
[null,null,null,null,null,null,null,null,null,null,null,null,null,null,null,null,null,null,null,null,null,null,null,null,null,null,null,null,null,null,null,null,null,null,null,null,null,null,null,null,null,null,null,null,null,"",0]
[null,null,null,null,null,null,null,null,null,null,null,null,null,null,null,null,null,null,null,null,null,null,null,null,null,null,null,null,null,null,null,null,null,null,null,null,null,null,null,null,null,null,null,null,null,"",0]
[null,null,null,null,null,null,null,null,null,null,null,null,null,null,null,null,null,null,null,null,null,null,null,null,null,null,null,null,null,null,null,null,null,null,null,null,null,null,null,null,null,null,null,null,null,"",0]
[null,null,null,null,null,null,null,null,null,null,null,null,null,null,null,null,null,null,null,null,null,null,null,null,null,null,null,null,null,null,null,null,null,null,null,null,null,null,null,null,null,null,null,null,null,"",0]
[null,null,null,null,null,null,null,null,null,null,null,null,null,null,null,null,null,null,null,null,null,null,null,null,null,null,null,null,null,null,null,null,null,null,null,null,null,null,null,null,null,null,null,null,null,"",0]
[null,null,null,null,null,null,null,null,null,null,null,null,null,null,null,null,null,null,null,null,null,null,null,null,null,null,null,null,null,null,null,null,null,null,null,null,null,null,null,null,null,null,null,null,null,"",0]
[null,null,null,null,null,null,null,null,null,null,null,null,null,null,null,null,null,null,null,null,null,null,null,null,null,null,null,null,null,null,null,null,null,null,null,null,null,null,null,null,null,null,null,null,null,"",0]
[null,null,null,null,null,null,null,null,null,null,null,null,null,null,null,null,null,null,null,null,null,null,null,null,null,null,null,null,null,null,null,null,null,null,null,null,null,null,null,null,null,null,null,null,null,"",0]
[null,null,null,null,null,null,null,null,null,null,null,null,null,null,null,null,null,null,null,null,null,null,null,null,null,null,null,null,null,null,null,null,null,null,null,null,null,null,null,null,null,null,null,null,null,"",0]
[null,null,null,null,null,null,null,null,null,null,null,null,null,null,null,null,null,null,null,null,null,null,null,null,null,null,null,null,null,null,null,null,null,null,null,null,null,null,null,null,null,null,null,null,null,"",0]
[null,null,null,null,null,null,null,null,null,null,null,null,null,null,null,null,null,null,null,null,null,null,null,null,null,null,null,null,null,null,null,null,null,null,null,null,null,null,null,null,null,null,null,null,null,"",0]
[null,null,null,null,null,null,null,null,null,null,null,null,null,null,null,null,null,null,null,null,null,null,null,null,null,null,null,null,null,null,null,null,null,null,null,null,null,null,null,null,null,null,null,null,null,"",0]
[null,null,null,null,null,null,null,null,null,null,null,null,null,null,null,null,null,null,null,null,null,null,null,null,null,null,null,null,null,null,null,null,null,null,null,null,null,null,null,null,null,null,null,null,null,"",0]
[null,null,null,null,null,null,null,null,null,null,null,null,null,null,null,null,null,null,null,null,null,null,null,null,null,null,null,null,null,null,null,null,null,null,null,null,null,null,null,null,null,null,null,null,null,"",0]
[null,null,null,null,null,null,null,null,null,null,null,null,null,null,null,null,null,null,null,null,null,null,null,null,null,null,null,null,null,null,null,null,null,null,null,null,null,null,null,null,null,null,null,null,null,"",0]
[null,null,null,null,null,null,null,null,null,null,null,null,null,null,null,null,null,null,null,null,null,null,null,null,null,null,null,null,null,null,null,null,null,null,null,null,null,null,null,null,null,null,null,null,null,"",0]
[null,null,null,null,null,null,null,null,null,null,null,null,null,null,null,null,null,null,null,null,null,null,null,null,null,null,null,null,null,null,null,null,null,null,null,null,null,null,null,null,null,null,null,null,null,"",0]
[null,null,null,null,null,null,null,null,null,null,null,null,null,null,null,null,null,null,null,null,null,null,null,null,null,null,null,null,null,null,null,null,null,null,null,null,null,null,null,null,null,null,null,null,null,"",0]
[null,null,null,null,null,null,null,null,null,null,null,null,null,null,null,null,null,null,null,null,null,null,null,null,null,null,null,null,null,null,null,null,null,null,null,null,null,null,null,null,null,null,null,null,null,"",0]
[null,null,null,null,null,null,null,null,null,null,null,null,null,null,null,null,null,null,null,null,null,null,null,null,null,null,null,null,null,null,null,null,null,null,null,null,null,null,null,null,null,null,null,null,null,"",0]
[null,null,null,null,null,null,null,null,null,null,null,null,null,null,null,null,null,null,null,null,null,null,null,null,null,null,null,null,null,null,null,null,null,null,null,null,null,null,null,null,null,null,null,null,null,"",0]
[null,null,null,null,null,null,null,null,null,null,null,null,null,null,null,null,null,null,null,null,null,null,null,null,null,null,null,null,null,null,null,null,null,null,null,null,null,null,null,null,null,null,null,null,null,"",0]
[null,null,null,null,null,null,null,null,null,null,null,null,null,null,null,null,null,null,null,null,null,null,null,null,null,null,null,null,null,null,null,null,null,null,null,null,null,null,null,null,null,null,null,null,null,"",0]
[null,null,null,null,null,null,null,null,null,null,null,null,null,null,null,null,null,null,null,null,null,null,null,null,null,null,null,null,null,null,null,null,null,null,null,null,null,null,null,null,null,null,null,null,null,"",0]
[null,null,null,null,null,null,null,null,null,null,null,null,null,null,null,null,null,null,null,null,null,null,null,null,null,null,null,null,null,null,null,null,null,null,null,null,null,null,null,null,null,null,null,null,null,"",0]
[null,null,null,null,null,null,null,null,null,null,null,null,null,null,null,null,null,null,null,null,null,null,null,null,null,null,null,null,null,null,null,null,null,null,null,null,null,null,null,null,null,null,null,null,null,"",0]
[null,null,null,null,null,null,null,null,null,null,null,null,null,null,null,null,null,null,null,null,null,null,null,null,null,null,null,null,null,null,null,null,null,null,null,null,null,null,null,null,null,null,null,null,null,"",0]
[null,null,null,null,null,null,null,null,null,null,null,null,null,null,null,null,null,null,null,null,null,null,null,null,null,null,null,null,null,null,null,null,null,null,null,null,null,null,null,null,null,null,null,null,null,"",0]
[null,null,null,null,null,null,null,null,null,null,null,null,null,null,null,null,null,null,null,null,null,null,null,null,null,null,null,null,null,null,null,null,null,null,null,null,null,null,null,null,null,null,null,null,null,"",0]
[null,null,null,null,null,null,null,null,null,null,null,null,null,null,null,null,null,null,null,null,null,null,null,null,null,null,null,null,null,null,null,null,null,null,null,null,null,null,null,null,null,null,null,null,null,"",0]
[null,null,null,null,null,null,null,null,null,null,null,null,null,null,null,null,null,null,null,null,null,null,null,null,null,null,null,null,null,null,null,null,null,null,null,null,null,null,null,null,null,null,null,null,null,"",0]
[null,null,null,null,null,null,null,null,null,null,null,null,null,null,null,null,null,null,null,null,null,null,null,null,null,null,null,null,null,null,null,null,null,null,null,null,null,null,null,null,null,null,null,null,null,"",0]
[null,null,null,null,null,null,null,null,null,null,null,null,null,null,null,null,null,null,null,null,null,null,null,null,null,null,null,null,null,null,null,null,null,null,null,null,null,null,null,null,null,null,null,null,null,"",0]
[null,null,null,null,null,null,null,null,null,null,null,null,null,null,null,null,null,null,null,null,null,null,null,null,null,null,null,null,null,null,null,null,null,null,null,null,null,null,null,null,null,null,null,null,null,"",0]
[null,null,null,null,null,null,null,null,null,null,null,null,null,null,null,null,null,null,null,null,null,null,null,null,null,null,null,null,null,null,null,null,null,null,null,null,null,null,null,null,null,null,null,null,null,"",0]
[null,null,null,null,null,null,null,null,null,null,null,null,null,null,null,null,null,null,null,null,null,null,null,null,null,null,null,null,null,null,null,null,null,null,null,null,null,null,null,null,null,null,null,null,null,"",0]
[null,null,null,null,null,null,null,null,null,null,null,null,null,null,null,null,null,null,null,null,null,null,null,null,null,null,null,null,null,null,null,null,null,null,null,null,null,null,null,null,null,null,null,null,null,"",0]
[null,null,null,null,null,null,null,null,null,null,null,null,null,null,null,null,null,null,null,null,null,null,null,null,null,null,null,null,null,null,null,null,null,null,null,null,null,null,null,null,null,null,null,null,null,"",0]
[null,null,null,null,null,null,null,null,null,null,null,null,null,null,null,null,null,null,null,null,null,null,null,null,null,null,null,null,null,null,null,null,null,null,null,null,null,null,null,null,null,null,null,null,null,"",0]
[null,null,null,null,null,null,null,null,null,null,null,null,null,null,null,null,null,null,null,null,null,null,null,null,null,null,null,null,null,null,null,null,null,null,null,null,null,null,null,null,null,null,null,null,null,"",0]
[null,null,null,null,null,null,null,null,null,null,null,null,null,null,null,null,null,null,null,null,null,null,null,null,null,null,null,null,null,null,null,null,null,null,null,null,null,null,null,null,null,null,null,null,null,"",0]
[null,null,null,null,null,null,null,null,null,null,null,null,null,null,null,null,null,null,null,null,null,null,null,null,null,null,null,null,null,null,null,null,null,null,null,null,null,null,null,null,null,null,null,null,null,"",0]
[null,null,null,null,null,null,null,null,null,null,null,null,null,null,null,null,null,null,null,null,null,null,null,null,null,null,null,null,null,null,null,null,null,null,null,null,null,null,null,null,null,null,null,null,null,"",0]
[null,null,null,null,null,null,null,null,null,null,null,null,null,null,null,null,null,null,null,null,null,null,null,null,null,null,null,null,null,null,null,null,null,null,null,null,null,null,null,null,null,null,null,null,null,"",0]
[null,null,null,null,null,null,null,null,null,null,null,null,null,null,null,null,null,null,null,null,null,null,null,null,null,null,null,null,null,null,null,null,null,null,null,null,null,null,null,null,null,null,null,null,null,"",0]
[null,null,null,null,null,null,null,null,null,null,null,null,null,null,null,null,null,null,null,null,null,null,null,null,null,null,null,null,null,null,null,null,null,null,null,null,null,null,null,null,null,null,null,null,null,"",0]
[null,null,null,null,null,null,null,null,null,null,null,null,null,null,null,null,null,null,null,null,null,null,null,null,null,null,null,null,null,null,null,null,null,null,null,null,null,null,null,null,null,null,null,null,null,"",0]
[null,null,null,null,null,null,null,null,null,null,null,null,null,null,null,null,null,null,null,null,null,null,null,null,null,null,null,null,null,null,null,null,null,null,null,null,null,null,null,null,null,null,null,null,null,"",0]
[null,null,null,null,null,null,null,null,null,null,null,null,null,null,null,null,null,null,null,null,null,null,null,null,null,null,null,null,null,null,null,null,null,null,null,null,null,null,null,null,null,null,null,null,null,"",0]
[null,null,null,null,null,null,null,null,null,null,null,null,null,null,null,null,null,null,null,null,null,null,null,null,null,null,null,null,null,null,null,null,null,null,null,null,null,null,null,null,null,null,null,null,null,"",0]
[null,null,null,null,null,null,null,null,null,null,null,null,null,null,null,null,null,null,null,null,null,null,null,null,null,null,null,null,null,null,null,null,null,null,null,null,null,null,null,null,null,null,null,null,null,"",0]
[null,null,null,null,null,null,null,null,null,null,null,null,null,null,null,null,null,null,null,null,null,null,null,null,null,null,null,null,null,null,null,null,null,null,null,null,null,null,null,null,null,null,null,null,null,"",0]
[null,null,null,null,null,null,null,null,null,null,null,null,null,null,null,null,null,null,null,null,null,null,null,null,null,null,null,null,null,null,null,null,null,null,null,null,null,null,null,null,null,null,null,null,null,"",0]
[null,null,null,null,null,null,null,null,null,null,null,null,null,null,null,null,null,null,null,null,null,null,null,null,null,null,null,null,null,null,null,null,null,null,null,null,null,null,null,null,null,null,null,null,null,"",0]
[null,null,null,null,null,null,null,null,null,null,null,null,null,null,null,null,null,null,null,null,null,null,null,null,null,null,null,null,null,null,null,null,null,null,null,null,null,null,null,null,null,null,null,null,null,"",0]
[null,null,null,null,null,null,null,null,null,null,null,null,null,null,null,null,null,null,null,null,null,null,null,null,null,null,null,null,null,null,null,null,null,null,null,null,null,null,null,null,null,null,null,null,null,{"$f":"IF(OR(MID(H4294,1,1)=\"N\",MID(H4294,1,1)=\"Q\"),MID(H4294,1,1),\"\")","v":""},{"$f":"IF(OR(MID(H4294,1,1)=\"N\",MID(H4294,1,1)=\"Q\"),INT(MID(H4294,2,2)),H4294)","v":0}]
[null,null,null,null,null,null,null,null,null,null,null,null,null,null,null,null,null,null,null,null,null,null,null,null,null,null,null,null,null,null,null,null,null,null,null,null,null,null,null,null,null,null,null,null,null,"",0]
[null,null,null,null,null,null,null,null,null,null,null,null,null,null,null,null,null,null,null,null,null,null,null,null,null,null,null,null,null,null,null,null,null,null,null,null,null,null,null,null,null,null,null,null,null,"",0]
[null,null,null,null,null,null,null,null,null,null,null,null,null,null,null,null,null,null,null,null,null,null,null,null,null,null,null,null,null,null,null,null,null,null,null,null,null,null,null,null,null,null,null,null,null,"",0]
[null,null,null,null,null,null,null,null,null,null,null,null,null,null,null,null,null,null,null,null,null,null,null,null,null,null,null,null,null,null,null,null,null,null,null,null,null,null,null,null,null,null,null,null,null,"",0]
[null,null,null,null,null,null,null,null,null,null,null,null,null,null,null,null,null,null,null,null,null,null,null,null,null,null,null,null,null,null,null,null,null,null,null,null,null,null,null,null,null,null,null,null,null,"",0]
[null,null,null,null,null,null,null,null,null,null,null,null,null,null,null,null,null,null,null,null,null,null,null,null,null,null,null,null,null,null,null,null,null,null,null,null,null,null,null,null,null,null,null,null,null,"",0]
[null,null,null,null,null,null,null,null,null,null,null,null,null,null,null,null,null,null,null,null,null,null,null,null,null,null,null,null,null,null,null,null,null,null,null,null,null,null,null,null,null,null,null,null,null,"",0]
[null,null,null,null,null,null,null,null,null,null,null,null,null,null,null,null,null,null,null,null,null,null,null,null,null,null,null,null,null,null,null,null,null,null,null,null,null,null,null,null,null,null,null,null,null,"",0]
[null,null,null,null,null,null,null,null,null,null,null,null,null,null,null,null,null,null,null,null,null,null,null,null,null,null,null,null,null,null,null,null,null,null,null,null,null,null,null,null,null,null,null,null,null,"",0]
[null,null,null,null,null,null,null,null,null,null,null,null,null,null,null,null,null,null,null,null,null,null,null,null,null,null,null,null,null,null,null,null,null,null,null,null,null,null,null,null,null,null,null,null,null,"",0]
[null,null,null,null,null,null,null,null,null,null,null,null,null,null,null,null,null,null,null,null,null,null,null,null,null,null,null,null,null,null,null,null,null,null,null,null,null,null,null,null,null,null,null,null,null,"",0]
[null,null,null,null,null,null,null,null,null,null,null,null,null,null,null,null,null,null,null,null,null,null,null,null,null,null,null,null,null,null,null,null,null,null,null,null,null,null,null,null,null,null,null,null,null,"",0]
[null,null,null,null,null,null,null,null,null,null,null,null,null,null,null,null,null,null,null,null,null,null,null,null,null,null,null,null,null,null,null,null,null,null,null,null,null,null,null,null,null,null,null,null,null,"",0]
[null,null,null,null,null,null,null,null,null,null,null,null,null,null,null,null,null,null,null,null,null,null,null,null,null,null,null,null,null,null,null,null,null,null,null,null,null,null,null,null,null,null,null,null,null,"",0]
[null,null,null,null,null,null,null,null,null,null,null,null,null,null,null,null,null,null,null,null,null,null,null,null,null,null,null,null,null,null,null,null,null,null,null,null,null,null,null,null,null,null,null,null,null,"",0]
[null,null,null,null,null,null,null,null,null,null,null,null,null,null,null,null,null,null,null,null,null,null,null,null,null,null,null,null,null,null,null,null,null,null,null,null,null,null,null,null,null,null,null,null,null,"",0]
[null,null,null,null,null,null,null,null,null,null,null,null,null,null,null,null,null,null,null,null,null,null,null,null,null,null,null,null,null,null,null,null,null,null,null,null,null,null,null,null,null,null,null,null,null,"",0]
[null,null,null,null,null,null,null,null,null,null,null,null,null,null,null,null,null,null,null,null,null,null,null,null,null,null,null,null,null,null,null,null,null,null,null,null,null,null,null,null,null,null,null,null,null,"",0]
[null,null,null,null,null,null,null,null,null,null,null,null,null,null,null,null,null,null,null,null,null,null,null,null,null,null,null,null,null,null,null,null,null,null,null,null,null,null,null,null,null,null,null,null,null,"",0]
[null,null,null,null,null,null,null,null,null,null,null,null,null,null,null,null,null,null,null,null,null,null,null,null,null,null,null,null,null,null,null,null,null,null,null,null,null,null,null,null,null,null,null,null,null,"",0]
[null,null,null,null,null,null,null,null,null,null,null,null,null,null,null,null,null,null,null,null,null,null,null,null,null,null,null,null,null,null,null,null,null,null,null,null,null,null,null,null,null,null,null,null,null,"",0]
[null,null,null,null,null,null,null,null,null,null,null,null,null,null,null,null,null,null,null,null,null,null,null,null,null,null,null,null,null,null,null,null,null,null,null,null,null,null,null,null,null,null,null,null,null,{"$f":"IF(OR(MID(H4742,1,1)=\"N\",MID(H4742,1,1)=\"Q\"),MID(H4742,1,1),\"\")","v":""},{"$f":"IF(OR(MID(H4742,1,1)=\"N\",MID(H4742,1,1)=\"Q\"),INT(MID(H4742,2,2)),H4742)","v":0}]
[null,null,null,null,null,null,null,null,null,null,null,null,null,null,null,null,null,null,null,null,null,null,null,null,null,null,null,null,null,null,null,null,null,null,null,null,null,null,null,null,null,null,null,null,null,"",0]
[null,null,null,null,null,null,null,null,null,null,null,null,null,null,null,null,null,null,null,null,null,null,null,null,null,null,null,null,null,null,null,null,null,null,null,null,null,null,null,null,null,null,null,null,null,"",0]
[null,null,null,null,null,null,null,null,null,null,null,null,null,null,null,null,null,null,null,null,null,null,null,null,null,null,null,null,null,null,null,null,null,null,null,null,null,null,null,null,null,null,null,null,null,"",0]
[null,null,null,null,null,null,null,null,null,null,null,null,null,null,null,null,null,null,null,null,null,null,null,null,null,null,null,null,null,null,null,null,null,null,null,null,null,null,null,null,null,null,null,null,null,"",0]
[null,null,null,null,null,null,null,null,null,null,null,null,null,null,null,null,null,null,null,null,null,null,null,null,null,null,null,null,null,null,null,null,null,null,null,null,null,null,null,null,null,null,null,null,null,"",0]
[null,null,null,null,null,null,null,null,null,null,null,null,null,null,null,null,null,null,null,null,null,null,null,null,null,null,null,null,null,null,null,null,null,null,null,null,null,null,null,null,null,null,null,null,null,"",0]
[null,null,null,null,null,null,null,null,null,null,null,null,null,null,null,null,null,null,null,null,null,null,null,null,null,null,null,null,null,null,null,null,null,null,null,null,null,null,null,null,null,null,null,null,null,"",0]
[null,null,null,null,null,null,null,null,null,null,null,null,null,null,null,null,null,null,null,null,null,null,null,null,null,null,null,null,null,null,null,null,null,null,null,null,null,null,null,null,null,null,null,null,null,"",0]
[null,null,null,null,null,null,null,null,null,null,null,null,null,null,null,null,null,null,null,null,null,null,null,null,null,null,null,null,null,null,null,null,null,null,null,null,null,null,null,null,null,null,null,null,null,"",0]
[null,null,null,null,null,null,null,null,null,null,null,null,null,null,null,null,null,null,null,null,null,null,null,null,null,null,null,null,null,null,null,null,null,null,null,null,null,null,null,null,null,null,null,null,null,"",0]
[null,null,null,null,null,null,null,null,null,null,null,null,null,null,null,null,null,null,null,null,null,null,null,null,null,null,null,null,null,null,null,null,null,null,null,null,null,null,null,null,null,null,null,null,null,"",0]
[null,null,null,null,null,null,null,null,null,null,null,null,null,null,null,null,null,null,null,null,null,null,null,null,null,null,null,null,null,null,null,null,null,null,null,null,null,null,null,null,null,null,null,null,null,"",0]
[null,null,null,null,null,null,null,null,null,null,null,null,null,null,null,null,null,null,null,null,null,null,null,null,null,null,null,null,null,null,null,null,null,null,null,null,null,null,null,null,null,null,null,null,null,"",0]
[null,null,null,null,null,null,null,null,null,null,null,null,null,null,null,null,null,null,null,null,null,null,null,null,null,null,null,null,null,null,null,null,null,null,null,null,null,null,null,null,null,null,null,null,null,"",0]
[null,null,null,null,null,null,null,null,null,null,null,null,null,null,null,null,null,null,null,null,null,null,null,null,null,null,null,null,null,null,null,null,null,null,null,null,null,null,null,null,null,null,null,null,null,"",0]
[null,null,null,null,null,null,null,null,null,null,null,null,null,null,null,null,null,null,null,null,null,null,null,null,null,null,null,null,null,null,null,null,null,null,null,null,null,null,null,null,null,null,null,null,null,"",0]
[null,null,null,null,null,null,null,null,null,null,null,null,null,null,null,null,null,null,null,null,null,null,null,null,null,null,null,null,null,null,null,null,null,null,null,null,null,null,null,null,null,null,null,null,null,"",0]
[null,null,null,null,null,null,null,null,null,null,null,null,null,null,null,null,null,null,null,null,null,null,null,null,null,null,null,null,null,null,null,null,null,null,null,null,null,null,null,null,null,null,null,null,null,{"$f":"IF(OR(MID(H5126,1,1)=\"N\",MID(H5126,1,1)=\"Q\"),MID(H5126,1,1),\"\")","v":""},{"$f":"IF(OR(MID(H5126,1,1)=\"N\",MID(H5126,1,1)=\"Q\"),INT(MID(H5126,2,2)),H5126)","v":0}]
[null,null,null,null,null,null,null,null,null,null,null,null,null,null,null,null,null,null,null,null,null,null,null,null,null,null,null,null,null,null,null,null,null,null,null,null,null,null,null,null,null,null,null,null,null,"",0]
[null,null,null,null,null,null,null,null,null,null,null,null,null,null,null,null,null,null,null,null,null,null,null,null,null,null,null,null,null,null,null,null,null,null,null,null,null,null,null,null,null,null,null,null,null,"",0]
[null,null,null,null,null,null,null,null,null,null,null,null,null,null,null,null,null,null,null,null,null,null,null,null,null,null,null,null,null,null,null,null,null,null,null,null,null,null,null,null,null,null,null,null,null,"",0]
[null,null,null,null,null,null,null,null,null,null,null,null,null,null,null,null,null,null,null,null,null,null,null,null,null,null,null,null,null,null,null,null,null,null,null,null,null,null,null,null,null,null,null,null,null,"",0]
[null,null,null,null,null,null,null,null,null,null,null,null,null,null,null,null,null,null,null,null,null,null,null,null,null,null,null,null,null,null,null,null,null,null,null,null,null,null,null,null,null,null,null,null,null,"",0]
[null,null,null,null,null,null,null,null,null,null,null,null,null,null,null,null,null,null,null,null,null,null,null,null,null,null,null,null,null,null,null,null,null,null,null,null,null,null,null,null,null,null,null,null,null,"",0]
[null,null,null,null,null,null,null,null,null,null,null,null,null,null,null,null,null,null,null,null,null,null,null,null,null,null,null,null,null,null,null,null,null,null,null,null,null,null,null,null,null,null,null,null,null,"",0]
[null,null,null,null,null,null,null,null,null,null,null,null,null,null,null,null,null,null,null,null,null,null,null,null,null,null,null,null,null,null,null,null,null,null,null,null,null,null,null,null,null,null,null,null,null,"",0]
[null,null,null,null,null,null,null,null,null,null,null,null,null,null,null,null,null,null,null,null,null,null,null,null,null,null,null,null,null,null,null,null,null,null,null,null,null,null,null,null,null,null,null,null,null,"",0]
[null,null,null,null,null,null,null,null,null,null,null,null,null,null,null,null,null,null,null,null,null,null,null,null,null,null,null,null,null,null,null,null,null,null,null,null,null,null,null,null,null,null,null,null,null,"",0]
[null,null,null,null,null,null,null,null,null,null,null,null,null,null,null,null,null,null,null,null,null,null,null,null,null,null,null,null,null,null,null,null,null,null,null,null,null,null,null,null,null,null,null,null,null,"",0]
[null,null,null,null,null,null,null,null,null,null,null,null,null,null,null,null,null,null,null,null,null,null,null,null,null,null,null,null,null,null,null,null,null,null,null,null,null,null,null,null,null,null,null,null,null,"",0]
[null,null,null,null,null,null,null,null,null,null,null,null,null,null,null,null,null,null,null,null,null,null,null,null,null,null,null,null,null,null,null,null,null,null,null,null,null,null,null,null,null,null,null,null,null,"",0]
[null,null,null,null,null,null,null,null,null,null,null,null,null,null,null,null,null,null,null,null,null,null,null,null,null,null,null,null,null,null,null,null,null,null,null,null,null,null,null,null,null,null,null,null,null,"",0]
[null,null,null,null,null,null,null,null,null,null,null,null,null,null,null,null,null,null,null,null,null,null,null,null,null,null,null,null,null,null,null,null,null,null,null,null,null,null,null,null,null,null,null,null,null,"",0]
[null,null,null,null,null,null,null,null,null,null,null,null,null,null,null,null,null,null,null,null,null,null,null,null,null,null,null,null,null,null,null,null,null,null,null,null,null,null,null,null,null,null,null,null,null,"",0]
[null,null,null,null,null,null,null,null,null,null,null,null,null,null,null,null,null,null,null,null,null,null,null,null,null,null,null,null,null,null,null,null,null,null,null,null,null,null,null,null,null,null,null,null,null,"",0]
[null,null,null,null,null,null,null,null,null,null,null,null,null,null,null,null,null,null,null,null,null,null,null,null,null,null,null,null,null,null,null,null,null,null,null,null,null,null,null,null,null,null,null,null,null,{"$f":"IF(OR(MID(H5510,1,1)=\"N\",MID(H5510,1,1)=\"Q\"),MID(H5510,1,1),\"\")","v":""},{"$f":"IF(OR(MID(H5510,1,1)=\"N\",MID(H5510,1,1)=\"Q\"),INT(MID(H5510,2,2)),H5510)","v":0}]
[null,null,null,null,null,null,null,null,null,null,null,null,null,null,null,null,null,null,null,null,null,null,null,null,null,null,null,null,null,null,null,null,null,null,null,null,null,null,null,null,null,null,null,null,null,"",0]
[null,null,null,null,null,null,null,null,null,null,null,null,null,null,null,null,null,null,null,null,null,null,null,null,null,null,null,null,null,null,null,null,null,null,null,null,null,null,null,null,null,null,null,null,null,"",0]
[null,null,null,null,null,null,null,null,null,null,null,null,null,null,null,null,null,null,null,null,null,null,null,null,null,null,null,null,null,null,null,null,null,null,null,null,null,null,null,null,null,null,null,null,null,"",0]
[null,null,null,null,null,null,null,null,null,null,null,null,null,null,null,null,null,null,null,null,null,null,null,null,null,null,null,null,null,null,null,null,null,null,null,null,null,null,null,null,null,null,null,null,null,"",0]
[null,null,null,null,null,null,null,null,null,null,null,null,null,null,null,null,null,null,null,null,null,null,null,null,null,null,null,null,null,null,null,null,null,null,null,null,null,null,null,null,null,null,null,null,null,"",0]
[null,null,null,null,null,null,null,null,null,null,null,null,null,null,null,null,null,null,null,null,null,null,null,null,null,null,null,null,null,null,null,null,null,null,null,null,null,null,null,null,null,null,null,null,null,"",0]
[null,null,null,null,null,null,null,null,null,null,null,null,null,null,null,null,null,null,null,null,null,null,null,null,null,null,null,null,null,null,null,null,null,null,null,null,null,null,null,null,null,null,null,null,null,"",0]
[null,null,null,null,null,null,null,null,null,null,null,null,null,null,null,null,null,null,null,null,null,null,null,null,null,null,null,null,null,null,null,null,null,null,null,null,null,null,null,null,null,null,null,null,null,"",0]
[null,null,null,null,null,null,null,null,null,null,null,null,null,null,null,null,null,null,null,null,null,null,null,null,null,null,null,null,null,null,null,null,null,null,null,null,null,null,null,null,null,null,null,null,null,"",0]
[null,null,null,null,null,null,null,null,null,null,null,null,null,null,null,null,null,null,null,null,null,null,null,null,null,null,null,null,null,null,null,null,null,null,null,null,null,null,null,null,null,null,null,null,null,"",0]
[null,null,null,null,null,null,null,null,null,null,null,null,null,null,null,null,null,null,null,null,null,null,null,null,null,null,null,null,null,null,null,null,null,null,null,null,null,null,null,null,null,null,null,null,null,"",0]
[null,null,null,null,null,null,null,null,null,null,null,null,null,null,null,null,null,null,null,null,null,null,null,null,null,null,null,null,null,null,null,null,null,null,null,null,null,null,null,null,null,null,null,null,null,"",0]
[null,null,null,null,null,null,null,null,null,null,null,null,null,null,null,null,null,null,null,null,null,null,null,null,null,null,null,null,null,null,null,null,null,null,null,null,null,null,null,null,null,null,null,null,null,"",0]
[null,null,null,null,null,null,null,null,null,null,null,null,null,null,null,null,null,null,null,null,null,null,null,null,null,null,null,null,null,null,null,null,null,null,null,null,null,null,null,null,null,null,null,null,null,"",0]
[null,null,null,null,null,null,null,null,null,null,null,null,null,null,null,null,null,null,null,null,null,null,null,null,null,null,null,null,null,null,null,null,null,null,null,null,null,null,null,null,null,null,null,null,null,"",0]
[null,null,null,null,null,null,null,null,null,null,null,null,null,null,null,null,null,null,null,null,null,null,null,null,null,null,null,null,null,null,null,null,null,null,null,null,null,null,null,null,null,null,null,null,null,"",0]
[null,null,null,null,null,null,null,null,null,null,null,null,null,null,null,null,null,null,null,null,null,null,null,null,null,null,null,null,null,null,null,null,null,null,null,null,null,null,null,null,null,null,null,null,null,"",0]
[null,null,null,null,null,null,null,null,null,null,null,null,null,null,null,null,null,null,null,null,null,null,null,null,null,null,null,null,null,null,null,null,null,null,null,null,null,null,null,null,null,null,null,null,null,"",0]
[null,null,null,null,null,null,null,null,null,null,null,null,null,null,null,null,null,null,null,null,null,null,null,null,null,null,null,null,null,null,null,null,null,null,null,null,null,null,null,null,null,null,null,null,null,"",0]
[null,null,null,null,null,null,null,null,null,null,null,null,null,null,null,null,null,null,null,null,null,null,null,null,null,null,null,null,null,null,null,null,null,null,null,null,null,null,null,null,null,null,null,null,null,"",0]
[null,null,null,null,null,null,null,null,null,null,null,null,null,null,null,null,null,null,null,null,null,null,null,null,null,null,null,null,null,null,null,null,null,null,null,null,null,null,null,null,null,null,null,null,null,"",0]
[null,null,null,null,null,null,null,null,null,null,null,null,null,null,null,null,null,null,null,null,null,null,null,null,null,null,null,null,null,null,null,null,null,null,null,null,null,null,null,null,null,null,null,null,null,"",0]
[null,null,null,null,null,null,null,null,null,null,null,null,null,null,null,null,null,null,null,null,null,null,null,null,null,null,null,null,null,null,null,null,null,null,null,null,null,null,null,null,null,null,null,null,null,"",0]
[null,null,null,null,null,null,null,null,null,null,null,null,null,null,null,null,null,null,null,null,null,null,null,null,null,null,null,null,null,null,null,null,null,null,null,null,null,null,null,null,null,null,null,null,null,"",0]
[null,null,null,null,null,null,null,null,null,null,null,null,null,null,null,null,null,null,null,null,null,null,null,null,null,null,null,null,null,null,null,null,null,null,null,null,null,null,null,null,null,null,null,null,null,"",0]
[null,null,null,null,null,null,null,null,null,null,null,null,null,null,null,null,null,null,null,null,null,null,null,null,null,null,null,null,null,null,null,null,null,null,null,null,null,null,null,null,null,null,null,null,null,"",0]
[null,null,null,null,null,null,null,null,null,null,null,null,null,null,null,null,null,null,null,null,null,null,null,null,null,null,null,null,null,null,null,null,null,null,null,null,null,null,null,null,null,null,null,null,null,"",0]
[null,null,null,null,null,null,null,null,null,null,null,null,null,null,null,null,null,null,null,null,null,null,null,null,null,null,null,null,null,null,null,null,null,null,null,null,null,null,null,null,null,null,null,null,null,"",0]
[null,null,null,null,null,null,null,null,null,null,null,null,null,null,null,null,null,null,null,null,null,null,null,null,null,null,null,null,null,null,null,null,null,null,null,null,null,null,null,null,null,null,null,null,null,"",0]
[null,null,null,null,null,null,null,null,null,null,null,null,null,null,null,null,null,null,null,null,null,null,null,null,null,null,null,null,null,null,null,null,null,null,null,null,null,null,null,null,null,null,null,null,null,"",0]
[null,null,null,null,null,null,null,null,null,null,null,null,null,null,null,null,null,null,null,null,null,null,null,null,null,null,null,null,null,null,null,null,null,null,null,null,null,null,null,null,null,null,null,null,null,"",0]
[null,null,null,null,null,null,null,null,null,null,null,null,null,null,null,null,null,null,null,null,null,null,null,null,null,null,null,null,null,null,null,null,null,null,null,null,null,null,null,null,null,null,null,null,null,"",0]
[null,null,null,null,null,null,null,null,null,null,null,null,null,null,null,null,null,null,null,null,null,null,null,null,null,null,null,null,null,null,null,null,null,null,null,null,null,null,null,null,null,null,null,null,null,"",0]
[null,null,null,null,null,null,null,null,null,null,null,null,null,null,null,null,null,null,null,null,null,null,null,null,null,null,null,null,null,null,null,null,null,null,null,null,null,null,null,null,null,null,null,null,null,"",0]
[null,null,null,null,null,null,null,null,null,null,null,null,null,null,null,null,null,null,null,null,null,null,null,null,null,null,null,null,null,null,null,null,null,null,null,null,null,null,null,null,null,null,null,null,null,"",0]
[null,null,null,null,null,null,null,null,null,null,null,null,null,null,null,null,null,null,null,null,null,null,null,null,null,null,null,null,null,null,null,null,null,null,null,null,null,null,null,null,null,null,null,null,null,"",0]
[null,null,null,null,null,null,null,null,null,null,null,null,null,null,null,null,null,null,null,null,null,null,null,null,null,null,null,null,null,null,null,null,null,null,null,null,null,null,null,null,null,null,null,null,null,"",0]
[null,null,null,null,null,null,null,null,null,null,null,null,null,null,null,null,null,null,null,null,null,null,null,null,null,null,null,null,null,null,null,null,null,null,null,null,null,null,null,null,null,null,null,null,null,"",0]
[null,null,null,null,null,null,null,null,null,null,null,null,null,null,null,null,null,null,null,null,null,null,null,null,null,null,null,null,null,null,null,null,null,null,null,null,null,null,null,null,null,null,null,null,null,"",0]
[null,null,null,null,null,null,null,null,null,null,null,null,null,null,null,null,null,null,null,null,null,null,null,null,null,null,null,null,null,null,null,null,null,null,null,null,null,null,null,null,null,null,null,null,null,"",0]
[null,null,null,null,null,null,null,null,null,null,null,null,null,null,null,null,null,null,null,null,null,null,null,null,null,null,null,null,null,null,null,null,null,null,null,null,null,null,null,null,null,null,null,null,null,"",0]
[null,null,null,null,null,null,null,null,null,null,null,null,null,null,null,null,null,null,null,null,null,null,null,null,null,null,null,null,null,null,null,null,null,null,null,null,null,null,null,null,null,null,null,null,null,"",0]
[null,null,null,null,null,null,null,null,null,null,null,null,null,null,null,null,null,null,null,null,null,null,null,null,null,null,null,null,null,null,null,null,null,null,null,null,null,null,null,null,null,null,null,null,null,"",0]
[null,null,null,null,null,null,null,null,null,null,null,null,null,null,null,null,null,null,null,null,null,null,null,null,null,null,null,null,null,null,null,null,null,null,null,null,null,null,null,null,null,null,null,null,null,"",0]
[null,null,null,null,null,null,null,null,null,null,null,null,null,null,null,null,null,null,null,null,null,null,null,null,null,null,null,null,null,null,null,null,null,null,null,null,null,null,null,null,null,null,null,null,null,"",0]
[null,null,null,null,null,null,null,null,null,null,null,null,null,null,null,null,null,null,null,null,null,null,null,null,null,null,null,null,null,null,null,null,null,null,null,null,null,null,null,null,null,null,null,null,null,"",0]
[null,null,null,null,null,null,null,null,null,null,null,null,null,null,null,null,null,null,null,null,null,null,null,null,null,null,null,null,null,null,null,null,null,null,null,null,null,null,null,null,null,null,null,null,null,"",0]
[null,null,null,null,null,null,null,null,null,null,null,null,null,null,null,null,null,null,null,null,null,null,null,null,null,null,null,null,null,null,null,null,null,null,null,null,null,null,null,null,null,null,null,null,null,"",0]
[null,null,null,null,null,null,null,null,null,null,null,null,null,null,null,null,null,null,null,null,null,null,null,null,null,null,null,null,null,null,null,null,null,null,null,null,null,null,null,null,null,null,null,null,null,"",0]
[null,null,null,null,null,null,null,null,null,null,null,null,null,null,null,null,null,null,null,null,null,null,null,null,null,null,null,null,null,null,null,null,null,null,null,null,null,null,null,null,null,null,null,null,null,"",0]
[null,null,null,null,null,null,null,null,null,null,null,null,null,null,null,null,null,null,null,null,null,null,null,null,null,null,null,null,null,null,null,null,null,null,null,null,null,null,null,null,null,null,null,null,null,"",0]
[null,null,null,null,null,null,null,null,null,null,null,null,null,null,null,null,null,null,null,null,null,null,null,null,null,null,null,null,null,null,null,null,null,null,null,null,null,null,null,null,null,null,null,null,null,"",0]
[null,null,null,null,null,null,null,null,null,null,null,null,null,null,null,null,null,null,null,null,null,null,null,null,null,null,null,null,null,null,null,null,null,null,null,null,null,null,null,null,null,null,null,null,null,"",0]
[null,null,null,null,null,null,null,null,null,null,null,null,null,null,null,null,null,null,null,null,null,null,null,null,null,null,null,null,null,null,null,null,null,null,null,null,null,null,null,null,null,null,null,null,null,"",0]
[null,null,null,null,null,null,null,null,null,null,null,null,null,null,null,null,null,null,null,null,null,null,null,null,null,null,null,null,null,null,null,null,null,null,null,null,null,null,null,null,null,null,null,null,null,"",0]
[null,null,null,null,null,null,null,null,null,null,null,null,null,null,null,null,null,null,null,null,null,null,null,null,null,null,null,null,null,null,null,null,null,null,null,null,null,null,null,null,null,null,null,null,null,"",0]
[null,null,null,null,null,null,null,null,null,null,null,null,null,null,null,null,null,null,null,null,null,null,null,null,null,null,null,null,null,null,null,null,null,null,null,null,null,null,null,null,null,null,null,null,null,"",0]
[null,null,null,null,null,null,null,null,null,null,null,null,null,null,null,null,null,null,null,null,null,null,null,null,null,null,null,null,null,null,null,null,null,null,null,null,null,null,null,null,null,null,null,null,null,"",0]
[null,null,null,null,null,null,null,null,null,null,null,null,null,null,null,null,null,null,null,null,null,null,null,null,null,null,null,null,null,null,null,null,null,null,null,null,null,null,null,null,null,null,null,null,null,"",0]
[null,null,null,null,null,null,null,null,null,null,null,null,null,null,null,null,null,null,null,null,null,null,null,null,null,null,null,null,null,null,null,null,null,null,null,null,null,null,null,null,null,null,null,null,null,"",0]
[null,null,null,null,null,null,null,null,null,null,null,null,null,null,null,null,null,null,null,null,null,null,null,null,null,null,null,null,null,null,null,null,null,null,null,null,null,null,null,null,null,null,null,null,null,"",0]
[null,null,null,null,null,null,null,null,null,null,null,null,null,null,null,null,null,null,null,null,null,null,null,null,null,null,null,null,null,null,null,null,null,null,null,null,null,null,null,null,null,null,null,null,null,"",0]
[null,null,null,null,null,null,null,null,null,null,null,null,null,null,null,null,null,null,null,null,null,null,null,null,null,null,null,null,null,null,null,null,null,null,null,null,null,null,null,null,null,null,null,null,null,"",0]
[null,null,null,null,null,null,null,null,null,null,null,null,null,null,null,null,null,null,null,null,null,null,null,null,null,null,null,null,null,null,null,null,null,null,null,null,null,null,null,null,null,null,null,null,null,"",0]
[null,null,null,null,null,null,null,null,null,null,null,null,null,null,null,null,null,null,null,null,null,null,null,null,null,null,null,null,null,null,null,null,null,null,null,null,null,null,null,null,null,null,null,null,null,"",0]
[null,null,null,null,null,null,null,null,null,null,null,null,null,null,null,null,null,null,null,null,null,null,null,null,null,null,null,null,null,null,null,null,null,null,null,null,null,null,null,null,null,null,null,null,null,"",0]
[null,null,null,null,null,null,null,null,null,null,null,null,null,null,null,null,null,null,null,null,null,null,null,null,null,null,null,null,null,null,null,null,null,null,null,null,null,null,null,null,null,null,null,null,null,"",0]
[null,null,null,null,null,null,null,null,null,null,null,null,null,null,null,null,null,null,null,null,null,null,null,null,null,null,null,null,null,null,null,null,null,null,null,null,null,null,null,null,null,null,null,null,null,"",0]
[null,null,null,null,null,null,null,null,null,null,null,null,null,null,null,null,null,null,null,null,null,null,null,null,null,null,null,null,null,null,null,null,null,null,null,null,null,null,null,null,null,null,null,null,null,"",0]
[null,null,null,null,null,null,null,null,null,null,null,null,null,null,null,null,null,null,null,null,null,null,null,null,null,null,null,null,null,null,null,null,null,null,null,null,null,null,null,null,null,null,null,null,null,"",0]
[null,null,null,null,null,null,null,null,null,null,null,null,null,null,null,null,null,null,null,null,null,null,null,null,null,null,null,null,null,null,null,null,null,null,null,null,null,null,null,null,null,null,null,null,null,"",0]
[null,null,null,null,null,null,null,null,null,null,null,null,null,null,null,null,null,null,null,null,null,null,null,null,null,null,null,null,null,null,null,null,null,null,null,null,null,null,null,null,null,null,null,null,null,"",0]
[null,null,null,null,null,null,null,null,null,null,null,null,null,null,null,null,null,null,null,null,null,null,null,null,null,null,null,null,null,null,null,null,null,null,null,null,null,null,null,null,null,null,null,null,null,"",0]
[null,null,null,null,null,null,null,null,null,null,null,null,null,null,null,null,null,null,null,null,null,null,null,null,null,null,null,null,null,null,null,null,null,null,null,null,null,null,null,null,null,null,null,null,null,"",0]
[null,null,null,null,null,null,null,null,null,null,null,null,null,null,null,null,null,null,null,null,null,null,null,null,null,null,null,null,null,null,null,null,null,null,null,null,null,null,null,null,null,null,null,null,null,"",0]
[null,null,null,null,null,null,null,null,null,null,null,null,null,null,null,null,null,null,null,null,null,null,null,null,null,null,null,null,null,null,null,null,null,null,null,null,null,null,null,null,null,null,null,null,null,"",0]
[null,null,null,null,null,null,null,null,null,null,null,null,null,null,null,null,null,null,null,null,null,null,null,null,null,null,null,null,null,null,null,null,null,null,null,null,null,null,null,null,null,null,null,null,null,"",0]
[null,null,null,null,null,null,null,null,null,null,null,null,null,null,null,null,null,null,null,null,null,null,null,null,null,null,null,null,null,null,null,null,null,null,null,null,null,null,null,null,null,null,null,null,null,"",0]
[null,null,null,null,null,null,null,null,null,null,null,null,null,null,null,null,null,null,null,null,null,null,null,null,null,null,null,null,null,null,null,null,null,null,null,null,null,null,null,null,null,null,null,null,null,"",0]
[null,null,null,null,null,null,null,null,null,null,null,null,null,null,null,null,null,null,null,null,null,null,null,null,null,null,null,null,null,null,null,null,null,null,null,null,null,null,null,null,null,null,null,null,null,"",0]
[null,null,null,null,null,null,null,null,null,null,null,null,null,null,null,null,null,null,null,null,null,null,null,null,null,null,null,null,null,null,null,null,null,null,null,null,null,null,null,null,null,null,null,null,null,"",0]
[null,null,null,null,null,null,null,null,null,null,null,null,null,null,null,null,null,null,null,null,null,null,null,null,null,null,null,null,null,null,null,null,null,null,null,null,null,null,null,null,null,null,null,null,null,"",0]
[null,null,null,null,null,null,null,null,null,null,null,null,null,null,null,null,null,null,null,null,null,null,null,null,null,null,null,null,null,null,null,null,null,null,null,null,null,null,null,null,null,null,null,null,null,"",0]
[null,null,null,null,null,null,null,null,null,null,null,null,null,null,null,null,null,null,null,null,null,null,null,null,null,null,null,null,null,null,null,null,null,null,null,null,null,null,null,null,null,null,null,null,null,"",0]
[null,null,null,null,null,null,null,null,null,null,null,null,null,null,null,null,null,null,null,null,null,null,null,null,null,null,null,null,null,null,null,null,null,null,null,null,null,null,null,null,null,null,null,null,null,"",0]
[null,null,null,null,null,null,null,null,null,null,null,null,null,null,null,null,null,null,null,null,null,null,null,null,null,null,null,null,null,null,null,null,null,null,null,null,null,null,null,null,null,null,null,null,null,"",0]
[null,null,null,null,null,null,null,null,null,null,null,null,null,null,null,null,null,null,null,null,null,null,null,null,null,null,null,null,null,null,null,null,null,null,null,null,null,null,null,null,null,null,null,null,null,"",0]
[null,null,null,null,null,null,null,null,null,null,null,null,null,null,null,null,null,null,null,null,null,null,null,null,null,null,null,null,null,null,null,null,null,null,null,null,null,null,null,null,null,null,null,null,null,"",0]
[null,null,null,null,null,null,null,null,null,null,null,null,null,null,null,null,null,null,null,null,null,null,null,null,null,null,null,null,null,null,null,null,null,null,null,null,null,null,null,null,null,null,null,null,null,"",0]
[null,null,null,null,null,null,null,null,null,null,null,null,null,null,null,null,null,null,null,null,null,null,null,null,null,null,null,null,null,null,null,null,null,null,null,null,null,null,null,null,null,null,null,null,null,"",0]
[null,null,null,null,null,null,null,null,null,null,null,null,null,null,null,null,null,null,null,null,null,null,null,null,null,null,null,null,null,null,null,null,null,null,null,null,null,null,null,null,null,null,null,null,null,"",0]
[null,null,null,null,null,null,null,null,null,null,null,null,null,null,null,null,null,null,null,null,null,null,null,null,null,null,null,null,null,null,null,null,null,null,null,null,null,null,null,null,null,null,null,null,null,"",0]
[null,null,null,null,null,null,null,null,null,null,null,null,null,null,null,null,null,null,null,null,null,null,null,null,null,null,null,null,null,null,null,null,null,null,null,null,null,null,null,null,null,null,null,null,null,"",0]
[null,null,null,null,null,null,null,null,null,null,null,null,null,null,null,null,null,null,null,null,null,null,null,null,null,null,null,null,null,null,null,null,null,null,null,null,null,null,null,null,null,null,null,null,null,"",0]
[null,null,null,null,null,null,null,null,null,null,null,null,null,null,null,null,null,null,null,null,null,null,null,null,null,null,null,null,null,null,null,null,null,null,null,null,null,null,null,null,null,null,null,null,null,"",0]
[null,null,null,null,null,null,null,null,null,null,null,null,null,null,null,null,null,null,null,null,null,null,null,null,null,null,null,null,null,null,null,null,null,null,null,null,null,null,null,null,null,null,null,null,null,"",0]
[null,null,null,null,null,null,null,null,null,null,null,null,null,null,null,null,null,null,null,null,null,null,null,null,null,null,null,null,null,null,null,null,null,null,null,null,null,null,null,null,null,null,null,null,null,"",0]
[null,null,null,null,null,null,null,null,null,null,null,null,null,null,null,null,null,null,null,null,null,null,null,null,null,null,null,null,null,null,null,null,null,null,null,null,null,null,null,null,null,null,null,null,null,"",0]
[null,null,null,null,null,null,null,null,null,null,null,null,null,null,null,null,null,null,null,null,null,null,null,null,null,null,null,null,null,null,null,null,null,null,null,null,null,null,null,null,null,null,null,null,null,"",0]
[null,null,null,null,null,null,null,null,null,null,null,null,null,null,null,null,null,null,null,null,null,null,null,null,null,null,null,null,null,null,null,null,null,null,null,null,null,null,null,null,null,null,null,null,null,"",0]
[null,null,null,null,null,null,null,null,null,null,null,null,null,null,null,null,null,null,null,null,null,null,null,null,null,null,null,null,null,null,null,null,null,null,null,null,null,null,null,null,null,null,null,null,null,"",0]
[null,null,null,null,null,null,null,null,null,null,null,null,null,null,null,null,null,null,null,null,null,null,null,null,null,null,null,null,null,null,null,null,null,null,null,null,null,null,null,null,null,null,null,null,null,"",0]
[null,null,null,null,null,null,null,null,null,null,null,null,null,null,null,null,null,null,null,null,null,null,null,null,null,null,null,null,null,null,null,null,null,null,null,null,null,null,null,null,null,null,null,null,null,"",0]
[null,null,null,null,null,null,null,null,null,null,null,null,null,null,null,null,null,null,null,null,null,null,null,null,null,null,null,null,null,null,null,null,null,null,null,null,null,null,null,null,null,null,null,null,null,"",0]
[null,null,null,null,null,null,null,null,null,null,null,null,null,null,null,null,null,null,null,null,null,null,null,null,null,null,null,null,null,null,null,null,null,null,null,null,null,null,null,null,null,null,null,null,null,"",0]
[null,null,null,null,null,null,null,null,null,null,null,null,null,null,null,null,null,null,null,null,null,null,null,null,null,null,null,null,null,null,null,null,null,null,null,null,null,null,null,null,null,null,null,null,null,"",0]
[null,null,null,null,null,null,null,null,null,null,null,null,null,null,null,null,null,null,null,null,null,null,null,null,null,null,null,null,null,null,null,null,null,null,null,null,null,null,null,null,null,null,null,null,null,"",0]
[null,null,null,null,null,null,null,null,null,null,null,null,null,null,null,null,null,null,null,null,null,null,null,null,null,null,null,null,null,null,null,null,null,null,null,null,null,null,null,null,null,null,null,null,null,"",0]
[null,null,null,null,null,null,null,null,null,null,null,null,null,null,null,null,null,null,null,null,null,null,null,null,null,null,null,null,null,null,null,null,null,null,null,null,null,null,null,null,null,null,null,null,null,"",0]
[null,null,null,null,null,null,null,null,null,null,null,null,null,null,null,null,null,null,null,null,null,null,null,null,null,null,null,null,null,null,null,null,null,null,null,null,null,null,null,null,null,null,null,null,null,"",0]
[null,null,null,null,null,null,null,null,null,null,null,null,null,null,null,null,null,null,null,null,null,null,null,null,null,null,null,null,null,null,null,null,null,null,null,null,null,null,null,null,null,null,null,null,null,"",0]
[null,null,null,null,null,null,null,null,null,null,null,null,null,null,null,null,null,null,null,null,null,null,null,null,null,null,null,null,null,null,null,null,null,null,null,null,null,null,null,null,null,null,null,null,null,"",0]
[null,null,null,null,null,null,null,null,null,null,null,null,null,null,null,null,null,null,null,null,null,null,null,null,null,null,null,null,null,null,null,null,null,null,null,null,null,null,null,null,null,null,null,null,null,"",0]
[null,null,null,null,null,null,null,null,null,null,null,null,null,null,null,null,null,null,null,null,null,null,null,null,null,null,null,null,null,null,null,null,null,null,null,null,null,null,null,null,null,null,null,null,null,"",0]
[null,null,null,null,null,null,null,null,null,null,null,null,null,null,null,null,null,null,null,null,null,null,null,null,null,null,null,null,null,null,null,null,null,null,null,null,null,null,null,null,null,null,null,null,null,"",0]
[null,null,null,null,null,null,null,null,null,null,null,null,null,null,null,null,null,null,null,null,null,null,null,null,null,null,null,null,null,null,null,null,null,null,null,null,null,null,null,null,null,null,null,null,null,"",0]
[null,null,null,null,null,null,null,null,null,null,null,null,null,null,null,null,null,null,null,null,null,null,null,null,null,null,null,null,null,null,null,null,null,null,null,null,null,null,null,null,null,null,null,null,null,"",0]
[null,null,null,null,null,null,null,null,null,null,null,null,null,null,null,null,null,null,null,null,null,null,null,null,null,null,null,null,null,null,null,null,null,null,null,null,null,null,null,null,null,null,null,null,null,"",0]
[null,null,null,null,null,null,null,null,null,null,null,null,null,null,null,null,null,null,null,null,null,null,null,null,null,null,null,null,null,null,null,null,null,null,null,null,null,null,null,null,null,null,null,null,null,"",0]
[null,null,null,null,null,null,null,null,null,null,null,null,null,null,null,null,null,null,null,null,null,null,null,null,null,null,null,null,null,null,null,null,null,null,null,null,null,null,null,null,null,null,null,null,null,"",0]
[null,null,null,null,null,null,null,null,null,null,null,null,null,null,null,null,null,null,null,null,null,null,null,null,null,null,null,null,null,null,null,null,null,null,null,null,null,null,null,null,null,null,null,null,null,"",0]
[null,null,null,null,null,null,null,null,null,null,null,null,null,null,null,null,null,null,null,null,null,null,null,null,null,null,null,null,null,null,null,null,null,null,null,null,null,null,null,null,null,null,null,null,null,"",0]
[null,null,null,null,null,null,null,null,null,null,null,null,null,null,null,null,null,null,null,null,null,null,null,null,null,null,null,null,null,null,null,null,null,null,null,null,null,null,null,null,null,null,null,null,null,"",0]
[null,null,null,null,null,null,null,null,null,null,null,null,null,null,null,null,null,null,null,null,null,null,null,null,null,null,null,null,null,null,null,null,null,null,null,null,null,null,null,null,null,null,null,null,null,"",0]
[null,null,null,null,null,null,null,null,null,null,null,null,null,null,null,null,null,null,null,null,null,null,null,null,null,null,null,null,null,null,null,null,null,null,null,null,null,null,null,null,null,null,null,null,null,"",0]
[null,null,null,null,null,null,null,null,null,null,null,null,null,null,null,null,null,null,null,null,null,null,null,null,null,null,null,null,null,null,null,null,null,null,null,null,null,null,null,null,null,null,null,null,null,"",0]
[null,null,null,null,null,null,null,null,null,null,null,null,null,null,null,null,null,null,null,null,null,null,null,null,null,null,null,null,null,null,null,null,null,null,null,null,null,null,null,null,null,null,null,null,null,"",0]
[null,null,null,null,null,null,null,null,null,null,null,null,null,null,null,null,null,null,null,null,null,null,null,null,null,null,null,null,null,null,null,null,null,null,null,null,null,null,null,null,null,null,null,null,null,"",0]
[null,null,null,null,null,null,null,null,null,null,null,null,null,null,null,null,null,null,null,null,null,null,null,null,null,null,null,null,null,null,null,null,null,null,null,null,null,null,null,null,null,null,null,null,null,"",0]
[null,null,null,null,null,null,null,null,null,null,null,null,null,null,null,null,null,null,null,null,null,null,null,null,null,null,null,null,null,null,null,null,null,null,null,null,null,null,null,null,null,null,null,null,null,"",0]
[null,null,null,null,null,null,null,null,null,null,null,null,null,null,null,null,null,null,null,null,null,null,null,null,null,null,null,null,null,null,null,null,null,null,null,null,null,null,null,null,null,null,null,null,null,"",0]
[null,null,null,null,null,null,null,null,null,null,null,null,null,null,null,null,null,null,null,null,null,null,null,null,null,null,null,null,null,null,null,null,null,null,null,null,null,null,null,null,null,null,null,null,null,"",0]
[null,null,null,null,null,null,null,null,null,null,null,null,null,null,null,null,null,null,null,null,null,null,null,null,null,null,null,null,null,null,null,null,null,null,null,null,null,null,null,null,null,null,null,null,null,"",0]
[null,null,null,null,null,null,null,null,null,null,null,null,null,null,null,null,null,null,null,null,null,null,null,null,null,null,null,null,null,null,null,null,null,null,null,null,null,null,null,null,null,null,null,null,null,"",0]
[null,null,null,null,null,null,null,null,null,null,null,null,null,null,null,null,null,null,null,null,null,null,null,null,null,null,null,null,null,null,null,null,null,null,null,null,null,null,null,null,null,null,null,null,null,"",0]
[null,null,null,null,null,null,null,null,null,null,null,null,null,null,null,null,null,null,null,null,null,null,null,null,null,null,null,null,null,null,null,null,null,null,null,null,null,null,null,null,null,null,null,null,null,"",0]
[null,null,null,null,null,null,null,null,null,null,null,null,null,null,null,null,null,null,null,null,null,null,null,null,null,null,null,null,null,null,null,null,null,null,null,null,null,null,null,null,null,null,null,null,null,"",0]
[null,null,null,null,null,null,null,null,null,null,null,null,null,null,null,null,null,null,null,null,null,null,null,null,null,null,null,null,null,null,null,null,null,null,null,null,null,null,null,null,null,null,null,null,null,"",0]
[null,null,null,null,null,null,null,null,null,null,null,null,null,null,null,null,null,null,null,null,null,null,null,null,null,null,null,null,null,null,null,null,null,null,null,null,null,null,null,null,null,null,null,null,null,"",0]
[null,null,null,null,null,null,null,null,null,null,null,null,null,null,null,null,null,null,null,null,null,null,null,null,null,null,null,null,null,null,null,null,null,null,null,null,null,null,null,null,null,null,null,null,null,"",0]
[null,null,null,null,null,null,null,null,null,null,null,null,null,null,null,null,null,null,null,null,null,null,null,null,null,null,null,null,null,null,null,null,null,null,null,null,null,null,null,null,null,null,null,null,null,"",0]
[null,null,null,null,null,null,null,null,null,null,null,null,null,null,null,null,null,null,null,null,null,null,null,null,null,null,null,null,null,null,null,null,null,null,null,null,null,null,null,null,null,null,null,null,null,"",0]
[null,null,null,null,null,null,null,null,null,null,null,null,null,null,null,null,null,null,null,null,null,null,null,null,null,null,null,null,null,null,null,null,null,null,null,null,null,null,null,null,null,null,null,null,null,{"$f":"IF(OR(MID(H8518,1,1)=\"N\",MID(H8518,1,1)=\"Q\"),MID(H8518,1,1),\"\")","v":""},{"$f":"IF(OR(MID(H8518,1,1)=\"N\",MID(H8518,1,1)=\"Q\"),INT(MID(H8518,2,2)),H8518)","v":0}]
[null,null,null,null,null,null,null,null,null,null,null,null,null,null,null,null,null,null,null,null,null,null,null,null,null,null,null,null,null,null,null,null,null,null,null,null,null,null,null,null,null,null,null,null,null,"",0]
[null,null,null,null,null,null,null,null,null,null,null,null,null,null,null,null,null,null,null,null,null,null,null,null,null,null,null,null,null,null,null,null,null,null,null,null,null,null,null,null,null,null,null,null,null,"",0]
[null,null,null,null,null,null,null,null,null,null,null,null,null,null,null,null,null,null,null,null,null,null,null,null,null,null,null,null,null,null,null,null,null,null,null,null,null,null,null,null,null,null,null,null,null,"",0]
[null,null,null,null,null,null,null,null,null,null,null,null,null,null,null,null,null,null,null,null,null,null,null,null,null,null,null,null,null,null,null,null,null,null,null,null,null,null,null,null,null,null,null,null,null,"",0]
[null,null,null,null,null,null,null,null,null,null,null,null,null,null,null,null,null,null,null,null,null,null,null,null,null,null,null,null,null,null,null,null,null,null,null,null,null,null,null,null,null,null,null,null,null,"",0]
[null,null,null,null,null,null,null,null,null,null,null,null,null,null,null,null,null,null,null,null,null,null,null,null,null,null,null,null,null,null,null,null,null,null,null,null,null,null,null,null,null,null,null,null,null,"",0]
[null,null,null,null,null,null,null,null,null,null,null,null,null,null,null,null,null,null,null,null,null,null,null,null,null,null,null,null,null,null,null,null,null,null,null,null,null,null,null,null,null,null,null,null,null,"",0]
[null,null,null,null,null,null,null,null,null,null,null,null,null,null,null,null,null,null,null,null,null,null,null,null,null,null,null,null,null,null,null,null,null,null,null,null,null,null,null,null,null,null,null,null,null,"",0]
[null,null,null,null,null,null,null,null,null,null,null,null,null,null,null,null,null,null,null,null,null,null,null,null,null,null,null,null,null,null,null,null,null,null,null,null,null,null,null,null,null,null,null,null,null,"",0]
[null,null,null,null,null,null,null,null,null,null,null,null,null,null,null,null,null,null,null,null,null,null,null,null,null,null,null,null,null,null,null,null,null,null,null,null,null,null,null,null,null,null,null,null,null,"",0]
[null,null,null,null,null,null,null,null,null,null,null,null,null,null,null,null,null,null,null,null,null,null,null,null,null,null,null,null,null,null,null,null,null,null,null,null,null,null,null,null,null,null,null,null,null,"",0]
[null,null,null,null,null,null,null,null,null,null,null,null,null,null,null,null,null,null,null,null,null,null,null,null,null,null,null,null,null,null,null,null,null,null,null,null,null,null,null,null,null,null,null,null,null,"",0]
[null,null,null,null,null,null,null,null,null,null,null,null,null,null,null,null,null,null,null,null,null,null,null,null,null,null,null,null,null,null,null,null,null,null,null,null,null,null,null,null,null,null,null,null,null,"",0]
[null,null,null,null,null,null,null,null,null,null,null,null,null,null,null,null,null,null,null,null,null,null,null,null,null,null,null,null,null,null,null,null,null,null,null,null,null,null,null,null,null,null,null,null,null,"",0]
[null,null,null,null,null,null,null,null,null,null,null,null,null,null,null,null,null,null,null,null,null,null,null,null,null,null,null,null,null,null,null,null,null,null,null,null,null,null,null,null,null,null,null,null,null,"",0]
[null,null,null,null,null,null,null,null,null,null,null,null,null,null,null,null,null,null,null,null,null,null,null,null,null,null,null,null,null,null,null,null,null,null,null,null,null,null,null,null,null,null,null,null,null,"",0]
[null,null,null,null,null,null,null,null,null,null,null,null,null,null,null,null,null,null,null,null,null,null,null,null,null,null,null,null,null,null,null,null,null,null,null,null,null,null,null,null,null,null,null,null,null,"",0]
[null,null,null,null,null,null,null,null,null,null,null,null,null,null,null,null,null,null,null,null,null,null,null,null,null,null,null,null,null,null,null,null,null,null,null,null,null,null,null,null,null,null,null,null,null,{"$f":"IF(OR(MID(H8902,1,1)=\"N\",MID(H8902,1,1)=\"Q\"),MID(H8902,1,1),\"\")","v":""},{"$f":"IF(OR(MID(H8902,1,1)=\"N\",MID(H8902,1,1)=\"Q\"),INT(MID(H8902,2,2)),H8902)","v":0}]
[null,null,null,null,null,null,null,null,null,null,null,null,null,null,null,null,null,null,null,null,null,null,null,null,null,null,null,null,null,null,null,null,null,null,null,null,null,null,null,null,null,null,null,null,null,"",0]
[null,null,null,null,null,null,null,null,null,null,null,null,null,null,null,null,null,null,null,null,null,null,null,null,null,null,null,null,null,null,null,null,null,null,null,null,null,null,null,null,null,null,null,null,null,"",0]
[null,null,null,null,null,null,null,null,null,null,null,null,null,null,null,null,null,null,null,null,null,null,null,null,null,null,null,null,null,null,null,null,null,null,null,null,null,null,null,null,null,null,null,null,null,"",0]
[null,null,null,null,null,null,null,null,null,null,null,null,null,null,null,null,null,null,null,null,null,null,null,null,null,null,null,null,null,null,null,null,null,null,null,null,null,null,null,null,null,null,null,null,null,"",0]
[null,null,null,null,null,null,null,null,null,null,null,null,null,null,null,null,null,null,null,null,null,null,null,null,null,null,null,null,null,null,null,null,null,null,null,null,null,null,null,null,null,null,null,null,null,"",0]
[null,null,null,null,null,null,null,null,null,null,null,null,null,null,null,null,null,null,null,null,null,null,null,null,null,null,null,null,null,null,null,null,null,null,null,null,null,null,null,null,null,null,null,null,null,"",0]
[null,null,null,null,null,null,null,null,null,null,null,null,null,null,null,null,null,null,null,null,null,null,null,null,null,null,null,null,null,null,null,null,null,null,null,null,null,null,null,null,null,null,null,null,null,"",0]
[null,null,null,null,null,null,null,null,null,null,null,null,null,null,null,null,null,null,null,null,null,null,null,null,null,null,null,null,null,null,null,null,null,null,null,null,null,null,null,null,null,null,null,null,null,"",0]
[null,null,null,null,null,null,null,null,null,null,null,null,null,null,null,null,null,null,null,null,null,null,null,null,null,null,null,null,null,null,null,null,null,null,null,null,null,null,null,null,null,null,null,null,null,"",0]
[null,null,null,null,null,null,null,null,null,null,null,null,null,null,null,null,null,null,null,null,null,null,null,null,null,null,null,null,null,null,null,null,null,null,null,null,null,null,null,null,null,null,null,null,null,"",0]
[null,null,null,null,null,null,null,null,null,null,null,null,null,null,null,null,null,null,null,null,null,null,null,null,null,null,null,null,null,null,null,null,null,null,null,null,null,null,null,null,null,null,null,null,null,"",0]
[null,null,null,null,null,null,null,null,null,null,null,null,null,null,null,null,null,null,null,null,null,null,null,null,null,null,null,null,null,null,null,null,null,null,null,null,null,null,null,null,null,null,null,null,null,"",0]
[null,null,null,null,null,null,null,null,null,null,null,null,null,null,null,null,null,null,null,null,null,null,null,null,null,null,null,null,null,null,null,null,null,null,null,null,null,null,null,null,null,null,null,null,null,"",0]
[null,null,null,null,null,null,null,null,null,null,null,null,null,null,null,null,null,null,null,null,null,null,null,null,null,null,null,null,null,null,null,null,null,null,null,null,null,null,null,null,null,null,null,null,null,"",0]
[null,null,null,null,null,null,null,null,null,null,null,null,null,null,null,null,null,null,null,null,null,null,null,null,null,null,null,null,null,null,null,null,null,null,null,null,null,null,null,null,null,null,null,null,null,"",0]
[null,null,null,null,null,null,null,null,null,null,null,null,null,null,null,null,null,null,null,null,null,null,null,null,null,null,null,null,null,null,null,null,null,null,null,null,null,null,null,null,null,null,null,null,null,"",0]
[null,null,null,null,null,null,null,null,null,null,null,null,null,null,null,null,null,null,null,null,null,null,null,null,null,null,null,null,null,null,null,null,null,null,null,null,null,null,null,null,null,null,null,null,null,"",0]
[null,null,null,null,null,null,null,null,null,null,null,null,null,null,null,null,null,null,null,null,null,null,null,null,null,null,null,null,null,null,null,null,null,null,null,null,null,null,null,null,null,null,null,null,null,"",0]
[null,null,null,null,null,null,null,null,null,null,null,null,null,null,null,null,null,null,null,null,null,null,null,null,null,null,null,null,null,null,null,null,null,null,null,null,null,null,null,null,null,null,null,null,null,"",0]
[null,null,null,null,null,null,null,null,null,null,null,null,null,null,null,null,null,null,null,null,null,null,null,null,null,null,null,null,null,null,null,null,null,null,null,null,null,null,null,null,null,null,null,null,null,"",0]
[null,null,null,null,null,null,null,null,null,null,null,null,null,null,null,null,null,null,null,null,null,null,null,null,null,null,null,null,null,null,null,null,null,null,null,null,null,null,null,null,null,null,null,null,null,"",0]
[null,null,null,null,null,null,null,null,null,null,null,null,null,null,null,null,null,null,null,null,null,null,null,null,null,null,null,null,null,null,null,null,null,null,null,null,null,null,null,null,null,null,null,null,null,"",0]
[null,null,null,null,null,null,null,null,null,null,null,null,null,null,null,null,null,null,null,null,null,null,null,null,null,null,null,null,null,null,null,null,null,null,null,null,null,null,null,null,null,null,null,null,null,"",0]
[null,null,null,null,null,null,null,null,null,null,null,null,null,null,null,null,null,null,null,null,null,null,null,null,null,null,null,null,null,null,null,null,null,null,null,null,null,null,null,null,null,null,null,null,null,"",0]
[null,null,null,null,null,null,null,null,null,null,null,null,null,null,null,null,null,null,null,null,null,null,null,null,null,null,null,null,null,null,null,null,null,null,null,null,null,null,null,null,null,null,null,null,null,"",0]
[null,null,null,null,null,null,null,null,null,null,null,null,null,null,null,null,null,null,null,null,null,null,null,null,null,null,null,null,null,null,null,null,null,null,null,null,null,null,null,null,null,null,null,null,null,"",0]
[null,null,null,null,null,null,null,null,null,null,null,null,null,null,null,null,null,null,null,null,null,null,null,null,null,null,null,null,null,null,null,null,null,null,null,null,null,null,null,null,null,null,null,null,null,"",0]
[null,null,null,null,null,null,null,null,null,null,null,null,null,null,null,null,null,null,null,null,null,null,null,null,null,null,null,null,null,null,null,null,null,null,null,null,null,null,null,null,null,null,null,null,null,"",0]
[null,null,null,null,null,null,null,null,null,null,null,null,null,null,null,null,null,null,null,null,null,null,null,null,null,null,null,null,null,null,null,null,null,null,null,null,null,null,null,null,null,null,null,null,null,"",0]
[null,null,null,null,null,null,null,null,null,null,null,null,null,null,null,null,null,null,null,null,null,null,null,null,null,null,null,null,null,null,null,null,null,null,null,null,null,null,null,null,null,null,null,null,null,"",0]
[null,null,null,null,null,null,null,null,null,null,null,null,null,null,null,null,null,null,null,null,null,null,null,null,null,null,null,null,null,null,null,null,null,null,null,null,null,null,null,null,null,null,null,null,null,"",0]
[null,null,null,null,null,null,null,null,null,null,null,null,null,null,null,null,null,null,null,null,null,null,null,null,null,null,null,null,null,null,null,null,null,null,null,null,null,null,null,null,null,null,null,null,null,"",0]
[null,null,null,null,null,null,null,null,null,null,null,null,null,null,null,null,null,null,null,null,null,null,null,null,null,null,null,null,null,null,null,null,null,null,null,null,null,null,null,null,null,null,null,null,null,"",0]
[null,null,null,null,null,null,null,null,null,null,null,null,null,null,null,null,null,null,null,null,null,null,null,null,null,null,null,null,null,null,null,null,null,null,null,null,null,null,null,null,null,null,null,null,null,"",0]
[null,null,null,null,null,null,null,null,null,null,null,null,null,null,null,null,null,null,null,null,null,null,null,null,null,null,null,null,null,null,null,null,null,null,null,null,null,null,null,null,null,null,null,null,null,"",0]
[null,null,null,null,null,null,null,null,null,null,null,null,null,null,null,null,null,null,null,null,null,null,null,null,null,null,null,null,null,null,null,null,null,null,null,null,null,null,null,null,null,null,null,null,null,"",0]
[null,null,null,null,null,null,null,null,null,null,null,null,null,null,null,null,null,null,null,null,null,null,null,null,null,null,null,null,null,null,null,null,null,null,null,null,null,null,null,null,null,null,null,null,null,"",0]
[null,null,null,null,null,null,null,null,null,null,null,null,null,null,null,null,null,null,null,null,null,null,null,null,null,null,null,null,null,null,null,null,null,null,null,null,null,null,null,null,null,null,null,null,null,"",0]
[null,null,null,null,null,null,null,null,null,null,null,null,null,null,null,null,null,null,null,null,null,null,null,null,null,null,null,null,null,null,null,null,null,null,null,null,null,null,null,null,null,null,null,null,null,"",0]
[null,null,null,null,null,null,null,null,null,null,null,null,null,null,null,null,null,null,null,null,null,null,null,null,null,null,null,null,null,null,null,null,null,null,null,null,null,null,null,null,null,null,null,null,null,"",0]
[null,null,null,null,null,null,null,null,null,null,null,null,null,null,null,null,null,null,null,null,null,null,null,null,null,null,null,null,null,null,null,null,null,null,null,null,null,null,null,null,null,null,null,null,null,"",0]
[null,null,null,null,null,null,null,null,null,null,null,null,null,null,null,null,null,null,null,null,null,null,null,null,null,null,null,null,null,null,null,null,null,null,null,null,null,null,null,null,null,null,null,null,null,"",0]
[null,null,null,null,null,null,null,null,null,null,null,null,null,null,null,null,null,null,null,null,null,null,null,null,null,null,null,null,null,null,null,null,null,null,null,null,null,null,null,null,null,null,null,null,null,"",0]
[null,null,null,null,null,null,null,null,null,null,null,null,null,null,null,null,null,null,null,null,null,null,null,null,null,null,null,null,null,null,null,null,null,null,null,null,null,null,null,null,null,null,null,null,null,"",0]
[null,null,null,null,null,null,null,null,null,null,null,null,null,null,null,null,null,null,null,null,null,null,null,null,null,null,null,null,null,null,null,null,null,null,null,null,null,null,null,null,null,null,null,null,null,"",0]
[null,null,null,null,null,null,null,null,null,null,null,null,null,null,null,null,null,null,null,null,null,null,null,null,null,null,null,null,null,null,null,null,null,null,null,null,null,null,null,null,null,null,null,null,null,"",0]
[null,null,null,null,null,null,null,null,null,null,null,null,null,null,null,null,null,null,null,null,null,null,null,null,null,null,null,null,null,null,null,null,null,null,null,null,null,null,null,null,null,null,null,null,null,"",0]
[null,null,null,null,null,null,null,null,null,null,null,null,null,null,null,null,null,null,null,null,null,null,null,null,null,null,null,null,null,null,null,null,null,null,null,null,null,null,null,null,null,null,null,null,null,"",0]
[null,null,null,null,null,null,null,null,null,null,null,null,null,null,null,null,null,null,null,null,null,null,null,null,null,null,null,null,null,null,null,null,null,null,null,null,null,null,null,null,null,null,null,null,null,"",0]
[null,null,null,null,null,null,null,null,null,null,null,null,null,null,null,null,null,null,null,null,null,null,null,null,null,null,null,null,null,null,null,null,null,null,null,null,null,null,null,null,null,null,null,null,null,"",0]
[null,null,null,null,null,null,null,null,null,null,null,null,null,null,null,null,null,null,null,null,null,null,null,null,null,null,null,null,null,null,null,null,null,null,null,null,null,null,null,null,null,null,null,null,null,"",0]
[null,null,null,null,null,null,null,null,null,null,null,null,null,null,null,null,null,null,null,null,null,null,null,null,null,null,null,null,null,null,null,null,null,null,null,null,null,null,null,null,null,null,null,null,null,"",0]
[null,null,null,null,null,null,null,null,null,null,null,null,null,null,null,null,null,null,null,null,null,null,null,null,null,null,null,null,null,null,null,null,null,null,null,null,null,null,null,null,null,null,null,null,null,"",0]
[null,null,null,null,null,null,null,null,null,null,null,null,null,null,null,null,null,null,null,null,null,null,null,null,null,null,null,null,null,null,null,null,null,null,null,null,null,null,null,null,null,null,null,null,null,"",0]
[null,null,null,null,null,null,null,null,null,null,null,null,null,null,null,null,null,null,null,null,null,null,null,null,null,null,null,null,null,null,null,null,null,null,null,null,null,null,null,null,null,null,null,null,null,"",0]
[null,null,null,null,null,null,null,null,null,null,null,null,null,null,null,null,null,null,null,null,null,null,null,null,null,null,null,null,null,null,null,null,null,null,null,null,null,null,null,null,null,null,null,null,null,"",0]
[null,null,null,null,null,null,null,null,null,null,null,null,null,null,null,null,null,null,null,null,null,null,null,null,null,null,null,null,null,null,null,null,null,null,null,null,null,null,null,null,null,null,null,null,null,"",0]
[null,null,null,null,null,null,null,null,null,null,null,null,null,null,null,null,null,null,null,null,null,null,null,null,null,null,null,null,null,null,null,null,null,null,null,null,null,null,null,null,null,null,null,null,null,"",0]
[null,null,null,null,null,null,null,null,null,null,null,null,null,null,null,null,null,null,null,null,null,null,null,null,null,null,null,null,null,null,null,null,null,null,null,null,null,null,null,null,null,null,null,null,null,"",0]
[null,null,null,null,null,null,null,null,null,null,null,null,null,null,null,null,null,null,null,null,null,null,null,null,null,null,null,null,null,null,null,null,null,null,null,null,null,null,null,null,null,null,null,null,null,"",0]
[null,null,null,null,null,null,null,null,null,null,null,null,null,null,null,null,null,null,null,null,null,null,null,null,null,null,null,null,null,null,null,null,null,null,null,null,null,null,null,null,null,null,null,null,null,"",0]
[null,null,null,null,null,null,null,null,null,null,null,null,null,null,null,null,null,null,null,null,null,null,null,null,null,null,null,null,null,null,null,null,null,null,null,null,null,null,null,null,null,null,null,null,null,"",0]
[null,null,null,null,null,null,null,null,null,null,null,null,null,null,null,null,null,null,null,null,null,null,null,null,null,null,null,null,null,null,null,null,null,null,null,null,null,null,null,null,null,null,null,null,null,"",0]
[null,null,null,null,null,null,null,null,null,null,null,null,null,null,null,null,null,null,null,null,null,null,null,null,null,null,null,null,null,null,null,null,null,null,null,null,null,null,null,null,null,null,null,null,null,"",0]
[null,null,null,null,null,null,null,null,null,null,null,null,null,null,null,null,null,null,null,null,null,null,null,null,null,null,null,null,null,null,null,null,null,null,null,null,null,null,null,null,null,null,null,null,null,"",0]
[null,null,null,null,null,null,null,null,null,null,null,null,null,null,null,null,null,null,null,null,null,null,null,null,null,null,null,null,null,null,null,null,null,null,null,null,null,null,null,null,null,null,null,null,null,"",0]
[null,null,null,null,null,null,null,null,null,null,null,null,null,null,null,null,null,null,null,null,null,null,null,null,null,null,null,null,null,null,null,null,null,null,null,null,null,null,null,null,null,null,null,null,null,"",0]
[null,null,null,null,null,null,null,null,null,null,null,null,null,null,null,null,null,null,null,null,null,null,null,null,null,null,null,null,null,null,null,null,null,null,null,null,null,null,null,null,null,null,null,null,null,"",0]
[null,null,null,null,null,null,null,null,null,null,null,null,null,null,null,null,null,null,null,null,null,null,null,null,null,null,null,null,null,null,null,null,null,null,null,null,null,null,null,null,null,null,null,null,null,"",0]
[null,null,null,null,null,null,null,null,null,null,null,null,null,null,null,null,null,null,null,null,null,null,null,null,null,null,null,null,null,null,null,null,null,null,null,null,null,null,null,null,null,null,null,null,null,"",0]
[null,null,null,null,null,null,null,null,null,null,null,null,null,null,null,null,null,null,null,null,null,null,null,null,null,null,null,null,null,null,null,null,null,null,null,null,null,null,null,null,null,null,null,null,null,"",0]
[null,null,null,null,null,null,null,null,null,null,null,null,null,null,null,null,null,null,null,null,null,null,null,null,null,null,null,null,null,null,null,null,null,null,null,null,null,null,null,null,null,null,null,null,null,"",0]
[null,null,null,null,null,null,null,null,null,null,null,null,null,null,null,null,null,null,null,null,null,null,null,null,null,null,null,null,null,null,null,null,null,null,null,null,null,null,null,null,null,null,null,null,null,"",0]
[null,null,null,null,null,null,null,null,null,null,null,null,null,null,null,null,null,null,null,null,null,null,null,null,null,null,null,null,null,null,null,null,null,null,null,null,null,null,null,null,null,null,null,null,null,"",0]
[null,null,null,null,null,null,null,null,null,null,null,null,null,null,null,null,null,null,null,null,null,null,null,null,null,null,null,null,null,null,null,null,null,null,null,null,null,null,null,null,null,null,null,null,null,"",0]
[null,null,null,null,null,null,null,null,null,null,null,null,null,null,null,null,null,null,null,null,null,null,null,null,null,null,null,null,null,null,null,null,null,null,null,null,null,null,null,null,null,null,null,null,null,"",0]
[null,null,null,null,null,null,null,null,null,null,null,null,null,null,null,null,null,null,null,null,null,null,null,null,null,null,null,null,null,null,null,null,null,null,null,null,null,null,null,null,null,null,null,null,null,"",0]
[null,null,null,null,null,null,null,null,null,null,null,null,null,null,null,null,null,null,null,null,null,null,null,null,null,null,null,null,null,null,null,null,null,null,null,null,null,null,null,null,null,null,null,null,null,"",0]
[null,null,null,null,null,null,null,null,null,null,null,null,null,null,null,null,null,null,null,null,null,null,null,null,null,null,null,null,null,null,null,null,null,null,null,null,null,null,null,null,null,null,null,null,null,"",0]
[null,null,null,null,null,null,null,null,null,null,null,null,null,null,null,null,null,null,null,null,null,null,null,null,null,null,null,null,null,null,null,null,null,null,null,null,null,null,null,null,null,null,null,null,null,"",0]
[null,null,null,null,null,null,null,null,null,null,null,null,null,null,null,null,null,null,null,null,null,null,null,null,null,null,null,null,null,null,null,null,null,null,null,null,null,null,null,null,null,null,null,null,null,"",0]
[null,null,null,null,null,null,null,null,null,null,null,null,null,null,null,null,null,null,null,null,null,null,null,null,null,null,null,null,null,null,null,null,null,null,null,null,null,null,null,null,null,null,null,null,null,"",0]
[null,null,null,null,null,null,null,null,null,null,null,null,null,null,null,null,null,null,null,null,null,null,null,null,null,null,null,null,null,null,null,null,null,null,null,null,null,null,null,null,null,null,null,null,null,"",0]
[null,null,null,null,null,null,null,null,null,null,null,null,null,null,null,null,null,null,null,null,null,null,null,null,null,null,null,null,null,null,null,null,null,null,null,null,null,null,null,null,null,null,null,null,null,"",0]
[null,null,null,null,null,null,null,null,null,null,null,null,null,null,null,null,null,null,null,null,null,null,null,null,null,null,null,null,null,null,null,null,null,null,null,null,null,null,null,null,null,null,null,null,null,"",0]
[null,null,null,null,null,null,null,null,null,null,null,null,null,null,null,null,null,null,null,null,null,null,null,null,null,null,null,null,null,null,null,null,null,null,null,null,null,null,null,null,null,null,null,null,null,"",0]
[null,null,null,null,null,null,null,null,null,null,null,null,null,null,null,null,null,null,null,null,null,null,null,null,null,null,null,null,null,null,null,null,null,null,null,null,null,null,null,null,null,null,null,null,null,"",0]
[null,null,null,null,null,null,null,null,null,null,null,null,null,null,null,null,null,null,null,null,null,null,null,null,null,null,null,null,null,null,null,null,null,null,null,null,null,null,null,null,null,null,null,null,null,"",0]
[null,null,null,null,null,null,null,null,null,null,null,null,null,null,null,null,null,null,null,null,null,null,null,null,null,null,null,null,null,null,null,null,null,null,null,null,null,null,null,null,null,null,null,null,null,"",0]
[null,null,null,null,null,null,null,null,null,null,null,null,null,null,null,null,null,null,null,null,null,null,null,null,null,null,null,null,null,null,null,null,null,null,null,null,null,null,null,null,null,null,null,null,null,"",0]
[null,null,null,null,null,null,null,null,null,null,null,null,null,null,null,null,null,null,null,null,null,null,null,null,null,null,null,null,null,null,null,null,null,null,null,null,null,null,null,null,null,null,null,null,null,"",0]
[null,null,null,null,null,null,null,null,null,null,null,null,null,null,null,null,null,null,null,null,null,null,null,null,null,null,null,null,null,null,null,null,null,null,null,null,null,null,null,null,null,null,null,null,null,"",0]
[null,null,null,null,null,null,null,null,null,null,null,null,null,null,null,null,null,null,null,null,null,null,null,null,null,null,null,null,null,null,null,null,null,null,null,null,null,null,null,null,null,null,null,null,null,"",0]
[null,null,null,null,null,null,null,null,null,null,null,null,null,null,null,null,null,null,null,null,null,null,null,null,null,null,null,null,null,null,null,null,null,null,null,null,null,null,null,null,null,null,null,null,null,"",0]
[null,null,null,null,null,null,null,null,null,null,null,null,null,null,null,null,null,null,null,null,null,null,null,null,null,null,null,null,null,null,null,null,null,null,null,null,null,null,null,null,null,null,null,null,null,"",0]
[null,null,null,null,null,null,null,null,null,null,null,null,null,null,null,null,null,null,null,null,null,null,null,null,null,null,null,null,null,null,null,null,null,null,null,null,null,null,null,null,null,null,null,null,null,"",0]
[null,null,null,null,null,null,null,null,null,null,null,null,null,null,null,null,null,null,null,null,null,null,null,null,null,null,null,null,null,null,null,null,null,null,null,null,null,null,null,null,null,null,null,null,null,"",0]
[null,null,null,null,null,null,null,null,null,null,null,null,null,null,null,null,null,null,null,null,null,null,null,null,null,null,null,null,null,null,null,null,null,null,null,null,null,null,null,null,null,null,null,null,null,"",0]
[null,null,null,null,null,null,null,null,null,null,null,null,null,null,null,null,null,null,null,null,null,null,null,null,null,null,null,null,null,null,null,null,null,null,null,null,null,null,null,null,null,null,null,null,null,"",0]
[null,null,null,null,null,null,null,null,null,null,null,null,null,null,null,null,null,null,null,null,null,null,null,null,null,null,null,null,null,null,null,null,null,null,null,null,null,null,null,null,null,null,null,null,null,"",0]
[null,null,null,null,null,null,null,null,null,null,null,null,null,null,null,null,null,null,null,null,null,null,null,null,null,null,null,null,null,null,null,null,null,null,null,null,null,null,null,null,null,null,null,null,null,"",0]
[null,null,null,null,null,null,null,null,null,null,null,null,null,null,null,null,null,null,null,null,null,null,null,null,null,null,null,null,null,null,null,null,null,null,null,null,null,null,null,null,null,null,null,null,null,"",0]
[null,null,null,null,null,null,null,null,null,null,null,null,null,null,null,null,null,null,null,null,null,null,null,null,null,null,null,null,null,null,null,null,null,null,null,null,null,null,null,null,null,null,null,null,null,"",0]
[null,null,null,null,null,null,null,null,null,null,null,null,null,null,null,null,null,null,null,null,null,null,null,null,null,null,null,null,null,null,null,null,null,null,null,null,null,null,null,null,null,null,null,null,null,"",0]
[null,null,null,null,null,null,null,null,null,null,null,null,null,null,null,null,null,null,null,null,null,null,null,null,null,null,null,null,null,null,null,null,null,null,null,null,null,null,null,null,null,null,null,null,null,"",0]
[null,null,null,null,null,null,null,null,null,null,null,null,null,null,null,null,null,null,null,null,null,null,null,null,null,null,null,null,null,null,null,null,null,null,null,null,null,null,null,null,null,null,null,null,null,"",0]
[null,null,null,null,null,null,null,null,null,null,null,null,null,null,null,null,null,null,null,null,null,null,null,null,null,null,null,null,null,null,null,null,null,null,null,null,null,null,null,null,null,null,null,null,null,"",0]
[null,null,null,null,null,null,null,null,null,null,null,null,null,null,null,null,null,null,null,null,null,null,null,null,null,null,null,null,null,null,null,null,null,null,null,null,null,null,null,null,null,null,null,null,null,"",0]
[null,null,null,null,null,null,null,null,null,null,null,null,null,null,null,null,null,null,null,null,null,null,null,null,null,null,null,null,null,null,null,null,null,null,null,null,null,null,null,null,null,null,null,null,null,"",0]
[null,null,null,null,null,null,null,null,null,null,null,null,null,null,null,null,null,null,null,null,null,null,null,null,null,null,null,null,null,null,null,null,null,null,null,null,null,null,null,null,null,null,null,null,null,"",0]
[null,null,null,null,null,null,null,null,null,null,null,null,null,null,null,null,null,null,null,null,null,null,null,null,null,null,null,null,null,null,null,null,null,null,null,null,null,null,null,null,null,null,null,null,null,"",0]
[null,null,null,null,null,null,null,null,null,null,null,null,null,null,null,null,null,null,null,null,null,null,null,null,null,null,null,null,null,null,null,null,null,null,null,null,null,null,null,null,null,null,null,null,null,"",0]
[null,null,null,null,null,null,null,null,null,null,null,null,null,null,null,null,null,null,null,null,null,null,null,null,null,null,null,null,null,null,null,null,null,null,null,null,null,null,null,null,null,null,null,null,null,"",0]
[null,null,null,null,null,null,null,null,null,null,null,null,null,null,null,null,null,null,null,null,null,null,null,null,null,null,null,null,null,null,null,null,null,null,null,null,null,null,null,null,null,null,null,null,null,"",0]
[null,null,null,null,null,null,null,null,null,null,null,null,null,null,null,null,null,null,null,null,null,null,null,null,null,null,null,null,null,null,null,null,null,null,null,null,null,null,null,null,null,null,null,null,null,"",0]
[null,null,null,null,null,null,null,null,null,null,null,null,null,null,null,null,null,null,null,null,null,null,null,null,null,null,null,null,null,null,null,null,null,null,null,null,null,null,null,null,null,null,null,null,null,"",0]
[null,null,null,null,null,null,null,null,null,null,null,null,null,null,null,null,null,null,null,null,null,null,null,null,null,null,null,null,null,null,null,null,null,null,null,null,null,null,null,null,null,null,null,null,null,"",0]
[null,null,null,null,null,null,null,null,null,null,null,null,null,null,null,null,null,null,null,null,null,null,null,null,null,null,null,null,null,null,null,null,null,null,null,null,null,null,null,null,null,null,null,null,null,"",0]
[null,null,null,null,null,null,null,null,null,null,null,null,null,null,null,null,null,null,null,null,null,null,null,null,null,null,null,null,null,null,null,null,null,null,null,null,null,null,null,null,null,null,null,null,null,"",0]
[null,null,null,null,null,null,null,null,null,null,null,null,null,null,null,null,null,null,null,null,null,null,null,null,null,null,null,null,null,null,null,null,null,null,null,null,null,null,null,null,null,null,null,null,null,"",0]
[null,null,null,null,null,null,null,null,null,null,null,null,null,null,null,null,null,null,null,null,null,null,null,null,null,null,null,null,null,null,null,null,null,null,null,null,null,null,null,null,null,null,null,null,null,"",0]
[null,null,null,null,null,null,null,null,null,null,null,null,null,null,null,null,null,null,null,null,null,null,null,null,null,null,null,null,null,null,null,null,null,null,null,null,null,null,null,null,null,null,null,null,null,"",0]
[null,null,null,null,null,null,null,null,null,null,null,null,null,null,null,null,null,null,null,null,null,null,null,null,null,null,null,null,null,null,null,null,null,null,null,null,null,null,null,null,null,null,null,null,null,"",0]
[null,null,null,null,null,null,null,null,null,null,null,null,null,null,null,null,null,null,null,null,null,null,null,null,null,null,null,null,null,null,null,null,null,null,null,null,null,null,null,null,null,null,null,null,null,"",0]
[null,null,null,null,null,null,null,null,null,null,null,null,null,null,null,null,null,null,null,null,null,null,null,null,null,null,null,null,null,null,null,null,null,null,null,null,null,null,null,null,null,null,null,null,null,"",0]
[null,null,null,null,null,null,null,null,null,null,null,null,null,null,null,null,null,null,null,null,null,null,null,null,null,null,null,null,null,null,null,null,null,null,null,null,null,null,null,null,null,null,null,null,null,"",0]
[null,null,null,null,null,null,null,null,null,null,null,null,null,null,null,null,null,null,null,null,null,null,null,null,null,null,null,null,null,null,null,null,null,null,null,null,null,null,null,null,null,null,null,null,null,"",0]
[null,null,null,null,null,null,null,null,null,null,null,null,null,null,null,null,null,null,null,null,null,null,null,null,null,null,null,null,null,null,null,null,null,null,null,null,null,null,null,null,null,null,null,null,null,"",0]
[null,null,null,null,null,null,null,null,null,null,null,null,null,null,null,null,null,null,null,null,null,null,null,null,null,null,null,null,null,null,null,null,null,null,null,null,null,null,null,null,null,null,null,null,null,"",0]
[null,null,null,null,null,null,null,null,null,null,null,null,null,null,null,null,null,null,null,null,null,null,null,null,null,null,null,null,null,null,null,null,null,null,null,null,null,null,null,null,null,null,null,null,null,"",0]
[null,null,null,null,null,null,null,null,null,null,null,null,null,null,null,null,null,null,null,null,null,null,null,null,null,null,null,null,null,null,null,null,null,null,null,null,null,null,null,null,null,null,null,null,null,"",0]
[null,null,null,null,null,null,null,null,null,null,null,null,null,null,null,null,null,null,null,null,null,null,null,null,null,null,null,null,null,null,null,null,null,null,null,null,null,null,null,null,null,null,null,null,null,{"$f":"IF(OR(MID(H11078,1,1)=\"N\",MID(H11078,1,1)=\"Q\"),MID(H11078,1,1),\"\")","v":""},{"$f":"IF(OR(MID(H11078,1,1)=\"N\",MID(H11078,1,1)=\"Q\"),INT(MID(H11078,2,2)),H11078)","v":0}]
[null,null,null,null,null,null,null,null,null,null,null,null,null,null,null,null,null,null,null,null,null,null,null,null,null,null,null,null,null,null,null,null,null,null,null,null,null,null,null,null,null,null,null,null,null,"",0]
[null,null,null,null,null,null,null,null,null,null,null,null,null,null,null,null,null,null,null,null,null,null,null,null,null,null,null,null,null,null,null,null,null,null,null,null,null,null,null,null,null,null,null,null,null,"",0]
[null,null,null,null,null,null,null,null,null,null,null,null,null,null,null,null,null,null,null,null,null,null,null,null,null,null,null,null,null,null,null,null,null,null,null,null,null,null,null,null,null,null,null,null,null,"",0]
[null,null,null,null,null,null,null,null,null,null,null,null,null,null,null,null,null,null,null,null,null,null,null,null,null,null,null,null,null,null,null,null,null,null,null,null,null,null,null,null,null,null,null,null,null,"",0]
[null,null,null,null,null,null,null,null,null,null,null,null,null,null,null,null,null,null,null,null,null,null,null,null,null,null,null,null,null,null,null,null,null,null,null,null,null,null,null,null,null,null,null,null,null,"",0]
[null,null,null,null,null,null,null,null,null,null,null,null,null,null,null,null,null,null,null,null,null,null,null,null,null,null,null,null,null,null,null,null,null,null,null,null,null,null,null,null,null,null,null,null,null,"",0]
[null,null,null,null,null,null,null,null,null,null,null,null,null,null,null,null,null,null,null,null,null,null,null,null,null,null,null,null,null,null,null,null,null,null,null,null,null,null,null,null,null,null,null,null,null,"",0]
[null,null,null,null,null,null,null,null,null,null,null,null,null,null,null,null,null,null,null,null,null,null,null,null,null,null,null,null,null,null,null,null,null,null,null,null,null,null,null,null,null,null,null,null,null,"",0]
[null,null,null,null,null,null,null,null,null,null,null,null,null,null,null,null,null,null,null,null,null,null,null,null,null,null,null,null,null,null,null,null,null,null,null,null,null,null,null,null,null,null,null,null,null,"",0]
[null,null,null,null,null,null,null,null,null,null,null,null,null,null,null,null,null,null,null,null,null,null,null,null,null,null,null,null,null,null,null,null,null,null,null,null,null,null,null,null,null,null,null,null,null,"",0]
[null,null,null,null,null,null,null,null,null,null,null,null,null,null,null,null,null,null,null,null,null,null,null,null,null,null,null,null,null,null,null,null,null,null,null,null,null,null,null,null,null,null,null,null,null,"",0]
[null,null,null,null,null,null,null,null,null,null,null,null,null,null,null,null,null,null,null,null,null,null,null,null,null,null,null,null,null,null,null,null,null,null,null,null,null,null,null,null,null,null,null,null,null,"",0]
[null,null,null,null,null,null,null,null,null,null,null,null,null,null,null,null,null,null,null,null,null,null,null,null,null,null,null,null,null,null,null,null,null,null,null,null,null,null,null,null,null,null,null,null,null,"",0]
[null,null,null,null,null,null,null,null,null,null,null,null,null,null,null,null,null,null,null,null,null,null,null,null,null,null,null,null,null,null,null,null,null,null,null,null,null,null,null,null,null,null,null,null,null,"",0]
[null,null,null,null,null,null,null,null,null,null,null,null,null,null,null,null,null,null,null,null,null,null,null,null,null,null,null,null,null,null,null,null,null,null,null,null,null,null,null,null,null,null,null,null,null,"",0]
[null,null,null,null,null,null,null,null,null,null,null,null,null,null,null,null,null,null,null,null,null,null,null,null,null,null,null,null,null,null,null,null,null,null,null,null,null,null,null,null,null,null,null,null,null,"",0]
[null,null,null,null,null,null,null,null,null,null,null,null,null,null,null,null,null,null,null,null,null,null,null,null,null,null,null,null,null,null,null,null,null,null,null,null,null,null,null,null,null,null,null,null,null,"",0]
[null,null,null,null,null,null,null,null,null,null,null,null,null,null,null,null,null,null,null,null,null,null,null,null,null,null,null,null,null,null,null,null,null,null,null,null,null,null,null,null,null,null,null,null,null,"",0]
[null,null,null,null,null,null,null,null,null,null,null,null,null,null,null,null,null,null,null,null,null,null,null,null,null,null,null,null,null,null,null,null,null,null,null,null,null,null,null,null,null,null,null,null,null,"",0]
[null,null,null,null,null,null,null,null,null,null,null,null,null,null,null,null,null,null,null,null,null,null,null,null,null,null,null,null,null,null,null,null,null,null,null,null,null,null,null,null,null,null,null,null,null,"",0]
[null,null,null,null,null,null,null,null,null,null,null,null,null,null,null,null,null,null,null,null,null,null,null,null,null,null,null,null,null,null,null,null,null,null,null,null,null,null,null,null,null,null,null,null,null,"",0]
[null,null,null,null,null,null,null,null,null,null,null,null,null,null,null,null,null,null,null,null,null,null,null,null,null,null,null,null,null,null,null,null,null,null,null,null,null,null,null,null,null,null,null,null,null,"",0]
[null,null,null,null,null,null,null,null,null,null,null,null,null,null,null,null,null,null,null,null,null,null,null,null,null,null,null,null,null,null,null,null,null,null,null,null,null,null,null,null,null,null,null,null,null,"",0]
[null,null,null,null,null,null,null,null,null,null,null,null,null,null,null,null,null,null,null,null,null,null,null,null,null,null,null,null,null,null,null,null,null,null,null,null,null,null,null,null,null,null,null,null,null,"",0]
[null,null,null,null,null,null,null,null,null,null,null,null,null,null,null,null,null,null,null,null,null,null,null,null,null,null,null,null,null,null,null,null,null,null,null,null,null,null,null,null,null,null,null,null,null,"",0]
[null,null,null,null,null,null,null,null,null,null,null,null,null,null,null,null,null,null,null,null,null,null,null,null,null,null,null,null,null,null,null,null,null,null,null,null,null,null,null,null,null,null,null,null,null,"",0]
[null,null,null,null,null,null,null,null,null,null,null,null,null,null,null,null,null,null,null,null,null,null,null,null,null,null,null,null,null,null,null,null,null,null,null,null,null,null,null,null,null,null,null,null,null,"",0]
[null,null,null,null,null,null,null,null,null,null,null,null,null,null,null,null,null,null,null,null,null,null,null,null,null,null,null,null,null,null,null,null,null,null,null,null,null,null,null,null,null,null,null,null,null,"",0]
[null,null,null,null,null,null,null,null,null,null,null,null,null,null,null,null,null,null,null,null,null,null,null,null,null,null,null,null,null,null,null,null,null,null,null,null,null,null,null,null,null,null,null,null,null,"",0]
[null,null,null,null,null,null,null,null,null,null,null,null,null,null,null,null,null,null,null,null,null,null,null,null,null,null,null,null,null,null,null,null,null,null,null,null,null,null,null,null,null,null,null,null,null,"",0]
[null,null,null,null,null,null,null,null,null,null,null,null,null,null,null,null,null,null,null,null,null,null,null,null,null,null,null,null,null,null,null,null,null,null,null,null,null,null,null,null,null,null,null,null,null,"",0]
[null,null,null,null,null,null,null,null,null,null,null,null,null,null,null,null,null,null,null,null,null,null,null,null,null,null,null,null,null,null,null,null,null,null,null,null,null,null,null,null,null,null,null,null,null,"",0]
[null,null,null,null,null,null,null,null,null,null,null,null,null,null,null,null,null,null,null,null,null,null,null,null,null,null,null,null,null,null,null,null,null,null,null,null,null,null,null,null,null,null,null,null,null,"",0]
[null,null,null,null,null,null,null,null,null,null,null,null,null,null,null,null,null,null,null,null,null,null,null,null,null,null,null,null,null,null,null,null,null,null,null,null,null,null,null,null,null,null,null,null,null,"",0]
[null,null,null,null,null,null,null,null,null,null,null,null,null,null,null,null,null,null,null,null,null,null,null,null,null,null,null,null,null,null,null,null,null,null,null,null,null,null,null,null,null,null,null,null,null,"",0]
[null,null,null,null,null,null,null,null,null,null,null,null,null,null,null,null,null,null,null,null,null,null,null,null,null,null,null,null,null,null,null,null,null,null,null,null,null,null,null,null,null,null,null,null,null,"",0]
[null,null,null,null,null,null,null,null,null,null,null,null,null,null,null,null,null,null,null,null,null,null,null,null,null,null,null,null,null,null,null,null,null,null,null,null,null,null,null,null,null,null,null,null,null,"",0]
[null,null,null,null,null,null,null,null,null,null,null,null,null,null,null,null,null,null,null,null,null,null,null,null,null,null,null,null,null,null,null,null,null,null,null,null,null,null,null,null,null,null,null,null,null,"",0]
[null,null,null,null,null,null,null,null,null,null,null,null,null,null,null,null,null,null,null,null,null,null,null,null,null,null,null,null,null,null,null,null,null,null,null,null,null,null,null,null,null,null,null,null,null,"",0]
[null,null,null,null,null,null,null,null,null,null,null,null,null,null,null,null,null,null,null,null,null,null,null,null,null,null,null,null,null,null,null,null,null,null,null,null,null,null,null,null,null,null,null,null,null,"",0]
[null,null,null,null,null,null,null,null,null,null,null,null,null,null,null,null,null,null,null,null,null,null,null,null,null,null,null,null,null,null,null,null,null,null,null,null,null,null,null,null,null,null,null,null,null,"",0]
[null,null,null,null,null,null,null,null,null,null,null,null,null,null,null,null,null,null,null,null,null,null,null,null,null,null,null,null,null,null,null,null,null,null,null,null,null,null,null,null,null,null,null,null,null,"",0]
[null,null,null,null,null,null,null,null,null,null,null,null,null,null,null,null,null,null,null,null,null,null,null,null,null,null,null,null,null,null,null,null,null,null,null,null,null,null,null,null,null,null,null,null,null,"",0]
[null,null,null,null,null,null,null,null,null,null,null,null,null,null,null,null,null,null,null,null,null,null,null,null,null,null,null,null,null,null,null,null,null,null,null,null,null,null,null,null,null,null,null,null,null,"",0]
[null,null,null,null,null,null,null,null,null,null,null,null,null,null,null,null,null,null,null,null,null,null,null,null,null,null,null,null,null,null,null,null,null,null,null,null,null,null,null,null,null,null,null,null,null,"",0]
[null,null,null,null,null,null,null,null,null,null,null,null,null,null,null,null,null,null,null,null,null,null,null,null,null,null,null,null,null,null,null,null,null,null,null,null,null,null,null,null,null,null,null,null,null,"",0]
[null,null,null,null,null,null,null,null,null,null,null,null,null,null,null,null,null,null,null,null,null,null,null,null,null,null,null,null,null,null,null,null,null,null,null,null,null,null,null,null,null,null,null,null,null,"",0]
[null,null,null,null,null,null,null,null,null,null,null,null,null,null,null,null,null,null,null,null,null,null,null,null,null,null,null,null,null,null,null,null,null,null,null,null,null,null,null,null,null,null,null,null,null,"",0]
[null,null,null,null,null,null,null,null,null,null,null,null,null,null,null,null,null,null,null,null,null,null,null,null,null,null,null,null,null,null,null,null,null,null,null,null,null,null,null,null,null,null,null,null,null,"",0]
[null,null,null,null,null,null,null,null,null,null,null,null,null,null,null,null,null,null,null,null,null,null,null,null,null,null,null,null,null,null,null,null,null,null,null,null,null,null,null,null,null,null,null,null,null,"",0]
[null,null,null,null,null,null,null,null,null,null,null,null,null,null,null,null,null,null,null,null,null,null,null,null,null,null,null,null,null,null,null,null,null,null,null,null,null,null,null,null,null,null,null,null,null,"",0]
[null,null,null,null,null,null,null,null,null,null,null,null,null,null,null,null,null,null,null,null,null,null,null,null,null,null,null,null,null,null,null,null,null,null,null,null,null,null,null,null,null,null,null,null,null,"",0]
[null,null,null,null,null,null,null,null,null,null,null,null,null,null,null,null,null,null,null,null,null,null,null,null,null,null,null,null,null,null,null,null,null,null,null,null,null,null,null,null,null,null,null,null,null,"",0]
[null,null,null,null,null,null,null,null,null,null,null,null,null,null,null,null,null,null,null,null,null,null,null,null,null,null,null,null,null,null,null,null,null,null,null,null,null,null,null,null,null,null,null,null,null,"",0]
[null,null,null,null,null,null,null,null,null,null,null,null,null,null,null,null,null,null,null,null,null,null,null,null,null,null,null,null,null,null,null,null,null,null,null,null,null,null,null,null,null,null,null,null,null,"",0]
[null,null,null,null,null,null,null,null,null,null,null,null,null,null,null,null,null,null,null,null,null,null,null,null,null,null,null,null,null,null,null,null,null,null,null,null,null,null,null,null,null,null,null,null,null,"",0]
[null,null,null,null,null,null,null,null,null,null,null,null,null,null,null,null,null,null,null,null,null,null,null,null,null,null,null,null,null,null,null,null,null,null,null,null,null,null,null,null,null,null,null,null,null,"",0]
[null,null,null,null,null,null,null,null,null,null,null,null,null,null,null,null,null,null,null,null,null,null,null,null,null,null,null,null,null,null,null,null,null,null,null,null,null,null,null,null,null,null,null,null,null,"",0]
[null,null,null,null,null,null,null,null,null,null,null,null,null,null,null,null,null,null,null,null,null,null,null,null,null,null,null,null,null,null,null,null,null,null,null,null,null,null,null,null,null,null,null,null,null,"",0]
[null,null,null,null,null,null,null,null,null,null,null,null,null,null,null,null,null,null,null,null,null,null,null,null,null,null,null,null,null,null,null,null,null,null,null,null,null,null,null,null,null,null,null,null,null,"",0]
[null,null,null,null,null,null,null,null,null,null,null,null,null,null,null,null,null,null,null,null,null,null,null,null,null,null,null,null,null,null,null,null,null,null,null,null,null,null,null,null,null,null,null,null,null,"",0]
[null,null,null,null,null,null,null,null,null,null,null,null,null,null,null,null,null,null,null,null,null,null,null,null,null,null,null,null,null,null,null,null,null,null,null,null,null,null,null,null,null,null,null,null,null,"",0]
[null,null,null,null,null,null,null,null,null,null,null,null,null,null,null,null,null,null,null,null,null,null,null,null,null,null,null,null,null,null,null,null,null,null,null,null,null,null,null,null,null,null,null,null,null,"",0]
[null,null,null,null,null,null,null,null,null,null,null,null,null,null,null,null,null,null,null,null,null,null,null,null,null,null,null,null,null,null,null,null,null,null,null,null,null,null,null,null,null,null,null,null,null,{"$f":"IF(OR(MID(H11142,1,1)=\"N\",MID(H11142,1,1)=\"Q\"),MID(H11142,1,1),\"\")","v":""},{"$f":"IF(OR(MID(H11142,1,1)=\"N\",MID(H11142,1,1)=\"Q\"),INT(MID(H11142,2,2)),H11142)","v":0}]
[null,null,null,null,null,null,null,null,null,null,null,null,null,null,null,null,null,null,null,null,null,null,null,null,null,null,null,null,null,null,null,null,null,null,null,null,null,null,null,null,null,null,null,null,null,"",0]
[null,null,null,null,null,null,null,null,null,null,null,null,null,null,null,null,null,null,null,null,null,null,null,null,null,null,null,null,null,null,null,null,null,null,null,null,null,null,null,null,null,null,null,null,null,"",0]
[null,null,null,null,null,null,null,null,null,null,null,null,null,null,null,null,null,null,null,null,null,null,null,null,null,null,null,null,null,null,null,null,null,null,null,null,null,null,null,null,null,null,null,null,null,"",0]
[null,null,null,null,null,null,null,null,null,null,null,null,null,null,null,null,null,null,null,null,null,null,null,null,null,null,null,null,null,null,null,null,null,null,null,null,null,null,null,null,null,null,null,null,null,"",0]
[null,null,null,null,null,null,null,null,null,null,null,null,null,null,null,null,null,null,null,null,null,null,null,null,null,null,null,null,null,null,null,null,null,null,null,null,null,null,null,null,null,null,null,null,null,"",0]
[null,null,null,null,null,null,null,null,null,null,null,null,null,null,null,null,null,null,null,null,null,null,null,null,null,null,null,null,null,null,null,null,null,null,null,null,null,null,null,null,null,null,null,null,null,"",0]
[null,null,null,null,null,null,null,null,null,null,null,null,null,null,null,null,null,null,null,null,null,null,null,null,null,null,null,null,null,null,null,null,null,null,null,null,null,null,null,null,null,null,null,null,null,"",0]
[null,null,null,null,null,null,null,null,null,null,null,null,null,null,null,null,null,null,null,null,null,null,null,null,null,null,null,null,null,null,null,null,null,null,null,null,null,null,null,null,null,null,null,null,null,"",0]
[null,null,null,null,null,null,null,null,null,null,null,null,null,null,null,null,null,null,null,null,null,null,null,null,null,null,null,null,null,null,null,null,null,null,null,null,null,null,null,null,null,null,null,null,null,"",0]
[null,null,null,null,null,null,null,null,null,null,null,null,null,null,null,null,null,null,null,null,null,null,null,null,null,null,null,null,null,null,null,null,null,null,null,null,null,null,null,null,null,null,null,null,null,"",0]
[null,null,null,null,null,null,null,null,null,null,null,null,null,null,null,null,null,null,null,null,null,null,null,null,null,null,null,null,null,null,null,null,null,null,null,null,null,null,null,null,null,null,null,null,null,"",0]
[null,null,null,null,null,null,null,null,null,null,null,null,null,null,null,null,null,null,null,null,null,null,null,null,null,null,null,null,null,null,null,null,null,null,null,null,null,null,null,null,null,null,null,null,null,"",0]
[null,null,null,null,null,null,null,null,null,null,null,null,null,null,null,null,null,null,null,null,null,null,null,null,null,null,null,null,null,null,null,null,null,null,null,null,null,null,null,null,null,null,null,null,null,"",0]
[null,null,null,null,null,null,null,null,null,null,null,null,null,null,null,null,null,null,null,null,null,null,null,null,null,null,null,null,null,null,null,null,null,null,null,null,null,null,null,null,null,null,null,null,null,"",0]
[null,null,null,null,null,null,null,null,null,null,null,null,null,null,null,null,null,null,null,null,null,null,null,null,null,null,null,null,null,null,null,null,null,null,null,null,null,null,null,null,null,null,null,null,null,"",0]
[null,null,null,null,null,null,null,null,null,null,null,null,null,null,null,null,null,null,null,null,null,null,null,null,null,null,null,null,null,null,null,null,null,null,null,null,null,null,null,null,null,null,null,null,null,"",0]
[null,null,null,null,null,null,null,null,null,null,null,null,null,null,null,null,null,null,null,null,null,null,null,null,null,null,null,null,null,null,null,null,null,null,null,null,null,null,null,null,null,null,null,null,null,"",0]
[null,null,null,null,null,null,null,null,null,null,null,null,null,null,null,null,null,null,null,null,null,null,null,null,null,null,null,null,null,null,null,null,null,null,null,null,null,null,null,null,null,null,null,null,null,"",0]
[null,null,null,null,null,null,null,null,null,null,null,null,null,null,null,null,null,null,null,null,null,null,null,null,null,null,null,null,null,null,null,null,null,null,null,null,null,null,null,null,null,null,null,null,null,"",0]
[null,null,null,null,null,null,null,null,null,null,null,null,null,null,null,null,null,null,null,null,null,null,null,null,null,null,null,null,null,null,null,null,null,null,null,null,null,null,null,null,null,null,null,null,null,"",0]
[null,null,null,null,null,null,null,null,null,null,null,null,null,null,null,null,null,null,null,null,null,null,null,null,null,null,null,null,null,null,null,null,null,null,null,null,null,null,null,null,null,null,null,null,null,"",0]
[null,null,null,null,null,null,null,null,null,null,null,null,null,null,null,null,null,null,null,null,null,null,null,null,null,null,null,null,null,null,null,null,null,null,null,null,null,null,null,null,null,null,null,null,null,"",0]
[null,null,null,null,null,null,null,null,null,null,null,null,null,null,null,null,null,null,null,null,null,null,null,null,null,null,null,null,null,null,null,null,null,null,null,null,null,null,null,null,null,null,null,null,null,"",0]
[null,null,null,null,null,null,null,null,null,null,null,null,null,null,null,null,null,null,null,null,null,null,null,null,null,null,null,null,null,null,null,null,null,null,null,null,null,null,null,null,null,null,null,null,null,"",0]
[null,null,null,null,null,null,null,null,null,null,null,null,null,null,null,null,null,null,null,null,null,null,null,null,null,null,null,null,null,null,null,null,null,null,null,null,null,null,null,null,null,null,null,null,null,"",0]
[null,null,null,null,null,null,null,null,null,null,null,null,null,null,null,null,null,null,null,null,null,null,null,null,null,null,null,null,null,null,null,null,null,null,null,null,null,null,null,null,null,null,null,null,null,"",0]
[null,null,null,null,null,null,null,null,null,null,null,null,null,null,null,null,null,null,null,null,null,null,null,null,null,null,null,null,null,null,null,null,null,null,null,null,null,null,null,null,null,null,null,null,null,"",0]
[null,null,null,null,null,null,null,null,null,null,null,null,null,null,null,null,null,null,null,null,null,null,null,null,null,null,null,null,null,null,null,null,null,null,null,null,null,null,null,null,null,null,null,null,null,"",0]
[null,null,null,null,null,null,null,null,null,null,null,null,null,null,null,null,null,null,null,null,null,null,null,null,null,null,null,null,null,null,null,null,null,null,null,null,null,null,null,null,null,null,null,null,null,"",0]
[null,null,null,null,null,null,null,null,null,null,null,null,null,null,null,null,null,null,null,null,null,null,null,null,null,null,null,null,null,null,null,null,null,null,null,null,null,null,null,null,null,null,null,null,null,"",0]

{"sheet":"6-SINTESI","index":5,"n_rows":72,"n_cols":21,"rows_kept":72,"cut":false,"hidden":true,"merged":[[1,0,3,0],[1,1,1,3],[1,4,1,8],[1,9,1,10],[2,4,3,4]]}
[null,null,null,null,null,null,null,null,null,"n°Righe / Elemento",2,"Csmin",0.6]
["ELEMENTO",null,null,null,"DISPOSIZIONE RINFORZO",null,null,null,null,{"$f":"NOW()","v":"2015-10-29T09:06:35.910"}]
[null,"L","t","H","Nastri verticali spigolo","nonastri","nvnastri","pfo","pfv","C.S.Mu","C.S.Vres",null,null,null,null,null,"n,pos-vert","Lmaglia,v","nmaglie,v","Ltot,v","Peso"]
[null,"mm","mm","mm",null,null,"mm","mm","mm","%","%",null,null,null,null,null,null,"m"]
["PianoT-M-1",2360,700,3500,null,2,1,750,750,0.7567412632793995,0.66671243537184177,null,null,null,1.0853728158409719,1.7419853240242136,{"$f":"IF(E5=\"\",IF(B5/H5-INT(B5/H5)>0,INT(B5/H5)+1,INT(B5/H5)),INT((B5-300)/H5))","v":4},{"$f":"(2*(C5+2*I5)+200)/1000","v":4.5999999999999996},{"$f":"D5/2/I5","v":2.3333333333333335},{"$f":"S5*R5*G5*Q5","v":42.93333333333333},{"$f":"0.019*0.001*7850*T5","v":6.403506666666666}]
["PianoT-M-2",1570,700,3500,null,3,1,750,750,0.91309363257050835,0.59391230130848993,null,null,null,0.92174802361267094,1.1419029992729144,3,4.5999999999999996,2.3333333333333335,32.199999999999996,4.8026299999999997]
["PianoT-M-23",1700,700,3500,null,2,1,750,750,18.175664508666529,0.75718438077071659,null,null,null,0.92478841888022223,1.7384183772404664,3,4.5999999999999996,2.3333333333333335,32.199999999999996,4.8026299999999997]
["PianoT-M-28",1235,700,3500,null,2,1,750,750,2.2252490412757009,0.62284066562652296,null,null,null,0.85470655579411237,1.037463635457355,2,4.5999999999999996,2.3333333333333335,21.466666666666665,3.201753333333333]
["PianoT-M-29",1010,700,3500,null,2,1,750,750,3.1709046873858551,0.78743921258097738,null,null,null,0.79641800086086634,1.1423166410269867,2,4.5999999999999996,2.3333333333333335,21.466666666666665,3.201753333333333]
["PianoT-M-32",1184,700,3500,null,2,1,750,750,1.2582553417430449,0.83850494490580596,null,null,null,0.81259986609940571,1.2648329532491349,2,4.5999999999999996,2.3333333333333335,21.466666666666665,3.201753333333333]
["PianoT-M-36",6000,350,3500,null,5,1,750,750,0.49284614118928433,0.57530419408643574,null,null,null,0.78074633027865425,0.8027209867767392,8,3.9,2.3333333333333335,72.8,10.85812]
["PianoT-M-8",2070,700,3500,null,5,1,750,750,0.87581828974709242,0.58206781547321407,null,null,null,0.88657482176033942,0.84653309241022989,3,4.5999999999999996,2.3333333333333335,32.199999999999996,4.8026299999999997]
["PianoT-M-12",2109,700,3500,null,5,1,750,750,0.69591155504846902,0.63626238397953294,null,null,null,1.1568172055834296,0.87299652635657055,3,4.5999999999999996,2.3333333333333335,32.199999999999996,4.8026299999999997]
["PianoT-M-13",2520,700,3500,null,2,1,750,750,33.105939945354095,0.60653292191589359,null,null,null,2.327106653579802,1.216385499996339,4,4.5999999999999996,2.3333333333333335,42.93333333333333,6.403506666666666]
["PianoT-M-14",2590,700,3500,null,3,1,750,750,4.0033426930625149,0.58533723755837286,null,null,null,2.0349207862246042,1.2855706200501107,4,4.5999999999999996,2.3333333333333335,42.93333333333333,6.403506666666666]
["PianoT-M-17",3770,700,3500,null,2,1,750,750,1.0956253787801313,0.63615436474097065,null,null,null,1.6809347729072648,1.1093039461018883,6,4.5999999999999996,2.3333333333333335,64.399999999999991,9.6052599999999995]
["PianoT-M-18",3200,700,3500,null,2,1,750,750,0.88543156283251201,0.68504365484434948,null,null,null,1.0174820505559223,0.94337492796169309,5,4.5999999999999996,2.3333333333333335,53.666666666666664,8.0043833333333332]
["PianoT-M-35",3460,700,3500,null,2,1,750,750,0.73893027275954548,0.73384841736044193,null,null,null,1.1928751387584193,0.85609311549509803,5,4.5999999999999996,2.3333333333333335,53.666666666666664,8.0043833333333332]
["PianoT-M-39",1510,700,3500,null,2,1,750,750,0.93214254602206048,0.64256989588123181,null,null,null,2.2431503847151224,0.96427803213848062,3,4.5999999999999996,2.3333333333333335,32.199999999999996,4.8026299999999997]
["PianoT-M-41",3570,700,3500,null,2,1,750,750,0.75923906036408206,0.70154996009705473,null,null,null,0.96606096312209067,1.3482206448526908,5,4.5999999999999996,2.3333333333333335,53.666666666666664,8.0043833333333332]
["PianoP1-M-19",6970,600,3250,null,2,1,750,750,3.0920257527937056,0.71996699244333007,null,null,null,2.2331645659926807,1.1649338565427749,10,4.4000000000000004,2.1666666666666665,95.333333333333329,14.218966666666667]
["PianoP1-M-37",7040,600,3250,null,2,1,750,750,5.3537559573469977,0.86506765844080868,null,null,null,1.9809882690221703,1.4586313649307248,10,4.4000000000000004,2.1666666666666665,95.333333333333329,14.218966666666667]
["PianoP1-M-40",1510,600,3250,null,2,1,750,750,8.7510060136890999,0.7112442365679591,null,null,null,1.3282132673447771,1.5915528832454888,3,4.4000000000000004,2.1666666666666665,28.6,4.2656900000000002]
["PianoP1-M-15",4010,350,3250,null,2,1,750,750,4.713414295396297,0.62669690386146371,null,null,null,1.4507865190395857,1.2652811877051282,6,3.9,2.1666666666666665,50.699999999999996,7.5619049999999994]
["PianoP1-M-21",850,350,3250,null,3,1,750,750,7.6395218798342883,0.61170687147162761,null,null,null,1.3965555115792871,0.9723021653085312,2,3.9,2.1666666666666665,16.899999999999999,2.520635]
["PianoP1-M-7",2150,700,3250,null,2,1,750,750,2.2902815979916227,0.62101833708267151,null,null,null,1.2886885022389694,0.94496667460174755,3,4.5999999999999996,2.1666666666666665,29.899999999999995,4.4595849999999997]
["PianoP1-M-9",2230,700,3250,null,2,1,750,750,2.0451062238099973,0.60159947624229404,null,null,null,0.96298002895689572,0.82032527115923104,3,4.5999999999999996,2.1666666666666665,29.899999999999995,4.4595849999999997]
["PianoP1-M-3",2315,600,3250,null,2,1,750,750,0.94233814983408482,0.97348392302983711,null,null,null,0.84302719253397862,0.88049514596954159,4,4.4000000000000004,2.1666666666666665,38.133333333333333,5.6875866666666663]
["PianoP1-M-4",1450,600,3250,null,3,1,750,750,2.7023799246355718,0.64005240447474443,null,null,null,0.83339002526730455,2.4057301656488397,2,4.4000000000000004,2.1666666666666665,19.066666666666666,2.8437933333333332]
["PianoP1-M-25",1150,600,3250,null,2,1,750,750,3.4496947853009532,0.77182936199530272,null,null,null,1.4027674061789619,1.5874133482013428,2,4.4000000000000004,2.1666666666666665,19.066666666666666,2.8437933333333332]
["PianoP1-M-27",1270,600,3250,null,4,1,750,750,4.0421837957491036,0.61262913346506753,null,null,null,1.7541313460416961,0.95016628847055518,2,4.4000000000000004,2.1666666666666665,19.066666666666666,2.8437933333333332]
["PianoP1-M-31",1575,600,3250,null,2,1,750,750,2.7884696112388934,0.70082869714158358,null,null,null,1.0941965777521663,0.91828701017959879,3,4.4000000000000004,2.1666666666666665,28.6,4.2656900000000002]
["PianoP1-M-34",1985,600,3250,null,2,1,750,750,14.48402326603633,0.79169244009971262,null,null,null,1.5034217248555073,1.2600347653075386,3,4.4000000000000004,2.1666666666666665,28.6,4.2656900000000002]
["PianoP2-M-5",1440,600,3000,null,4,1,750,750,11.792206627868802,0.64212516464153768,null,null,null,3.4699612369368342,1.058329328777875,2,4.4000000000000004,2,17.600000000000001,2.6250400000000003]
["PianoP2-M-6",2270,600,3000,null,2,1,750,750,5.4281225578616654,1.0048392906012822,null,null,null,0.98620248918969555,1.053224976802356,{"$f":"IF(E35=\"\",IF(B35/H35-INT(B35/H35)>0,INT(B35/H35)+1,INT(B35/H35)),INT((B35-300)/H35))","v":4},{"$f":"(2*(C35+2*I35)+200)/1000","v":4.4000000000000004},{"$f":"D35/2/I35","v":2},35.200000000000003,{"$f":"0.019*0.001*7850*T35","v":5.2500800000000005}]
["PianoP2-M-24",1200,600,3000,null,3,1,750,750,6.5294318139344645,0.69051859044175845,null,null,null,0.98529888186305892,0.84149189700196636,2,4.4000000000000004,2,17.600000000000001,2.6250400000000003]
["PianoP2-M-26",1500,400,3000,null,3,1,750,750,1.8421430361132962,0.65670706792306943,null,null,null,3.0793513569011566,1.010246555744392,2,4,2,{"$f":"S37*R37*G37*Q37","v":16},2.3864000000000001]
["PianoP2-M-33",1975,400,3000,null,3,1,750,750,5.3591023907470143,0.70573843331592101,null,null,null,0.93062427799904135,0.79022971694893773,3,4,2,24,3.5796000000000001]
["PianoP2-M-10",1960,650,3000,null,5,1,750,750,0.77800488574507043,0.66702748505287857,null,null,null,2.6916845011313537,0.97288111590218362,3,4.5,2,27,4.02705]
["PianoP2-M-11",2120,650,3000,null,4,1,750,750,0.9267035483249626,0.64409910040137519,null,null,null,1.5008555118385036,1.0656391209786511,3,4.5,2,27,4.02705]
["PianoP2-M-16",4020,350,3000,null,2,1,750,750,4.3891326170968048,0.82334902110413588,null,null,null,0.79961215417868248,0.86505984797780666,6,3.9,2,46.8,6.9802200000000001]
["PianoP2-M-20",900,350,3000,null,2,1,750,750,3.5359843033250931,0.6300872990599411,null,null,null,5.5379563372810425,0.95484328764116821,2,3.9,2,15.6,2.32674]
["PianoP2-M-22",7060,550,3000,null,2,1,750,750,4.2062311439968951,0.7755015735924693,null,null,null,0.79276781206600255,1.0020536820759323,10,4.3,2,86,12.8269]
["PianoP2-M-30",1360,550,3000,null,2,1,750,750,0.81001381771114778,0.74107723629303868,null,null,null,1.5740226535582162,1.1106828099968822,2,4.3,2,17.2,2.5653799999999998]
["PianoP2-M-38",7170,550,3000,null,2,1,750,750,5.4851389591530006,0.90369533717953399,null,null,null,0.87329547412196507,0.80025304061114855,10,4.3,2,86,12.8269]
[null,null,null,null,null,null,null,null,null,null,null,null,null,null,0.90808543099812911,1.1132518318086255,{"$error":"#DIV/0!"},0.2,{"$error":"#DIV/0!"},{"$error":"#DIV/0!"},{"$error":"#DIV/0!"}]
[null,null,null,null,null,null,null,null,null,null,null,null,null,null,0.7885843444657048,0.81553199418053723,{"$error":"#DIV/0!"},0.2,{"$error":"#DIV/0!"},{"$error":"#DIV/0!"},{"$error":"#DIV/0!"}]
[null,null,null,null,null,null,null,null,null,null,null,null,null,null,4.6215506029425928,1.3360499168134123,{"$error":"#DIV/0!"},0.2,{"$error":"#DIV/0!"},{"$error":"#DIV/0!"},{"$error":"#DIV/0!"}]
[null,null,null,null,null,null,null,null,null,null,null,null,null,null,0.9178257173578851,0.99694695958852131,{"$error":"#DIV/0!"},0.2,{"$error":"#DIV/0!"},{"$error":"#DIV/0!"},{"$error":"#DIV/0!"}]
[null,null,null,null,null,null,null,null,null,null,null,null,null,null,1.6532241219220629,0.96418448395906686,{"$error":"#DIV/0!"},0.2,{"$error":"#DIV/0!"},{"$error":"#DIV/0!"},{"$error":"#DIV/0!"}]
[null,null,null,null,null,null,null,null,null,null,null,null,null,null,0.89127178245382044,0.81957789069244058,{"$error":"#DIV/0!"},0.2,{"$error":"#DIV/0!"},{"$error":"#DIV/0!"},{"$error":"#DIV/0!"}]
[null,null,null,null,null,null,null,null,null,null,null,null,null,null,0.85138291156267765,0.84723564497739023,{"$error":"#DIV/0!"},0.2,{"$error":"#DIV/0!"},{"$error":"#DIV/0!"},{"$error":"#DIV/0!"}]
[null,null,null,null,null,null,null,null,null,null,null,null,null,null,1.9874016831111863,1.2723212977180938,{"$error":"#DIV/0!"},0.2,{"$error":"#DIV/0!"},{"$error":"#DIV/0!"},{"$error":"#DIV/0!"}]
[null,null,null,null,null,null,null,null,null,null,null,null,null,null,0.98131703172056672,0.85664346800024416,null,null,null,null,{"$f":"SUM(U5:U53)","v":{"$error":"#DIV/0!"}}]
[null,null,null,null,null,null,null,null,null,null,null,null,null,null,3.2812605520878764,1.1188113301391365]
[null,null,null,null,null,null,null,null,null,null,null,null,null,null,0.80721460180400617,0.76146811588536567]
[null,null,null,null,null,null,null,null,null,null,null,null,null,null,2.0195995007137348,1.1003205375417049]
[null,null,null,null,null,null,null,null,null,null,null,null,null,null,0.85818474942299949,0.85918116998069172]
[null,null,null,null,null,null,null,null,null,null,null,null,null,null,4.094575399714742,1.1225535730769431]
[null,null,null,null,null,null,null,null,null,null,null,null,null,null,0.89083472519152651,0.81813699971763054]
[null,null,null,null,null,null,null,null,null,null,null,null,null,null,2.3355593769237482,1.5090840284920553]
[null,null,null,null,null,null,null,null,null,null,null,null,null,null,1.0399366455326968,0.80337560909771644]
[null,null,null,null,null,null,null,null,null,null,null,null,null,null,0.8214874375527953,1.1483226017836325]
[null,null,null,null,null,null,null,null,null,null,null,null,null,null,10.329642333218001,1.7030727055279815]
[null,null,null,null,null,null,null,null,null,null,null,null,null,null,1.4859880686175271,1.2560501801231818]
[null,null,null,null,null,null,null,null,null,null,null,null,null,null,1.1583434233447609,1.0970916071195349]
[null,null,null,null,null,null,null,null,null,null,null,null,null,null,0.87296779016998149,1.3631487937336868]
[null,null,null,null,null,null,null,null,null,null,null,null,null,null,1.9811663942718236,0.87092735077239536]
[null,null,null,null,null,null,null,null,null,null,null,null,null,null,2.871827262289234,1.0418282278632269]
[null,null,null,null,null,null,null,null,null,null,null,null,null,null,1.5471385783161189,1.0088518470436931]
[null,null,null,null,null,null,null,null,null,null,null,null,null,null,1.8130875497280134,1.040423618112486]
[null,null,null,null,null,null,null,null,null,null,null,null,null,null,1.8130875497280134,1.040423618112486]